Workbook

Sheet podpořené
A1: Hodnotící formulář - souhrnná tabulka projektů
A2: Číslo a název oblasti podpory, programu: č.1 oblast podpory Požární ochrana a prevence kriminality, program č. 1.1 Podpora jednotek požární ochrany obcí Libereckého kraje
A3: Rok vyhlášení: 2025
A4: Projekty navržené k podpoře
A6: P. č. | B6: Obec/město | C6: Žadatel | D6: Název projektu | E6: Popis projektu (účel projektu) | F6: č. účelu | G6: Výstupy projektu | H6: Výstupy projektu po úpravách | I6: Celk. výdaje projektu Kč | J6: Požadovaná výše dotace | L6: Vlastní zdroje příjemce | N6: Celk. výdaje projektu Kč po úpravách | O6: Výše dotace v Kč po úpravách | P6: procento po úpravách | Q6: Admin. soulad (projekt je v souladu s účelem a podmínkami programu, je způsobilý pro další hodnocení) ANO/NE | R6: Závazná kritéria hodnocení (body) / % | W6: Spec. kritéria hodnocení (body) / % | AB6: Celk. počet bodů | AC6: OLP | AE6: Ulice | AF6: Adresa | AG6: PSČ | AH6: Jmeno starosty | AI6: Pohlaví | AJ6: IČ | AK6: DIČ | AL6: Číslo účtu | AM6: HK_Celková_výdaje_text | AN6: HK_Dotace_LK_text | AO6: HK_Dotace_ slovy | AP6: HK_procento-100% nebo 90% | AQ6: HK_Procento LK dotace | AR6: HK_Procento vlastní zdroje | AS6: VS | AT6: číslo usnesení | AU6: datum ZK | AV6: Kontrola délky textu
J7: Kč | K7: % | L7: Kč | M7: % | P7: % | R7: 1 | S7: 0.3 | T7: 2 | U7: 0.1 | V7: Σz | W7: 3 | X7: 0.1 | Y7: 4 | Z7: 0.5 | AA7: Σs
A8: 164 | B8: Obec | C8: Benešov u Semil | D8: Obnova dýchací techniky pro JPO III Benešov u Semil | E8: Účelem projektu je pořízení dvou kusů vzduchových přetlakových přístrojů MSA M1 SCB pro JPO III Benešov u Semil, pro zásahy spojené s využitím dýchací techniky - U6). | F8: 6c | G8: Vzduchový přetlakový přístroj MSA M1 SCB - 2 ks | H8: Vzduchový přetlakový přístroj MSA M1 SCB - 2 ks | I8: 52702 | J8: 31600 | K8: =ROUND(J8/I8*100,2) -> 59.96 | L8: =I8-J8 -> 21102 | M8: =ROUND(L8/I8*100,2) -> 40.04 | N8: 52702 | O8: 31600 | P8: =ROUND(O8/N8*100,2) -> 59.96 | Q8: ANO | R8: 15 | S8: =R8*0.3 -> 4.5 | T8: =IF(K8<=30,"15",IF(K8<=50,"7",IF(K8<=70,"0","!!!"))) -> 0 | U8: =T8*0.1 -> 0 | V8: =S8+U8 -> 4.5 | W8: 15 | X8: =W8*0.1 -> 1.5 | Y8: 7 | Z8: =Y8*0.5 -> 3.5 | AA8: =X8+Z8 -> 5 | AB8: =V8+AA8 -> 9.5 | AC8: OLP/02024/2025 | AE8: 125 | AF8: Benešov u Semil | AG8: 51206 | AH8: =_xlfn.XLOOKUP(C8,#REF!,#REF!,"Nenalezeno!") ->  | AI8: starostka | AJ8: 00275590 | AK8: CZ00275590 | AL8: 1263110329/0800 | AM8: =TEXT(N8,"# ##0 Kč") -> 52 702 Kč | AN8: =TEXT(O8,"# ##0,00 Kč") -> 31 600,00 Kč | AO8: =Slovy(O8) -> třicet jedentisíc šestset | AP8: =IF(O8<=300000,"100%","90%") -> 100% | AQ8: =TEXT(P8,"0,00")& "%" -> 59,96% | AR8: =TEXT(M8,"0,00")& "%" -> 40,04% | AV8: =LEN(H8) -> 47
A9: 168 | B9: Obec | C9: Benešov u Semil | D9: Pořízení, obnova a doplnění vybavení JPO III Benešov u Semil | E9: Účelem projektu je pořízení a obnova věcných prostředků požární ochrany - ochraných přileb. Vybavení je určeno pro JPO III Benešov u Semil. Nevyhovující kusy vybavení je třeba nahradit novými věcnými prostředky. U2) | F9: 2 | G9: Přilba MSA Gallet F1xF Gold+ - 2ks | H9: Přilba MSA Gallet F1xF Gold+ - 2ks | I9: 26596 | J9: 15900 | K9: 59.78 | L9: 10696 | M9: 40.22 | N9: 26596 | O9: 15900 | P9: 59.78 | Q9: ANO | R9: 15 | S9: 4.5 | T9: 0 | U9: 0 | V9: 4.5 | W9: 15 | X9: 1.5 | Y9: 15 | Z9: 7.5 | AA9: 9 | AB9: 13.5 | AC9: OLP/02028/2025 | AE9: 125 | AF9: Benešov u Semil | AG9: 51206 | AH9: =_xlfn.XLOOKUP(C9,#REF!,#REF!,"Nenalezeno!") ->  | AI9: starostka | AJ9: 00275590 | AK9: CZ00275590 | AL9: 1263110329/0800 | AM9: 26 596 Kč | AN9: 15 900,00 Kč | AO9: =Slovy(O9) -> patnáct tisíc devětset | AP9: 100% | AQ9: 59,78% | AR9: 40,22% | AV9: 34
A10: 163 | B10: Obec | C10: Bílá | D10: Pořízení a obnova ochranných prostředků požární ochrany | E10: Obec Bílá se na základě žádosti velitele jednotky obce rozhodla pokračovat v pořizování a obnově dalších ochranných prostředků pro zasahující hasiče. Důvod pořízení je vybavování nových členů jednotky a staří a opotřebování těchto prostředků. | F10: 2 | G10: Zásahový oblek FireRexClasic FR3-kompletinvestiční - 4 ks, Nápis reflexní Hasiči Bílá - pro zásahové obleky GoodPRO - 4 ks, Kukla otvor - obličej - NOMEX - DEVA - 4 ks, Přilba zásahová Heros Titan - Rosenbauer- signální žlutá - 4 ks, Svítilna integrovaná LED pro přilbu Heros Titan - 4 ks, Zásahová obuv Fire Hero 3 - 4 ks | H10: Zásahový oblek FireRexClasic FR3-kompletinvestiční - 4 ks, Nápis reflexní Hasiči Bílá - pro zásahové obleky GoodPRO - 4 ks, Kukla otvor - obličej - NOMEX - DEVA - 4 ks, Přilba zásahová Heros Titan - Rosenbauer- signální žlutá - 4 ks, Svítilna integrovaná LED pro přilbu Heros Titan - 4 ks, Zásahová obuv Fire Hero 3 - 4 ks | I10: 174800 | J10: 87400 | K10: 50 | L10: 87400 | M10: 50 | N10: 174800 | O10: 87400 | P10: 50 | Q10: ANO | R10: 7 | S10: 2.1 | T10: 7 | U10: 0.7 | V10: 2.8 | W10: 15 | X10: 1.5 | Y10: 15 | Z10: 7.5 | AA10: 9 | AB10: 11.8 | AC10: OLP/02023/2025 | AE10: 76 | AF10: Bílá | AG10: 46343 | AH10: =_xlfn.XLOOKUP(C10,#REF!,#REF!,"Nenalezeno!") ->  | AI10: starosta | AJ10: 00262668 | AL10: 63229574/0600 | AM10: 174 800 Kč | AN10: 87 400,00 Kč | AO10: =Slovy(O10) -> osmdesát sedmtisíc čtyřista | AP10: 100% | AQ10: 50,00% | AR10: 50,00% | AV10: 322
A11: 131 | B11: Obec | C11: Bílý Kostel nad Nisou | D11: Pořízení prostředků požární ochrany - U4 | E11: U4) Pořízení, obnova, doplnění a opravy věcných prostředků požární ochrany pro čerpání vody zejména v souvislosti se záplavami a povodněmi | F11: 4 | G11: Heron elektrocentrála benzínová 13HP/6,0kW (400V), 2x2,2kW (230V) - 1 ks, Ponorné kalové čerpadlo Rössle MEGA - 1 ks, Čerpadlo plovoucí POSEIDON 1200 Honda GCVx200 - 1 ks | H11: Heron elektrocentrála benzínová 13HP/6,0kW (400V), 2x2,2kW (230V) - 1 ks, Ponorné kalové čerpadlo Rössle MEGA - 1 ks | I11: 85977 | J11: 60000 | K11: 69.79 | L11: 25977 | M11: 30.21 | N11: 45187 | O11: 31536 | P11: 69.79 | Q11: ANO plovoucí čerpadlo Poseidon 1200 nesplňuje požadavek na minimální průtok 1500 l/min | R11: 7 | S11: 2.1 | T11: 0 | U11: 0 | V11: 2.1 | W11: 15 | X11: 1.5 | Y11: 15 | Z11: 7.5 | AA11: 9 | AB11: 11.1 | AC11: OLP/01991/2025 | AE11: 206 | AF11: Bílý Kostel nad Nisou | AG11: 46331 | AH11: =_xlfn.XLOOKUP(C11,#REF!,#REF!,"Nenalezeno!") ->  | AI11: starosta | AJ11: 00672106 | AK11: CZ00672106 | AL11: 94-217461/0710 | AM11: 45 187 Kč | AN11: 31 536,00 Kč | AO11: =Slovy(O11) -> třicet jedentisíc pětset třicet šest | AP11: 100% | AQ11: 69,79% | AR11: 30,21% | AV11: 116
A12: 133 | B12: Obec | C12: Bílý Kostel nad Nisou | D12: Pořízení prostředků požární ochrany - U6a | E12: U6) Pořízení, obnova, doplnění, opravy a výstavba: a)pořízení, obnova, doplnění a opravy věcných prostředků požární ochrany, ochranných prostředků k provádění speciálních činností při zásazích v souvislosti s mimořádnými událostmi | F12: 6c | G12: Hadice C52 s konc./20m PH zásah Fire Gold - 10 ks, Hadice B65 s konc./20m PH Fire Orange Al - 10 ks | H12: Hadice C52 s konc./20m PH zásah Fire Gold - 10 ks, Hadice B65 s konc./20m PH Fire Orange Al - 10 ks | I12: 81213 | J12: 56500 | K12: 69.57 | L12: 24713 | M12: 30.43 | N12: 81213 | O12: 56500 | P12: 69.57 | Q12: ANO | R12: 7 | S12: 2.1 | T12: 0 | U12: 0 | V12: 2.1 | W12: 15 | X12: 1.5 | Y12: 7 | Z12: 3.5 | AA12: 5 | AB12: 7.1 | AC12: OLP/01994/2025 | AE12: 206 | AF12: Bílý Kostel nad Nisou | AG12: 46331 | AH12: =_xlfn.XLOOKUP(C12,#REF!,#REF!,"Nenalezeno!") ->  | AI12: starosta | AJ12: 00672106 | AK12: CZ00672106 | AL12: 94-217461/0710 | AM12: 81 213 Kč | AN12: 56 500,00 Kč | AO12: =Slovy(O12) -> padesát šesttisíc pětset | AP12: 100% | AQ12: 69,57% | AR12: 30,43% | AV12: 99
A13: 134 | B13: Obec | C13: Bílý Kostel nad Nisou | D13: Pořízení prostředků požární ochrany – U6c | E13: U6) Pořízení, obnova, doplnění, opravy a výstavba: c)pořízení, obnova, doplnění a opravy věcných prostředků požární ochrany mimo prostředků uvedených v U5) a U6)a) | F13: 6c | G13: Přejezdový můstek - gumový 2xB - 2 ks, Proudnice kombinovaná TurboSupon 500 C52 - 2 ks, Rozdělovač B-CBC s kulovými uzávěry TKW - 1 ks, Savice 2,5m se šroubením Profi - (žlutá) + prodlouž. Šr - 4 ks, Sekeromotyka 2 kg - 2 ks, Fiskars X25 silná štípací sekera na dřevo - 1 ks, Lopatka dřevorubecká - malá - 1 ks, Koš sací PH - prodloužený náběh s motýlkem - 1 ks, Deska páteřní s popruhem - 1 ks, Lékárnička – Batoh vybavený dle vyhlášky 53/2010 III - 1 ks, Pila STIHL MS 362 C-M VW - 1 ks, Terč zastavovací svítící TCP01 - 1 ks, Kužel teleskopický svítící 450 mm - 3 ks, Lano ventilové 8x25 s karabinou - 2 ks, Upínací pás - popruh 5t 12 m×5 cm - 2 ks, Kleště štípací na tyče a svorníky 930 mm, průměr 13 mm - 1 ks, Sekera hasičská 2320 2,2kg - 1 ks, Sekera hasičská 2318 - 1 ks, Palice kovová 3 kg - 1 ks, Hák požární Al - 2 ks, Džberová stříkačka ruční plastová CTIF - 1 ks, Klíč 110/75 - 4 ks, Lano Static 11 barevné - 1 ks, Proudnice pěnotvorná S4 TKW bez uzávěru - 1 ks, Prodlužovací kabel na bubnu 20 m / 4 zásuvky / červený / PVC / 230 V / 1 mm2 - 1 ks, Přechod A110/B75 - 1 ks, Přechod C52/D25 kovaný - 1 ks, Hasicí přístroj práškový P6PMST 34A 6kg - 1 ks, Přiměšovač AWG Z4 - 1 ks, Savice přiměšovače D25 / 1,5m - 1 ks, Sběrač S110 a 2x B75 - 1 ks | H13: Přejezdový můstek - gumový 2xB - 2 ks, Proudnice kombinovaná TurboSupon 500 C52 - 2 ks, Rozdělovač B-CBC s kulovými uzávěry TKW - 1 ks, Savice 2,5m se šroubením Profi - (žlutá) + prodlouž. Šr - 4 ks, Sekeromotyka 2 kg - 2 ks, Fiskars X25 silná štípací sekera na dřevo - 1 ks, Lopatka dřevorubecká - malá - 1 ks, Koš sací PH - prodloužený náběh s motýlkem - 1 ks, Deska páteřní s popruhem - 1 ks, Lékárnička – Batoh vybavený dle vyhlášky 53/2010 III - 1 ks, Pila STIHL MS 362 C-M VW - 1 ks, Terč zastavovací svítící TCP01 - 1 ks, Kužel teleskopický svítící 450 mm - 3 ks, Lano ventilové 8x25 s karabinou - 2 ks, Upínací pás - popruh 5t 12 m×5 cm - 2 ks, Kleště štípací na tyče a svorníky 930 mm, průměr 13 mm - 1 ks, Sekera hasičská 2320 2,2kg - 1 ks, Sekera hasičská 2318 - 1 ks, Palice kovová 3 kg - 1 ks, Hák požární Al - 2 ks, Džberová stříkačka ruční plastová CTIF - 1 ks, Klíč 110/75 - 4 ks, Lano Static 11 barevné - 1 ks, Proudnice pěnotvorná S4 TKW bez uzávěru - 1 ks, Prodlužovací kabel na bubnu 20 m / 4 zásuvky / červený / PVC / 230 V / 1 mm2 - 1 ks, Přechod A110/B75 - 1 ks, Přechod C52/D25 kovaný - 1 ks, Hasicí přístroj práškový P6PMST 34A 6kg - 1 ks, Přiměšovač AWG Z4 - 1 ks, Savice přiměšovače D25 / 1,5m - 1 ks, Sběrač S110 a 2x B75 - 1 ks | I13: 125314 | J13: 75000 | K13: 59.85 | L13: 50314 | M13: 40.15 | N13: 125314 | O13: 75000 | P13: 59.85 | Q13: ANO | R13: 7 | S13: 2.1 | T13: 0 | U13: 0 | V13: 2.1 | W13: 15 | X13: 1.5 | Y13: 7 | Z13: 3.5 | AA13: 5 | AB13: 7.1 | AC13: OLP/01995/2025 | AE13: 206 | AF13: Bílý Kostel nad Nisou | AG13: 46331 | AH13: =_xlfn.XLOOKUP(C13,#REF!,#REF!,"Nenalezeno!") ->  | AI13: starosta | AJ13: 00672106 | AK13: CZ00672106 | AL13: 94-217461/0710 | AM13: 125 314 Kč | AN13: 75 000,00 Kč | AO13: =Slovy(O13) -> sedmdesát pěttisíc | AP13: 100% | AQ13: 59,85% | AR13: 40,15% | AV13: 1256
A14: 171 | B14: Obec | C14: Bozkov | D14: Pořízení navijáku pro JSDH Bozkov | E14: U6,c)pořízení, obnova, doplnění a opravy věcných prostředků požární ochrany mimo prostředků uvedených v U5) a U6)a). | F14: 6b | G14: Naviják pro DA - 1 ks | H14: Naviják pro DA - 1 ks | I14: 77755 | J14: 46653 | K14: 60 | L14: 31102 | M14: 40 | N14: 77755 | O14: 46653 | P14: 60 | Q14: ANO | R14: 7 | S14: 2.1 | T14: 0 | U14: 0 | V14: 2.1 | W14: 15 | X14: 1.5 | Y14: 7 | Z14: 3.5 | AA14: 5 | AB14: 7.1 | AC14: OLP/02032/2025 | AE14: 270 | AF14: Bozkov | AG14: 51213 | AH14: =_xlfn.XLOOKUP(C14,#REF!,#REF!,"Nenalezeno!") ->  | AI14: starosta | AJ14: 00275611 | AK14: CZ00275611 | AL14: 94-50313451/0710 | AM14: 77 755 Kč | AN14: 46 653,00 Kč | AO14: =Slovy(O14) -> čtyřicet šesttisíc šestset padesát tři | AP14: 100% | AQ14: 60,00% | AR14: 40,00% | AV14: 21
A15: 37 | B15: Obec | C15: Brniště | D15: Pořízení věcných prostředků | E15: Pořízení potřebného vybavení pro JSDH Brniště | F15: 6c | G15: motykohrábě - 2 ks, Svítilna PARAT PX1 LED Ex - 10 ks, čerpadlo kalové HERON EMPH 80W SET se sacím košem s klapkou - 1 ks, opasek polohovací pro hasiče - FIREMAN s rychlosponou Q-RS - 4 ks, držák svítilny PX1 pro přilbu DRAEGER HPS 3500/SICOR EOM - 10 ks | H15: motykohrábě - 2 ks, Svítilna PARAT PX1 LED Ex - 10 ks, čerpadlo kalové HERON EMPH 80W SET se sacím košem s klapkou - 1 ks, opasek polohovací pro hasiče - FIREMAN s rychlosponou Q-RS - 4 ks, držák svítilny PX1 pro přilbu DRAEGER HPS 3500/SICOR EOM - 10 ks | I15: 66891 | J15: 33445 | K15: 50 | L15: 33446 | M15: 50 | N15: 66891 | O15: 33445 | P15: 50 | Q15: ANO | R15: 15 | S15: 4.5 | T15: 7 | U15: 0.7 | V15: 5.2 | W15: 15 | X15: 1.5 | Y15: 7 | Z15: 3.5 | AA15: 5 | AB15: 10.2 | AC15: OLP/01911/2025 | AE15: 102 | AF15: Brniště | AG15: 47129 | AH15: =_xlfn.XLOOKUP(C15,#REF!,#REF!,"Nenalezeno!") ->  | AI15: starosta | AJ15: 00260401 | AL15: 94-517421/0710 | AM15: 66 891 Kč | AN15: 33 445,00 Kč | AO15: =Slovy(O15) -> třicet třitisíce čtyřista čtyřicet pět | AP15: 100% | AQ15: 50,00% | AR15: 50,00% | AV15: 254
A16: 38 | B16: Obec | C16: Brniště | D16: Pořízení zásahových kompletů | E16: Pořízení hasičských zásahových kompletů a přileb pro potřeby JSDH Brniště | F16: 2 | G16: Zásahové komplety - 4 ks, Přilby - 4 ks | H16: Zásahové komplety - 4 ks, Přilby - 4 ks | I16: 58660 | J16: 29330 | K16: 50 | L16: 29330 | M16: 50 | N16: 58660 | O16: 29330 | P16: 50 | Q16: ANO | R16: 15 | S16: 4.5 | T16: 7 | U16: 0.7 | V16: 5.2 | W16: 15 | X16: 1.5 | Y16: 15 | Z16: 7.5 | AA16: 9 | AB16: 14.2 | AC16: OLP/01912/2025 | AE16: 102 | AF16: Brniště | AG16: 47129 | AH16: =_xlfn.XLOOKUP(C16,#REF!,#REF!,"Nenalezeno!") ->  | AI16: starosta | AJ16: 00260401 | AL16: 94-517421/0710 | AM16: 58 660 Kč | AN16: 29 330,00 Kč | AO16: =Slovy(O16) -> dvacet devěttisíc třista třicet | AP16: 100% | AQ16: 50,00% | AR16: 50,00% | AV16: 39
A17: 12 | B17: Obec | C17: Bulovka | D17: NÁKUP OCHRANNÝCH PROSTŘEDKŮ PO | E17: Vybavení členů výjezdové jednotky SDH Bulovka třívrstvými zásahovými obleky, botami a rukavicemi z | F17: 2 | G17: zásahové boty - 4 ks, zásahové obleky třívrstvé - 2 ks, zásahové rukavice - 3 ks | H17: zásahové boty - 4 ks, zásahové obleky třívrstvé - 2 ks, zásahové rukavice - 3 ks | I17: 75000 | J17: 37000 | K17: 49.33 | L17: 38000 | M17: 50.67 | N17: 75000 | O17: 37000 | P17: 49.33 | Q17: ANO | R17: 5 | S17: 1.5 | T17: 7 | U17: 0.7 | V17: 2.2 | W17: 15 | X17: 1.5 | Y17: 15 | Z17: 7.5 | AA17: 9 | AB17: 11.2 | AC17: OLP/01891/2025 | AE17: 101 | AF17: Bulovka | AG17: 46401 | AH17: =_xlfn.XLOOKUP(C17,#REF!,#REF!,"Nenalezeno!") ->  | AI17: starosta | AJ17: 00262692 | AL17: 94-2112081/0710 | AM17: 75 000 Kč | AN17: 37 000,00 Kč | AO17: =Slovy(O17) -> třicet sedmtisíc | AP17: 100% | AQ17: 49,33% | AR17: 50,67% | AV17: 80
A18: 115 | B18: Obec | C18: Bulovka | D18: OBNOVA PROSTŘEDKŮ POŽÁRNÍ OCHRANY | E18: Dovybavení a obnova věcných prostředků PO VJ SDH Bulovka | F18: 6c | G18: hadice C52 20m a spojky - 8 ks, hadice B75 20 m a spojky - 2 ks, hadice B65 20 m a spojky - 2 ks, rozdělovač pákový - 1 ks, proudnice - 1 ks | H18: hadice C52 20m a spojky - 8 ks, hadice B75 20 m a spojky - 2 ks, hadice B65 20 m a spojky - 2 ks, rozdělovač pákový - 1 ks, proudnice - 1 ks | I18: 56600 | J18: 28000 | K18: 49.47 | L18: 28600 | M18: 50.53 | N18: 56600 | O18: 28000 | P18: 49.47 | Q18: ANO | R18: 15 | S18: 4.5 | T18: 7 | U18: 0.7 | V18: 5.2 | W18: 15 | X18: 1.5 | Y18: 7 | Z18: 3.5 | AA18: 5 | AB18: 10.2 | AC18: OLP/01977/2025 | AE18: 101 | AF18: Bulovka | AG18: 46401 | AH18: =_xlfn.XLOOKUP(C18,#REF!,#REF!,"Nenalezeno!") ->  | AI18: starostka | AJ18: 00262692 | AL18: 94-2112081/0710 | AM18: 56 600 Kč | AN18: 28 000,00 Kč | AO18: =Slovy(O18) -> dvacet osmtisíc | AP18: 100% | AQ18: 49,47% | AR18: 50,53% | AV18: 140
A19: 116 | B19: Obec | C19: Bulovka | D19: OPRAVA CAS | E19: NUTNÉ PROVOZNÍ OPRAVY CAS | F19: 6b | G19: OPRAVA CAS - 1 soubor | H19: OPRAVA CAS - 1 soubor | I19: 50000 | J19: 24000 | K19: 48 | L19: 26000 | M19: 52 | N19: 50000 | O19: 24000 | P19: 48 | Q19: ANO | R19: 7 | S19: 2.1 | T19: 7 | U19: 0.7 | V19: 2.8 | W19: 15 | X19: 1.5 | Y19: 7 | Z19: 3.5 | AA19: 5 | AB19: 7.8 | AC19: OLP/01978/2025 | AE19: 101 | AF19: Bulovka | AG19: 46401 | AH19: =_xlfn.XLOOKUP(C19,#REF!,#REF!,"Nenalezeno!") ->  | AI19: starostka | AJ19: 00262692 | AL19: 94-2112081/0710 | AM19: 50 000 Kč | AN19: 24 000,00 Kč | AO19: =Slovy(O19) -> dvacet čtyřitisíce | AP19: 100% | AQ19: 48,00% | AR19: 52,00% | AV19: 21
A20: 89 | B20: Město | C20: Česká Lípa | D20: "Nákup věcných prostředků - povodně - JSDHO Stará Lípa" | E20: Projekt bude využit na pořízení, obnovu, doplnění a opravy věcných prostředků požární ochrany pro čerpání vody, zejména v souvislosti se záplavami a povodněmi. | F20: 4 | G20: Kalové čerpadlo STIHL WP 900 - 1 ks, Kalové elektrické čerpadlo MAST T8 - 1 ks | H20: Kalové čerpadlo STIHL WP 900 - 1 ks, Kalové elektrické čerpadlo MAST T8 - 1 ks | I20: 68500 | J20: 38000 | K20: 55.47 | L20: 30500 | M20: 44.53 | N20: 68500 | O20: 38000 | P20: 55.47 | Q20: ANO | R20: 15 | S20: 4.5 | T20: 0 | U20: 0 | V20: 4.5 | W20: 15 | X20: 1.5 | Y20: 15 | Z20: 7.5 | AA20: 9 | AB20: 13.5 | AC20: OLP/01956/2025 | AE20: náměstí T. G. Masaryka 1/1 | AF20: Česká Lípa | AG20: 47001 | AH20: =_xlfn.XLOOKUP(C20,#REF!,#REF!,"Nenalezeno!") ->  | AI20: starostka | AJ20: 00260428 | AK20: CZ00260428 | AL20: 94-6214421/0710 | AM20: 68 500 Kč | AN20: 38 000,00 Kč | AO20: =Slovy(O20) -> třicet osmtisíc | AP20: 100% | AQ20: 55,47% | AR20: 44,53% | AV20: 78
A21: 90 | B21: Město | C21: Česká Lípa | D21: "Požární ochrany - lesní požáry - JSDHO Stará Lípa" | E21: Projekt bude využit na obnovu, pořízení, doplnění a opravu věcných prostředků požární ochrany pro zásahy v souvislosti s likvidací lesních požárů, a to z důvodu předurčenosti jednotky v zařazení JPO II/I, dle poplachových plánů LK | F21: 6c | G21: Hadice C52 PH FIRE GOLD 20m se spojkami - 6 ks, Hadice B75 PH FIRE GOLD 20n se spojkami - 4 ks | H21: Hadice C52 PH FIRE GOLD 20m se spojkami - 6 ks, Hadice B75 PH FIRE GOLD 20n se spojkami - 4 ks | I21: 42258 | J21: 21000 | K21: 49.69 | L21: 21258 | M21: 50.31 | N21: 42258 | O21: 21000 | P21: 49.69 | Q21: ANO | R21: 15 | S21: 4.5 | T21: 7 | U21: 0.7 | V21: 5.2 | W21: 15 | X21: 1.5 | Y21: 7 | Z21: 3.5 | AA21: 5 | AB21: 10.2 | AC21: OLP/01957/2025 | AE21: náměstí T. G. Masaryka 1/1 | AF21: Česká Lípa | AG21: 47001 | AH21: =_xlfn.XLOOKUP(C21,#REF!,#REF!,"Nenalezeno!") ->  | AI21: starostka | AJ21: 260428 | AK21: CZ00260428 | AL21: 94-6214421/0710 | AM21: 42 258 Kč | AN21: 21 000,00 Kč | AO21: =Slovy(O21) -> dvacet jedentisíc | AP21: 100% | AQ21: 49,69% | AR21: 50,31% | AV21: 94
A22: 119 | B22: Město | C22: Česká Lípa | D22: "Nákup ochranných prostředků PO - JSDHO Stará Lípa" | E22: Projekt bude využit na nákup a doplnění ochranných prostředků požární ochrany, který je nezbytně nutný pořídit z důvodu předurčenosti JSDHO v zařazení JPO II/I, dle poplachových plánů LK. | F22: 2 | G22: Zásahový komplet jednovrstvý DEVA BUSFIRE - 4 ks, Zásahová obuv HAIX FIRE EAGLE HIGH - 4 ks, Kukla dvouvrstvá DEVOLD SPIRIT - 4 ks, Rukavice zásahové HUNTER Flexi - 4 ks, Rukavice rescue PENELOPE PLUS - 4 ks, Svítilna na přilbu PELI XP LED Z1 ATEX - 4 ks, Vesta REFLEX Pro s kapsami, včetně nápisů - 4 ks | H22: Zásahový komplet jednovrstvý DEVA BUSFIRE - 4 ks, Zásahová obuv HAIX FIRE EAGLE HIGH - 4 ks, Kukla dvouvrstvá DEVOLD SPIRIT - 4 ks, Rukavice zásahové HUNTER Flexi - 4 ks, Rukavice rescue PENELOPE PLUS - 4 ks, Svítilna na přilbu PELI XP LED Z1 ATEX - 4 ks, Vesta REFLEX Pro s kapsami, včetně nápisů - 4 ks | I22: 134704 | J22: 67000 | K22: 49.74 | L22: 67704 | M22: 50.26 | N22: 134704 | O22: 67000 | P22: 49.74 | Q22: ANO | R22: 15 | S22: 4.5 | T22: 7 | U22: 0.7 | V22: 5.2 | W22: 15 | X22: 1.5 | Y22: 15 | Z22: 7.5 | AA22: 9 | AB22: 14.2 | AC22: OLP/01979/2025 | AE22: náměstí T. G. Masaryka 1/1 | AF22: Česká Lípa | AG22: 47001 | AH22: =_xlfn.XLOOKUP(C22,#REF!,#REF!,"Nenalezeno!") ->  | AI22: starostka | AJ22: 00260428 | AK22: CZ00260428 | AL22: 94-6214421/0710 | AM22: 134 704 Kč | AN22: 67 000,00 Kč | AO22: =Slovy(O22) -> šedesát sedmtisíc | AP22: 100% | AQ22: 49,74% | AR22: 50,26% | AV22: 304
A23: 145 | B23: Město | C23: Česká Lípa | D23: „Nákup věcných prostředků - povodně – JSDHO Dobranov“ | E23: Projekt bude využit na doplnění věcných prostředků požární ochrany zejména v souvislosti se záplavami a povodněmi pro JSDHO Dobranov, kdy je tato jednotka primárně předurčena k ochraně obyvatelstva v rámci mimořádných událostí | F23: 6a | G23: Nebrzděný přívěs AVZ 41 N2 750 kg 4170 x 2000 mm - 1 ks | H23: Nebrzděný přívěs AVZ 41 N2 750 kg 4170 x 2000 mm - 1 ks | I23: 70000 | J23: 40000 | K23: 57.14 | L23: 30000 | M23: 42.86 | N23: 70000 | O23: 40000 | P23: 57.14 | Q23: ANO | R23: 15 | S23: 4.5 | T23: 0 | U23: 0 | V23: 4.5 | W23: 15 | X23: 1.5 | Y23: 15 | Z23: 7.5 | AA23: 9 | AB23: 13.5 | AC23: OLP/02000/2025 | AE23: náměstí T. G. Masaryka 1/1 | AF23: Česká Lípa | AG23: 47001 | AH23: =_xlfn.XLOOKUP(C23,#REF!,#REF!,"Nenalezeno!") ->  | AI23: starostka | AJ23: 00260428 | AK23: CZ00260428 | AL23: 94-6214421/0710 | AM23: 70 000 Kč | AN23: 40 000,00 Kč | AO23: =Slovy(O23) -> čtyřicet tisíc | AP23: 100% | AQ23: 57,14% | AR23: 42,86% | AV23: 55
A24: 169 | B24: Město | C24: Česká Lípa | D24: "Nákup věcných prostředků PO - JSDHO Stará Lípa" | E24: Projekt bude využit na nákup a doplnění ochranných prostředků požární ochrany, který je nezbytně nutný pořídit z důvodu předurčenosti jednotky v zařazení JPO II/I, dle poplachových plánů | F24: 3 | G24: Rescue hood PSS - záchranná vyváděcí kukla - 2 ks, Maska FPS 7730 M2-P-PC-EPDM, kandahár S-fix uni - 4 ks, Láhev kompozit 6,8/300bar, ventil Dräger EFV+potah na láhev L65B - 2 ks, Plicní automatika PSS-P (přetlak, krátká hadice) - 1 ks, Držák plicní autom | H24: Rescue hood PSS - záchranná vyváděcí kukla - 2 ks, Maska FPS 7730 M2-P-PC-EPDM, kandahár S-fix uni - 4 ks, Láhev kompozit 6,8/300bar, ventil Dräger EFV+potah na láhev L65B - 2 ks, Plicní automatika PSS-P (přetlak, krátká hadice) - 1 ks, Držák plicní autom | I24: 102676 | J24: 51000 | K24: 49.67 | L24: 51676 | M24: 50.33 | N24: 102676 | O24: 51000 | P24: 49.67 | Q24: ANO | R24: 15 | S24: 4.5 | T24: 7 | U24: 0.7 | V24: 5.2 | W24: 15 | X24: 1.5 | Y24: 15 | Z24: 7.5 | AA24: 9 | AB24: 14.2 | AC24: OLP/02029/2025 | AE24: náměstí T. G. Masaryka 1/1 | AF24: Česká Lípa | AG24: 47001 | AH24: =_xlfn.XLOOKUP(C24,#REF!,#REF!,"Nenalezeno!") ->  | AI24: starostka | AJ24: 00260428 | AK24: CZ00260428 | AL24: 94-6214421/0710 | AM24: 102 676 Kč | AN24: 51 000,00 Kč | AO24: =Slovy(O24) -> padesát jedentisíc | AP24: 100% | AQ24: 49,67% | AR24: 50,33% | AV24: 255
A25: 47 | B25: Obec | C25: Český Dub | D25: Pořízení a obnova osobních a ochranných prostředků PO | E25: Pořízení a obnova osobních a ochranných prostředků PO | F25: 2 | G25: zásahové rukavice (požáry) - 4 ks, zásahové rukavice (technické zásahy) - 4 ks, zásahový oblek vícevrstvý - 2 ks, zásahový oblek jednovrstvý - 2 ks, zásahová obuv - 2 ks, zásahová kukla - 4 ks, polohovací pás pro hasiče - 8 ks | H25: zásahové rukavice (požáry) - 4 ks, zásahové rukavice (technické zásahy) - 4 ks, zásahový oblek vícevrstvý - 2 ks, zásahový oblek jednovrstvý - 2 ks, zásahová obuv - 2 ks, zásahová kukla - 4 ks, polohovací pás pro hasiče - 8 ks | I25: 120000 | J25: 72000 | K25: 60 | L25: 48000 | M25: 40 | N25: 120000 | O25: 72000 | P25: 60 | Q25: ANO | R25: 15 | S25: 4.5 | T25: 0 | U25: 0 | V25: 4.5 | W25: 15 | X25: 1.5 | Y25: 15 | Z25: 7.5 | AA25: 9 | AB25: 13.5 | AC25: OLP/01919/2025 | AE25: nám. Bedřicha Smetany 1 | AF25: Český Dub | AG25: 46343 | AH25: =_xlfn.XLOOKUP(C25,#REF!,#REF!,"Nenalezeno!") ->  | AI25: starosta | AJ25: 00262722 | AK25: CZ00262722 | AL25: 63421574/0600 | AM25: 120 000 Kč | AN25: 72 000,00 Kč | AO25: =Slovy(O25) -> sedmdesát dvatisíce | AP25: 100% | AQ25: 60,00% | AR25: 40,00% | AV25: 226
A26: 48 | B26: Město | C26: Český Dub | D26: Pořízení věcných prostředků PO pro likvidaci nebezpečných látek | E26: Pořízení kompletních izolačních dýchacích přístrojů vč. tlakové láhve a masky | F26: 3 | G26: izolační dýchací přístroj přetlakový - 4 ks, kompozitní tlaková láhev 6,8l 30MPa - 4 ks, ochranná maska k IDP - 4 ks, obal na tlakové láhve - 4 ks | H26: izolační dýchací přístroj přetlakový - 4 ks, kompozitní tlaková láhev 6,8l 30MPa - 4 ks, ochranná maska k IDP - 4 ks, obal na tlakové láhve - 4 ks | I26: 208000 | J26: 100000 | K26: 48.08 | L26: 108000 | M26: 51.92 | N26: 208000 | O26: 100000 | P26: 48.08 | Q26: ANO | R26: 15 | S26: 4.5 | T26: 7 | U26: 0.7 | V26: 5.2 | W26: 15 | X26: 1.5 | Y26: 15 | Z26: 7.5 | AA26: 9 | AB26: 14.2 | AC26: OLP/01920/2025 | AE26: nám. Bedřicha Smetany 1 | AF26: Český Dub | AG26: 46343 | AH26: =_xlfn.XLOOKUP(C26,#REF!,#REF!,"Nenalezeno!") ->  | AI26: starosta | AJ26: 00262722 | AK26: CZ00262722 | AL26: 63421574/0600 | AM26: 208 000 Kč | AN26: 100 000,00 Kč | AO26: =Slovy(O26) -> jednosto tisíc | AP26: 100% | AQ26: 48,08% | AR26: 51,92% | AV26: 146
A27: 49 | B27: Město | C27: Český Dub | D27: Pořízení věcných prostředků PO pro čerpání vody | E27: Pořízení věcných prostředků PO pro čerpání vody, pořízení přenosného plovoucího čerpadla a hasičského vysavače | F27: 4 | G27: přenosné plovoucí čerpadlo o min. průtoku 1500l/min. a výtlakem vody B75 - 1 ks, vysavač hasičský elektrický o min. průtoku 20000l/hodinu a nádrží min. objem 70l vč. Příslušenství - 1 ks | H27: přenosné plovoucí čerpadlo o min. průtoku 1500l/min. a výtlakem vody B75 - 1 ks, vysavač hasičský elektrický o min. průtoku 20000l/hodinu a nádrží min. objem 70l vč. Příslušenství - 1 ks | I27: 142000 | J27: 99400 | K27: 70 | L27: 42600 | M27: 30 | N27: 142000 | O27: 99400 | P27: 70 | Q27: ANO | R27: 15 | S27: 4.5 | T27: 0 | U27: 0 | V27: 4.5 | W27: 15 | X27: 1.5 | Y27: 15 | Z27: 7.5 | AA27: 9 | AB27: 13.5 | AC27: OLP/01921/2025 | AE27: nám. Bedřicha Smetany 1 | AF27: Český Dub | AG27: 46343 | AH27: =_xlfn.XLOOKUP(C27,#REF!,#REF!,"Nenalezeno!") ->  | AI27: starosta | AJ27: 00262722 | AK27: CZ00262722 | AL27: 63421574/0600 | AM27: 142 000 Kč | AN27: 99 400,00 Kč | AO27: =Slovy(O27) -> devadesát devěttisíc čtyřista | AP27: 100% | AQ27: 70,00% | AR27: 30,00% | AV27: 186
A28: 50 | B28: Město | C28: Český Dub | D28: Pořízení věcných prostředků PO pro zásahy v souvislosti s likvidací lesních požárů | E28: Pořízení věcných prostředků PO pro zásahy v souvislosti s likvidací lesních požárů | F28: 5 | G28: batoh - D-program kompletní - 1 ks, hasící zádový vak o objemu min. 20l - 1 ks, tlumice - 2 ks, motykohrábě pro lesní požáry Gorgui - 2 ks, ochranná maska pro hasiče na lesní požár - 8 ks | H28: batoh - D-program kompletní - 1 ks, hasící zádový vak o objemu min. 20l - 1 ks, tlumice - 2 ks, motykohrábě pro lesní požáry Gorgui - 2 ks, ochranná maska pro hasiče na lesní požár - 8 ks | I28: 71600 | J28: 42960 | K28: 60 | L28: 28640 | M28: 40 | N28: 71600 | O28: 42960 | P28: 60 | Q28: ANO | R28: 15 | S28: 4.5 | T28: 0 | U28: 0 | V28: 4.5 | W28: 15 | X28: 1.5 | Y28: 15 | Z28: 7.5 | AA28: 9 | AB28: 13.5 | AC28: OLP/01922/2025 | AE28: nám. Bedřicha Smetany 1 | AF28: Český Dub | AG28: 46343 | AH28: =_xlfn.XLOOKUP(C28,#REF!,#REF!,"Nenalezeno!") ->  | AI28: starosta | AJ28: 00262722 | AK28: CZ00262722 | AL28: 63421574/0600 | AM28: 71 600 Kč | AN28: 42 960,00 Kč | AO28: =Slovy(O28) -> čtyřicet dvatisíce devětset šedesát | AP28: 100% | AQ28: 60,00% | AR28: 40,00% | AV28: 187
A29: 51 | B29: Město | C29: Český Dub | D29: Oprava AZ 30 - výměna lan | E29: Oprava AZ 30 - výměna poškozených lan na žebříkové sadě, kontrola příp. výměna tlakových hadic, výměna hydraulického oleje | F29: 6b | G29: oprava AZ 30 - 1 ks | H29: oprava AZ 30 - 1 ks | I29: 45000 | J29: 27000 | K29: 60 | L29: 18000 | M29: 40 | N29: 45000 | O29: 27000 | P29: 60 | Q29: ANO | R29: 15 | S29: 4.5 | T29: 0 | U29: 0 | V29: 4.5 | W29: 15 | X29: 1.5 | Y29: 0 | Z29: 0 | AA29: 1.5 | AB29: 6 | AC29: OLP/01923/2025 | AE29: nám. Bedřicha Smetany 1 | AF29: Český Dub | AG29: 46343 | AH29: =_xlfn.XLOOKUP(C29,#REF!,#REF!,"Nenalezeno!") ->  | AI29: starosta | AJ29: 00262722 | AK29: CZ00262722 | AL29: 63421574/0600 | AM29: 45 000 Kč | AN29: 27 000,00 Kč | AO29: =Slovy(O29) -> dvacet sedmtisíc | AP29: 100% | AQ29: 60,00% | AR29: 40,00% | AV29: 19
A30: 152 | B30: Město | C30: Desná | D30: Nákup osobních ochranných prostředků | E30: U2) Doplnění a výměna osobních ochranných prostředků. | F30: 6c | G30: Zásahový oblek - 2 ks, Přilba zásahová - 2 ks, Brodící holínky - 2 ks, Maska na lesní požáry - 4 ks, Rukavice zásahové - 4 ks, Rukavice záchranářské - 4 ks | H30: Zásahový oblek - 2 ks, Přilba zásahová - 2 ks, Brodící holínky - 2 ks, Maska na lesní požáry - 4 ks, Rukavice zásahové - 4 ks, Rukavice záchranářské - 4 ks | I30: 89200 | J30: 53520 | K30: 60 | L30: 35680 | M30: 40 | N30: 89200 | O30: 53520 | P30: 60 | Q30: ANO | R30: 15 | S30: 4.5 | T30: 0 | U30: 0 | V30: 4.5 | W30: 15 | X30: 1.5 | Y30: 7 | Z30: 3.5 | AA30: 5 | AB30: 9.5 | AC30: OLP/02009/2025 | AE30: Krkonošská 318 | AF30: Desná | AG30: 46861 | AH30: =_xlfn.XLOOKUP(C30,#REF!,#REF!,"Nenalezeno!") ->  | AI30: starosta | AJ30: 00262307 | AK30: CZ00262307 | AL30: 963256359/0800 | AM30: 89 200 Kč | AN30: 53 520,00 Kč | AO30: =Slovy(O30) -> padesát třitisíce pětset dvacet | AP30: 100% | AQ30: 60,00% | AR30: 40,00% | AV30: 155
A31: 153 | B31: Město | C31: Desná | D31: Nákup věcných prostředků | E31: U6c) Věcné prostředky, které doplní nebo nahradí stávající věcné prostředky jednotky | F31: 6c | G31: motorová pila - 1 ks, přívěsný vozík s plachtou - 1 ks, tlumice - 3 ks, sada na čištění komínů - 1 ks, elektrocentrála - 1 ks,záchranné lano - 2 ks, výměna majáku na vozidle Scania CAS 20 - 1 ks | H31: motorová pila - 1 ks, přívěsný vozík s plachtou - 1 ks, tlumice - 3 ks, sada na čištění komínů - 1 ks, elektrocentrála - 1 ks,záchranné lano - 2 ks, výměna majáku na vozidle Scania CAS 20 - 1 ks | I31: 199900 | J31: 119940 | K31: 60 | L31: 79960 | M31: 40 | N31: 199900 | O31: 119940 | P31: 60 | Q31: ANO | R31: 15 | S31: 4.5 | T31: 0 | U31: 0 | V31: 4.5 | W31: 15 | X31: 1.5 | Y31: 7 | Z31: 3.5 | AA31: 5 | AB31: 9.5 | AC31: OLP/02010/2025 | AE31: Krkonošská 318 | AF31: Desná | AG31: 46861 | AH31: =_xlfn.XLOOKUP(C31,#REF!,#REF!,"Nenalezeno!") ->  | AI31: starosta | AJ31: 00262307 | AK31: CZ00262307 | AL31: 963256359/0800 | AM31: 199 900 Kč | AN31: 119 940,00 Kč | AO31: =Slovy(O31) -> jednosto devatenáct tisíc devětset čtyřicet | AP31: 100% | AQ31: 60,00% | AR31: 40,00% | AV31: 195
A32: 154 | B32: Město | C32: Desná | D32: Oprava hasičárny Desná | E32: U6f) Výměna motorů u pojízdných vrat a oprava elektrorozvodů v garážích jednotky hasičů | F32: 6f | G32: montáž elektrických pohonů, včetně záložních zdrojů - 4 ks, oprava elektrorozvodů - 1 ks | H32: montáž elektrických pohonů, včetně záložních zdrojů - 4 ks, oprava elektrorozvodů - 1 ks | I32: 181800 | J32: 90900 | K32: 50 | L32: 90900 | M32: 50 | N32: 181800 | O32: 90900 | P32: 50 | Q32: ANO | R32: 15 | S32: 4.5 | T32: 7 | U32: 0.7 | V32: 5.2 | W32: 15 | X32: 1.5 | Y32: 0 | Z32: 0 | AA32: 1.5 | AB32: 6.7 | AC32: OLP/02011/2025 | AE32: Krkonošská 318 | AF32: Desná | AG32: 46861 | AH32: =_xlfn.XLOOKUP(C32,#REF!,#REF!,"Nenalezeno!") ->  | AI32: starosta | AJ32: 00262307 | AK32: CZ00262307 | AL32: 963256359/0800 | AM32: 181 800 Kč | AN32: 90 900,00 Kč | AO32: =Slovy(O32) -> devadesát tisíc devětset | AP32: 100% | AQ32: 50,00% | AR32: 50,00% | AV32: 88
A33: 82 | B33: Obec | C33: Dětřichov | D33: Nákup přenosného plovoucího čerpadla | E33: Nákup přenosného plovoucího čerpadla | F33: 4 | G33: Přenosné plovoucí čerpadlo - 1 ks | H33: Přenosné plovoucí čerpadlo - 1 ks | I33: 56000 | J33: 38000 | K33: 67.86 | L33: 18000 | M33: 32.14 | N33: 56000 | O33: 38000 | P33: 67.86 | Q33: ANO | R33: 7 | S33: 2.1 | T33: 0 | U33: 0 | V33: 2.1 | W33: 15 | X33: 1.5 | Y33: 15 | Z33: 7.5 | AA33: 9 | AB33: 11.1 | AC33: OLP/01950/2025 | AE33: 2 | AF33: Dětřichov | AG33: 46401 | AH33: =_xlfn.XLOOKUP(C33,#REF!,#REF!,"Nenalezeno!") ->  | AI33: starostka | AJ33: 00831468 | AL33: 24323461/0100 | AM33: 56 000 Kč | AN33: 38 000,00 Kč | AO33: =Slovy(O33) -> třicet osmtisíc | AP33: 100% | AQ33: 67,86% | AR33: 32,14% | AV33: 33
A34: 83 | B34: Obec | C34: Dětřichov | D34: Nákup ochranných prostředků PO | E34: U2) Pořízení, obnova, doplnění osobních ochranných prostředků požární ochrany jednovrstvé a vícevrstvé zásahové obleky, zásahové boty, zásahové rukavice, polohovací opasky pro hasiče, ochranné kukly | F34: 2 | G34: Zásahový oděv jednovrstvý - komplet - 4 ks, Zásahová obuv - 4 ks, Ochranná kukla - 4 ks, Rukavice zásahové - 4 ks, Opasek polohovací AP s karabinou - 4 ks, Nášivka HASIČI na zásahové kabáty - 4 ks | H34: Zásahový oděv jednovrstvý - komplet - 4 ks, Zásahová obuv - 4 ks, Ochranná kukla - 4 ks, Rukavice zásahové - 4 ks, Opasek polohovací AP s karabinou - 4 ks, Nášivka HASIČI na zásahové kabáty - 4 ks | I34: 107470 | J34: 64000 | K34: 59.55 | L34: 43470 | M34: 40.45 | N34: 107470 | O34: 64000 | P34: 59.55 | Q34: ANO | R34: 7 | S34: 2.1 | T34: 0 | U34: 0 | V34: 2.1 | W34: 15 | X34: 1.5 | Y34: 15 | Z34: 7.5 | AA34: 9 | AB34: 11.1 | AC34: OLP/01951/2025 | AE34: 2 | AF34: Dětřichov | AG34: 46401 | AH34: =_xlfn.XLOOKUP(C34,#REF!,#REF!,"Nenalezeno!") ->  | AI34: starostka | AJ34: 00831468 | AL34: 24323461/0100 | AM34: 107 470 Kč | AN34: 64 000,00 Kč | AO34: =Slovy(O34) -> šedesát čtyřitisíce | AP34: 100% | AQ34: 59,55% | AR34: 40,45% | AV34: 196
A35: 63 | B35: Obec | C35: Dlouhý Most | D35: Pořízení věcných prostředků požární ochrany pro SDH Dlouhý Most | E35: Pořízení věcných prostředků požární ochrany - pořízení vybavení pro jednotku SDH | F35: 6c | G35: zásahový kabát DEVA Bushfire - 1 ks, zásahové kalhoty DEVA Bushfire - 1 ks, zásahová obuv Holík - 1 ks, savice 1,6m - 3 ks, savice 2,5m - 2 ks, Kužel teleskopický LED - 2 ks, Terč stavěcí plast LED - 2 ks, Lano - 1 ks, Sorbent Eco Dry 10 kg - 5 ks | H35: zásahový kabát DEVA Bushfire - 1 ks, zásahové kalhoty DEVA Bushfire - 1 ks, zásahová obuv Holík - 1 ks, savice 1,6m - 3 ks, savice 2,5m - 2 ks, Kužel teleskopický LED - 2 ks, Terč stavěcí plast LED - 2 ks, Lano - 1 ks, Sorbent Eco Dry 10 kg - 5 ks | I35: 30470 | J35: 18280 | K35: 59.99 | L35: 12190 | M35: 40.01 | N35: 30470 | O35: 18280 | P35: 59.99 | Q35: ANO | R35: 7 | S35: 2.1 | T35: 0 | U35: 0 | V35: 2.1 | W35: 15 | X35: 1.5 | Y35: 7 | Z35: 3.5 | AA35: 5 | AB35: 7.1 | AC35: OLP/01931/2025 | AE35: 95 | AF35: Dlouhý Most | AG35: 46312 | AH35: =_xlfn.XLOOKUP(C35,#REF!,#REF!,"Nenalezeno!") ->  | AI35: starostka | AJ35: 46744941 | AL35: 505061933/0300 | AM35: 30 470 Kč | AN35: 18 280,00 Kč | AO35: =Slovy(O35) -> osmnáct tisíc dvěstě osmdesát | AP35: 100% | AQ35: 59,99% | AR35: 40,01% | AV35: 248
A36: 226 | B36: Město | C36: Doksy | D36: 1.1 Podpora jednotek požární ochrany obcí Libereckého kraje | E36: U2 - Pořízení, obnova, doplnění a opravy níže vyjmenovaných osobních ochranných prostředků požární ochrany | F36: 2 | G36: zásahový oděv vícevrstvý - 2 komplety, zásahový oděv jednovrstvý - 4 komplety, obuv zásahová - 1 pár, svítilna Ledlencer P7 code - 4 ks, vesta výstražná dle GŘ-hasiči - 5 ks | H36: zásahový oděv vícevrstvý - 2 komplety, zásahový oděv jednovrstvý - 4 komplety, obuv zásahová - 1 pár, svítilna Ledlencer P7 code - 4 ks, vesta výstražná dle GŘ-hasiči - 5 ks | I36: 99954 | J36: 49000 | K36: 49.02 | L36: 50954 | M36: 50.98 | N36: 99954 | O36: 49000 | P36: 49.02 | Q36: ANO | R36: 15 | S36: 4.5 | T36: 7 | U36: 0.7 | V36: 5.2 | W36: 15 | X36: 1.5 | Y36: 15 | Z36: 7.5 | AA36: 9 | AB36: 14.2 | AC36: OLP/02076/2025 | AE36: náměstí Republiky 193 | AF36: Doksy | AG36: 47201 | AH36: =_xlfn.XLOOKUP(C36,#REF!,#REF!,"Nenalezeno!") ->  | AI36: starosta | AJ36: 00260444 | AK36: CZ00260444 | AL36: 94-816421/0710 | AM36: 99 954 Kč | AN36: 49 000,00 Kč | AO36: =Slovy(O36) -> čtyřicet devěttisíc | AP36: 100% | AQ36: 49,02% | AR36: 50,98% | AV36: 173
A37: 227 | B37: Město | C37: Doksy | D37: 1.1 Podpora jednotek požární ochrany obcí Libereckého kraje | E37: U6 - Pořízení, obnova, doplnění, opravy a výstavba U6f - oprava povrchu parkovacího stání mobilní požární techniky | F37: 6f | G37: oprava povrchu podlahy v garáži pro výjezdovou techniku - 99 m2 | H37: oprava povrchu podlahy v garáži pro výjezdovou techniku - 99 m3 | I37: 195191 | J37: 115000 | K37: 58.92 | L37: 80191 | M37: 41.08 | N37: 195191 | O37: 115000 | P37: 58.92 | Q37: ANO | R37: 15 | S37: 4.5 | T37: 0 | U37: 0 | V37: 4.5 | W37: 15 | X37: 1.5 | Y37: 0 | Z37: 0 | AA37: 1.5 | AB37: 6 | AC37: OLP/02077/2025 | AE37: náměstí Republiky 193 | AF37: Doksy | AG37: 47201 | AH37: =_xlfn.XLOOKUP(C37,#REF!,#REF!,"Nenalezeno!") ->  | AI37: starosta | AJ37: 00260444 | AK37: CZ00260444 | AL37: 94-816421/0710 | AM37: 195 191 Kč | AN37: 115 000,00 Kč | AO37: =Slovy(O37) -> jednosto patnáct tisíc | AP37: 100% | AQ37: 58,92% | AR37: 41,08% | AV37: 63
A38: 230 | B38: Město | C38: Doksy | D38: 1.1 Podpora jednotek požární ochrany obcí Libereckého kraje | E38: U6c - pořízení, obnova, doplnění a opravy věcných prostředků požární ochrany mimo prostředků uvedených v U5 a U6a. | F38: 6e | G38: automatická pračka na min. 20kg prádla - 1 ks | H38: automatická pračka na min. 20kg prádla - 1 ks | I38: 29990 | J38: 15000 | K38: 50.02 | L38: 14990 | M38: 49.98 | N38: 29990 | O38: 15000 | P38: 50.02 | Q38: ANO | R38: 15 | S38: 4.5 | T38: 0 | U38: 0 | V38: 4.5 | W38: 15 | X38: 1.5 | Y38: 0 | Z38: 0 | AA38: 1.5 | AB38: 6 | AC38: OLP/02078/2025 | AE38: náměstí Republiky 193 | AF38: Doksy | AG38: 47201 | AH38: =_xlfn.XLOOKUP(C38,#REF!,#REF!,"Nenalezeno!") ->  | AI38: starosta | AJ38: 00260444 | AK38: CZ00260444 | AL38: 94-816421/0710 | AM38: 29 990 Kč | AN38: 15 000,00 Kč | AO38: =Slovy(O38) -> patnáct tisíc | AP38: 100% | AQ38: 50,02% | AR38: 49,98% | AV38: 45
A39: 216 | B39: Město | C39: Dubá | D39: U2 - Město Dubá - osobní ochranné prostředky | E39: Informace o projektu U2 - Pořízení nových osobních ochranných prostředků PO | F39: 2 | G39: přilba - 4 ks, kukla dvouvrstvá - 4 ks, rukavice zásahové - 4 ks | H39: přilba - 4 ks, kukla dvouvrstvá - 4 ks, rukavice zásahové - 4 ks | I39: 77200 | J39: 46320 | K39: 60 | L39: 30880 | M39: 40 | N39: 77200 | O39: 46320 | P39: 60 | Q39: ANO | R39: 15 | S39: 4.5 | T39: 0 | U39: 0 | V39: 4.5 | W39: 15 | X39: 1.5 | Y39: 15 | Z39: 7.5 | AA39: 9 | AB39: 13.5 | AC39: OLP/02068/2025 | AE39: Masarykovo náměstí 138/1 | AF39: Dubá | AG39: 47141 | AH39: =_xlfn.XLOOKUP(C39,#REF!,#REF!,"Nenalezeno!") ->  | AI39: starostka | AJ39: 00260479 | AK39: CZ00260479 | AL39: 129470556/0300 | AM39: 77 200 Kč | AN39: 46 320,00 Kč | AO39: =Slovy(O39) -> čtyřicet šesttisíc třista dvacet | AP39: 100% | AQ39: 60,00% | AR39: 40,00% | AV39: 64
A40: 217 | B40: Město | C40: Dubá | D40: U3 - Město Dubá – protichemický oblek | E40: U3 - Pořízení věcných prostředků požární ochrany jednotek předurčených v Nařízení Libereckého kraje č. 1/2021 a v operativní dokumentaci Požárního poplachového plánu pro likvidaci úniků nebezpečných látek | F40: 3 | G40: lehký protichemický oblek - 2 ks | H40: lehký protichemický oblek - 2 ks | I40: 23400 | J40: 16380 | K40: =ROUND(J40/I40*100,2) -> 70 | L40: =I40-J40 -> 7020 | M40: =ROUND(L40/I40*100,2) -> 30 | N40: 23400 | O40: 16380 | P40: =ROUND(O40/N40*100,2) -> 70 | Q40: ANO | R40: 15 | S40: =R40*0.3 -> 4.5 | T40: =IF(K40<=30,"15",IF(K40<=50,"7",IF(K40<=70,"0","!!!"))) -> 0 | U40: =T40*0.1 -> 0 | V40: =S40+U40 -> 4.5 | W40: 15 | X40: =W40*0.1 -> 1.5 | Y40: 15 | Z40: =Y40*0.5 -> 7.5 | AA40: =X40+Z40 -> 9 | AB40: =V40+AA40 -> 13.5 | AC40: OLP/02069/2025 | AE40: Masarykovo náměstí 138/1 | AF40: Dubá | AG40: 47141 | AH40: =_xlfn.XLOOKUP(C40,#REF!,#REF!,"Nenalezeno!") ->  | AI40: starostka | AJ40: 00260479 | AK40: CZ00260479 | AL40: 129470556/0300 | AM40: =TEXT(N40,"# ##0 Kč") -> 23 400 Kč | AN40: =TEXT(O40,"# ##0,00 Kč") -> 16 380,00 Kč | AO40: =Slovy(O40) -> šestnáct tisíc třista osmdesát | AP40: =IF(O40<=300000,"100%","90%") -> 100% | AQ40: =TEXT(P40,"0,00")& "%" -> 70,00% | AR40: =TEXT(M40,"0,00")& "%" -> 30,00% | AV40: =LEN(H40) -> 32
A41: 220 | B41: Město | C41: Dubá | D41: U4 - Město Dubá – ponorné čerpadlo | E41: U4 - Pořízení věcných prostředků požární ochrany pro čerpání vody zejména v souvislosti se záplavami a povodněmi - čerpadlo ponorné kalové elektrické o minimálním průtoku 600 l/min a výtlakem čerpadla opatřeným hadicovou spojkou B75 | F41: 4 | G41: Ponorné kalové čerpadlo Rosenbauer NAUTILUS - 1 ks | H41: Ponorné kalové čerpadlo Rosenbauer NAUTILUS - 1 ks | I41: 59000 | J41: 41300 | K41: 70 | L41: 17700 | M41: 30 | N41: 59000 | O41: 41300 | P41: 70 | Q41: ANO | R41: 15 | S41: 4.5 | T41: 0 | U41: 0 | V41: 4.5 | W41: 15 | X41: 1.5 | Y41: 15 | Z41: 7.5 | AA41: 9 | AB41: 13.5 | AC41: OLP/02072/2025 | AE41: Masarykovo náměstí 138/1 | AF41: Dubá | AG41: 47141 | AH41: =_xlfn.XLOOKUP(C41,#REF!,#REF!,"Nenalezeno!") ->  | AI41: starostka | AJ41: 00260479 | AK41: CZ00260479 | AL41: 129470556/0300 | AM41: 59 000 Kč | AN41: 41 300,00 Kč | AO41: =Slovy(O41) -> čtyřicet jedentisíc třista | AP41: 100% | AQ41: 70,00% | AR41: 30,00% | AV41: 50
A42: 237 | B42: Město | C42: Dubá | D42: U5 - Město Dubá - lesní požáry | E42: U5 - pořízení a doplnění věcných prostředků požární ochrany pro zásahy v souvislosti s likvidací lesních požárů | F42: 5 | G42: přilba - 4 ks, obuv - 1 ks | H42: přilba - 4 ks, obuv - 1 ks | I42: 28100 | J42: 16860 | K42: 60 | L42: 11240 | M42: 40 | N42: 28100 | O42: 16860 | P42: 60 | Q42: ANO | R42: 15 | S42: 4.5 | T42: 0 | U42: 0 | V42: 4.5 | W42: 15 | X42: 1.5 | Y42: 15 | Z42: 7.5 | AA42: 9 | AB42: 13.5 | AC42: OLP/02086/2025 | AE42: Masarykovo náměstí 138/1 | AF42: Dubá | AG42: 47141 | AH42: =_xlfn.XLOOKUP(C42,#REF!,#REF!,"Nenalezeno!") ->  | AI42: starostka | AJ42: 00260479 | AK42: CZ00260479 | AL42: 129470556/0300 | AM42: 28 100 Kč | AN42: 16 860,00 Kč | AO42: =Slovy(O42) -> šestnáct tisíc osmset šedesát | AP42: 100% | AQ42: 60,00% | AR42: 40,00% | AV42: 26
A43: 239 | B43: Město | C43: Dubá | D43: U6c - Město Dubá – proudnice | E43: U6c - pořízení věcných prostředků požární ochrany | F43: 6c | G43: proudnice kombinovaná D25 Debolite 150 - 4 ks | H43: proudnice kombinovaná D25 Debolite 150 - 4 ks | I43: 40000 | J43: 24000 | K43: 60 | L43: 16000 | M43: 40 | N43: 40000 | O43: 24000 | P43: 60 | Q43: ANO | R43: 15 | S43: 4.5 | T43: 0 | U43: 0 | V43: 4.5 | W43: 15 | X43: 1.5 | Y43: 7 | Z43: 3.5 | AA43: 5 | AB43: 9.5 | AC43: OLP/02088/2025 | AE43: Masarykovo náměstí 138/1 | AF43: Dubá | AG43: 47141 | AH43: =_xlfn.XLOOKUP(C43,#REF!,#REF!,"Nenalezeno!") ->  | AI43: starostka | AJ43: 00260479 | AK43: CZ00260479 | AL43: 129470556/0300 | AM43: 40 000 Kč | AN43: 24 000,00 Kč | AO43: =Slovy(O43) -> dvacet čtyřitisíce | AP43: 100% | AQ43: 60,00% | AR43: 40,00% | AV43: 45
A44: 245 | B44: Město | C44: Dubá | D44: U6e - Město Dubá – pračka se sušičkou | E44: U6e - technické vybavení hasičské zbrojnice - pračka se sušičkou | F44: 6e | G44: Pračka se sušičkou LG WT1210BBF - 1 ks | H44: Pračka se sušičkou LG WT1210BBF - 1 ks | I44: 50000 | J44: 30000 | K44: 60 | L44: 20000 | M44: 40 | N44: 50000 | O44: 30000 | P44: 60 | Q44: ANO | R44: 15 | S44: 4.5 | T44: 0 | U44: 0 | V44: 4.5 | W44: 15 | X44: 1.5 | Y44: 0 | Z44: 0 | AA44: 1.5 | AB44: 6 | AC44: OLP/02092/2025 | AE44: Masarykovo náměstí 138/1 | AF44: Dubá | AG44: 47141 | AH44: =_xlfn.XLOOKUP(C44,#REF!,#REF!,"Nenalezeno!") ->  | AI44: starostka | AJ44: 00260479 | AK44: CZ00260479 | AL44: 129470556/0300 | AM44: 50 000 Kč | AN44: 30 000,00 Kč | AO44: =Slovy(O44) -> třicet tisíc | AP44: 100% | AQ44: 60,00% | AR44: 40,00% | AV44: 38
A45: 183 | B45: Město | C45: Frýdlant | D45: Pořízení, obnova a doplnění osobních ochranných prostředků PO, JSDH Frýdlant (U2) | E45: Pořízení osobních ochranných prostředků (OOP) pro 2 výjezd. družstva JSDH (Frýdlant, Frýdlant Větrov) z důvodů nutné obměny stávajícího vybavení po skončení doby životnosti nebo značně opotřebovaného vybavení a vybavení nových členů jednotky OOP | F45: 2 | G45: Zásahový oblek třívrstvý - komplet - 2 ks, Ochranný oděv PS II - NOMEX - 8 ks, Výstražná ochranná vesta s nápisem HASIČI - 4 ks, Zásahové rukavice technické - 8 párů, Svítilna osobní s držákem - 8 ks | H45: Zásahový oblek třívrstvý - komplet - 2 ks, Výstražná ochranná vesta s nápisem HASIČI - 4 ks, Zásahové rukavice technické - 8 párů, Svítilna osobní s držákem - 8 ks | I45: 146800 | J45: 73400 | K45: 50 | L45: 73400 | M45: 50 | N45: 86800 | O45: 43400 | P45: 50 | Q45: ANO oděv PS II není podporovaným OOPP v tomto účelu | R45: 15 | S45: 4.5 | T45: 7 | U45: 0.7 | V45: 5.2 | W45: 15 | X45: 1.5 | Y45: 15 | Z45: 7.5 | AA45: 9 | AB45: 14.2 | AC45: OLP/02043/2025 | AE45: nám. T. G. Masaryka 37 | AF45: Frýdlant | AG45: 46401 | AH45: =_xlfn.XLOOKUP(C45,#REF!,#REF!,"Nenalezeno!") ->  | AI45: starosta | AJ45: 00262781 | AK45: CZ00262781 | AL45: 94-2817081/0710 | AM45: 86 800 Kč | AN45: 43 400,00 Kč | AO45: =Slovy(O45) -> čtyřicet třitisíce čtyřista | AP45: 100% | AQ45: 50,00% | AR45: 50,00% | AV45: 163
A46: 184 | B46: Město | C46: Frýdlant | D46: Pořízení a doplnění věcných prostředků čerpání vody, JSDH Frýdlant (U4) | E46: Pořízení a doplnění věcných prostředků požární ochrany pro čerpání vody v souvislosti se záplavami a povodněmi za účelem rozšíření schopností a zvýšení připravenosti jednotky SDH Frýdlant k provádění zásahů při záplavách a povodních. | F46: 4 | G46: Čerpadlo přenosné plovoucí s minimálním výkonem/průtokem 1 500 lt/min - 1 ks, Ponorné kalové čerpadlo elektrické s minimálním výkonem/průtokem 600 lt/min - 1 ks, Přenosný zdroj elektrické energie k ponornému kalovému elektrickému čerpadlu s minimálním výkonem 4 kW - 1 ks | H46: Čerpadlo přenosné plovoucí s minimálním výkonem/průtokem 1 500 lt/min - 1 ks, Ponorné kalové čerpadlo elektrické s minimálním výkonem/průtokem 600 lt/min - 1 ks, Přenosný zdroj elektrické energie k ponornému kalovému elektrickému čerpadlu s minimálním výkonem 4 kW - 1 ks | I46: 149000 | J46: 104300 | K46: 70 | L46: 44700 | M46: 30 | N46: 149000 | O46: 104300 | P46: 70 | Q46: ANO | R46: 15 | S46: 4.5 | T46: 0 | U46: 0 | V46: 4.5 | W46: 15 | X46: 1.5 | Y46: 15 | Z46: 7.5 | AA46: 9 | AB46: 13.5 | AC46: OLP/02044/2025 | AE46: nám. T. G. Masaryka 37 | AF46: Frýdlant | AG46: 46401 | AH46: =_xlfn.XLOOKUP(C46,#REF!,#REF!,"Nenalezeno!") ->  | AI46: starosta | AJ46: 00262781 | AK46: CZ00262781 | AL46: 94-2817081/0710 | AM46: 149 000 Kč | AN46: 104 300,00 Kč | AO46: =Slovy(O46) -> jednosto čtyřitisíce třista | AP46: 100% | AQ46: 70,00% | AR46: 30,00% | AV46: 271
A47: 195 | B47: Město | C47: Frýdlant | D47: Oprava CAS 24 Renault, JSDH Frýdlant (U6b) | E47: Oprava cisternové automob. stříkačky CAS 24 Renault JSDH Frýdlant po dlouholetém užívání při zásazích, objem nádrže 2 500 lt, r. v. 2006. Cílem je předat opravenou CAS k užívání druhému organizovanému výjezdu JSDH a vyřadit z užívání CAS Karosa. | F47: 6b | G47: Provedení opravy nástavby CAS 24 Renault JSDH Frýdlant (RZ 2L5 6282) - 1 oprava | H47: Provedení opravy nástavby CAS 24 Renault JSDH Frýdlant (RZ 2L5 6282) - 1 oprava | I47: 500000 | J47: 300000 | K47: 60 | L47: 200000 | M47: 40 | N47: 500000 | O47: 300000 | P47: 60 | Q47: ANO | R47: 15 | S47: 4.5 | T47: 0 | U47: 0 | V47: 4.5 | W47: 15 | X47: 1.5 | Y47: 7 | Z47: 3.5 | AA47: 5 | AB47: 9.5 | AC47: OLP/02050/2025 | AE47: nám. T. G. Masaryka 37 | AF47: Frýdlant | AG47: 46401 | AH47: =_xlfn.XLOOKUP(C47,#REF!,#REF!,"Nenalezeno!") ->  | AI47: starosta | AJ47: 00262781 | AK47: CZ00262781 | AL47: 94-2817081/0710 | AM47: 500 000 Kč | AN47: 300 000,00 Kč | AO47: =Slovy(O47) -> třista tisíc | AP47: 100% | AQ47: 60,00% | AR47: 40,00% | AV47: 79
A48: 196 | B48: Město | C48: Frýdlant | D48: Pořízení a doplnění věcných prostředků pro likvidaci lesních požárů, JSDH Frýdlant (U5) | E48: Pořízení a doplnění věcných a osobních ochranných prostředků pro zásahy v souvislosti s likvidací lesních požárů za účelem rozšíření schopností a zvýšení připravenosti 2 organiz. výjezdů JSDH Frýdlant provádět zásahy v souvislosti s lesními požáry | F48: 5 | G48: Batoh na D program s vybavením - 1 ks, Hasící zádový vak s objemem min. 20 litrů - 2 ks, Multifunkční nářadí (motykohrábě) - 2 ks, Tlumice - 2 ks, Přilba pro hasiče při lesních požárech - 8 ks, Jednovrstvý zásahový oblek/komplet pro venkovní prostředí a lesní požáry - 8 ks | H48: Batoh na D program s vybavením - 1 ks, Hasící zádový vak s objemem min. 20 litrů - 2 ks, Multifunkční nářadí (motykohrábě) - 2 ks, Tlumice - 2 ks, Přilba pro hasiče při lesních požárech - 8 ks, Jednovrstvý zásahový oblek/komplet pro venkovní prostředí a lesní požáry - 8 ks | I48: 220800 | J48: 132480 | K48: 60 | L48: 88320 | M48: 40 | N48: 220800 | O48: 132480 | P48: 60 | Q48: ANO | R48: 15 | S48: 4.5 | T48: 0 | U48: 0 | V48: 4.5 | W48: 15 | X48: 1.5 | Y48: 15 | Z48: 7.5 | AA48: 9 | AB48: 13.5 | AC48: OLP/02051/2025 | AE48: nám. T. G. Masaryka 37 | AF48: Frýdlant | AG48: 46401 | AH48: =_xlfn.XLOOKUP(C48,#REF!,#REF!,"Nenalezeno!") ->  | AI48: starosta | AJ48: 00262781 | AK48: CZ00262781 | AL48: 94-2817081/0710 | AM48: 220 800 Kč | AN48: 132 480,00 Kč | AO48: =Slovy(O48) -> jednosto třicet dvatisíce čtyřista osmdesát | AP48: 100% | AQ48: 60,00% | AR48: 40,00% | AV48: 273
A49: 211 | B49: Město | C49: Frýdlant | D49: Pořízení věcných prostředků pro doplnění dýchacích, pěnotvorných a osvětlovacích systémů, JSDH Frýdlant (U6c) | E49: Pořízení věcných prostředků pro obnovu dýchacích a doplnění pěnotvorných a osvětlovacích systémů do výbavy jednotky SDH Frýdlant z důvodů končící doby životnosti (dých. technika) nebo rozšíření schopností jednotky či zvýšení úrovně bezpečnosti práce | F49: 6c | G49: Tlaková kompozitní láhev k IDP 300 bar - 4 ks, Přenosné pěnotvorné zařízení PRO/pak - 1 ks, Mobilní AKU osvětlovací systém - 1 ks | H49: Tlaková kompozitní láhev k IDP 300 bar - 4 ks, Přenosné pěnotvorné zařízení PRO/pak - 1 ks, Mobilní AKU osvětlovací systém - 1 ks | I49: 117000 | J49: 70200 | K49: 60 | L49: 46800 | M49: 40 | N49: 117000 | O49: 70200 | P49: 60 | Q49: ANO | R49: 15 | S49: 4.5 | T49: 0 | U49: 0 | V49: 4.5 | W49: 15 | X49: 1.5 | Y49: 7 | Z49: 3.5 | AA49: 5 | AB49: 9.5 | AC49: OLP/02061/2025 | AE49: nám. T. G. Masaryka 37 | AF49: Frýdlant | AG49: 46401 | AH49: =_xlfn.XLOOKUP(C49,#REF!,#REF!,"Nenalezeno!") ->  | AI49: starosta | AJ49: 00262781 | AK49: CZ00262781 | AL49: 94-2817081/0710 | AM49: 117 000 Kč | AN49: 70 200,00 Kč | AO49: =Slovy(O49) -> sedmdesát tisíc dvěstě | AP49: 100% | AQ49: 60,00% | AR49: 40,00% | AV49: 129
A50: 120 | B50: Obec | C50: Habartice | D50: Nákup věcných prostředků požární ochrany | E50: U6)c) Pořízení , obnova, doplnění a opravy věcných prostředků požární ochrany mimo prostředků uvedených v U5) a U6)a) - proudnice, rukavice, svítilny, reflektor, tlaková lahev, dopravní kužel, | F50: 6c | G50: proudnice kombinovaná C52 s koncovkou - 1 ks, ochranné rukavice proti prořezu - 4 ks, pracovní kožené rukavice s podšívkou - 4 ks, ruční USB nabíjecí LED svítilna s příslušenstvím - 2 ks, LED reflektor SHARE 20V - nabíjecí - 2 ks, lahev tlaková ocelová 6l/30Mpa DRAGER - 1 ks, dopravní výstražný kužel - skládací - 1 ks | H50: proudnice kombinovaná C52 s koncovkou - 1 ks, ochranné rukavice proti prořezu - 4 ks, pracovní kožené rukavice s podšívkou - 4 ks, ruční USB nabíjecí LED svítilna s příslušenstvím - 2 ks, LED reflektor SHARE 20V - nabíjecí - 2 ks, lahev tlaková ocelová 6l/30Mpa DRAGER - 1 ks, dopravní výstražný kužel - skládací - 1 ks | I50: 33143 | J50: 18891 | K50: 57 | L50: 14252 | M50: 43 | N50: 33143 | O50: 18891 | P50: 57 | Q50: ANO | R50: 15 | S50: 4.5 | T50: 0 | U50: 0 | V50: 4.5 | W50: 15 | X50: 1.5 | Y50: 7 | Z50: 3.5 | AA50: 5 | AB50: 9.5 | AC50: OLP/01980/2025 | AE50: 191 | AF50: Habartice | AG50: 46373 | AH50: =_xlfn.XLOOKUP(C50,#REF!,#REF!,"Nenalezeno!") ->  | AI50: starosta | AJ50: 00262790 | AL50: 6328461/0100 | AM50: 33 143 Kč | AN50: 18 891,00 Kč | AO50: =Slovy(O50) -> osmnáct tisíc osmset devadesát jedna | AP50: 100% | AQ50: 57,00% | AR50: 43,00% | AV50: 320
A51: 132 | B51: Město | C51: Harrachov | D51: Doplnění osobních ochranných prostředků | E51: U2) doplnění osobních ochranných prostředků požární ochrany | F51: 2 | G51: Zásahová obuv - 4 páry, Rukavice zásahové - 4 páry, Zásahová přilba - 2 ks, Zásahová přilba - 4 ks, Rukavice rescue - 4 páry, Svítilna ruční - 4 ks, Vesta výstražná - HASIČI - 3 ks, Vesta výstražná - ZDRAVOTNÍK - 1 ks | H51: Zásahová obuv - 4 páry, Rukavice zásahové - 4 páry, Zásahová přilba - 2 ks, Zásahová přilba - 4 ks, Rukavice rescue - 4 páry, Svítilna ruční - 4 ks, Vesta výstražná - HASIČI - 3 ks, Vesta výstražná - ZDRAVOTNÍK - 1 ks | I51: 106703 | J51: 53351 | K51: 50 | L51: 53352 | M51: 50 | N51: 106703 | O51: 53351 | P51: 50 | Q51: ANO | R51: 15 | S51: 4.5 | T51: 7 | U51: 0.7 | V51: 5.2 | W51: 15 | X51: 1.5 | Y51: 15 | Z51: 7.5 | AA51: 9 | AB51: 14.2 | AC51: OLP/01993/2025 | AE51: Harrachov 150 | AF51: Harrachov | AG51: 51246 | AH51: =_xlfn.XLOOKUP(C51,#REF!,#REF!,"Nenalezeno!") ->  | AI51: starosta | AJ51: 00275697 | AK51: CZ00275697 | AL51: 1263085389/0800 | AM51: 106 703 Kč | AN51: 53 351,00 Kč | AO51: =Slovy(O51) -> padesát třitisíce třista padesát jedna | AP51: 100% | AQ51: 50,00% | AR51: 50,00% | AV51: 217
A52: 179 | B52: Město | C52: Hodkovice nad Mohelkou | D52: Vybavení hasičské zbrojnice | E52: zvýšení akceschopnosti jednotky sboru dobrovolných hasičů | F52: 6f | G52: podlaha garáže - zátěžové dlaždice 500x500x8 mm - 1080 ks | H52: podlaha garáže - zátěžové dlaždice 500x500x8 mm - 1080 ks | I52: 183600 | J52: 110160 | K52: 60 | L52: 73440 | M52: 40 | N52: 183600 | O52: 110160 | P52: 60 | Q52: ANO | R52: 15 | S52: 4.5 | T52: 0 | U52: 0 | V52: 4.5 | W52: 15 | X52: 1.5 | Y52: 0 | Z52: 0 | AA52: 1.5 | AB52: 6 | AC52: OLP/02040/2025 | AE52: nám. T. G. Masaryka 1 | AF52: Hodkovice nad Mohelkou | AG52: 46342 | AH52: =_xlfn.XLOOKUP(C52,#REF!,#REF!,"Nenalezeno!") ->  | AI52: starostka | AJ52: 00262820 | AK52: CZ00262820 | AL52: 984945399/0800 | AM52: 183 600 Kč | AN52: 110 160,00 Kč | AO52: =Slovy(O52) -> jednosto deset tisíc jednosto šedesát | AP52: 100% | AQ52: 60,00% | AR52: 40,00% | AV52: 57
A53: 180 | B53: Město | C53: Hodkovice nad Mohelkou | D53: Osobní ochranné prostředky | E53: Zvýšení akceschopnosti jednotky sboru dobrovolných hasičů v Hodkovicích nad Mohelkou | F53: 2 | G53: přilby Galet F2 - 4 ks, zásahový oděv - 4 ks, zásahová obuv - 4 ks, zásahové rukavice - 4 ks, žárové rukavice - 4 ks | H53: přilby Galet F2 - 4 ks, zásahový oděv - 4 ks, zásahová obuv - 4 ks, zásahové rukavice - 4 ks, žárové rukavice - 4 ks | I53: 175820 | J53: 100000 | K53: 56.88 | L53: 75820 | M53: 43.12 | N53: 175820 | O53: 100000 | P53: 56.88 | Q53: ANO | R53: 15 | S53: 4.5 | T53: 0 | U53: 0 | V53: 4.5 | W53: 15 | X53: 1.5 | Y53: 15 | Z53: 7.5 | AA53: 9 | AB53: 13.5 | AC53: OLP/02041/2025 | AE53: nám. T. G. Masaryka 1 | AF53: Hodkovice nad Mohelkou | AG53: 46342 | AH53: =_xlfn.XLOOKUP(C53,#REF!,#REF!,"Nenalezeno!") ->  | AI53: starostka | AJ53: 00262820 | AK53: CZ00262820 | AL53: 984945399/0800 | AM53: 175 820 Kč | AN53: 100 000,00 Kč | AO53: =Slovy(O53) -> jednosto tisíc | AP53: 100% | AQ53: 56,88% | AR53: 43,12% | AV53: 117
A54: 3 | B54: Městys | C54: Holany | D54: Pořízení věcných prostředků PO (U6a) | E54: Udržení a zvýšení akceschopnosti jednotky PO | F54: 6c | G54: Nákup izolačních dýchacích přístrojů - 2 ks, Nákup tlakových láhví pro IDP - 3 ks, Nákup skříňky s elektronástroji - 1 ks, Nákup skříňky s nástroji - 1 ks, Nákup ručních svítilen - 2 ks, Nákup lan typu A s vaky - 3 ks, Nákup přetlakového ventilu - 1 ks, Nákup přiměšovače - 1 ks | H54: Nákup izolačních dýchacích přístrojů - 2 ks, Nákup tlakových láhví pro IDP - 3 ks, Nákup skříňky s elektronástroji - 1 ks, Nákup skříňky s nástroji - 1 ks, Nákup ručních svítilen - 2 ks, Nákup lan typu A s vaky - 3 ks, Nákup přetlakového ventilu - 1 ks, Nákup přiměšovače - 1 ks | I54: 200676 | J54: 100000 | K54: 49.83 | L54: 100676 | M54: 50.17 | N54: 200676 | O54: 100000 | P54: 49.83 | Q54: ANO | R54: 15 | S54: 4.5 | T54: 7 | U54: 0.7 | V54: 5.2 | W54: 15 | X54: 1.5 | Y54: 7 | Z54: 3.5 | AA54: 5 | AB54: 10.2 | AC54: OLP/01886/2025 | AE54: Holany 43 | AF54: Holany | AG54: 47002 | AH54: =_xlfn.XLOOKUP(C54,#REF!,#REF!,"Nenalezeno!") ->  | AI54: starostka | AJ54: 00260525 | AK54: CZ00260525 | AL54: 94-1210421/0710 | AM54: 200 676 Kč | AN54: 100 000,00 Kč | AO54: =Slovy(O54) -> jednosto tisíc | AP54: 100% | AQ54: 49,83% | AR54: 50,17% | AV54: 280
A55: 204 | B55: Městys | C55: Holany | D55: Pořízení ochranných prostředků PO (U2) / | E55: Udržení akceschopnosti jednotky PO | F55: 2 | G55: nákup zásahových oděvů - 4 ks, nákup zásahových rukavic - 4 ks | H55: nákup zásahových oděvů - 4 ks, nákup zásahových rukavic - 4 ks | I55: 103316 | J55: 61990 | K55: 60 | L55: 41326 | M55: 40 | N55: 103316 | O55: 61990 | P55: 60 | Q55: ANO | R55: 15 | S55: 4.5 | T55: 0 | U55: 0 | V55: 4.5 | W55: 15 | X55: 1.5 | Y55: 15 | Z55: 7.5 | AA55: 9 | AB55: 13.5 | AC55: OLP/02055/2025 | AE55: Holany 43 | AF55: Holany | AG55: 47002 | AH55: =_xlfn.XLOOKUP(C55,#REF!,#REF!,"Nenalezeno!") ->  | AI55: starostka | AJ55: 00260525 | AK55: CZ00260525 | AL55: 94-1210421/0710 | AM55: 103 316 Kč | AN55: 61 990,00 Kč | AO55: =Slovy(O55) -> šedesát jedentisíc devětset devadesát | AP55: 100% | AQ55: 60,00% | AR55: 40,00% | AV55: 62
A56: 144 | B56: Obec | C56: Horní Branná | D56: Oprava vozidla CAS JSDH Horní Branná | E56: U6b. Nutná oprava vývěvy, vřetenových ventilů čerpadla, majákové rampy na CAS 20, pro zvýšení bezpečnosti montáž couvací kamery, přídavných LED výstražných svítidel a pořízení sněhových řetězů. | F56: 6b | G56: Majáková rampa Holomý - 1 ks, Přetěsnění pístové vývěvy - 1 ks, Výměna vřetenových ventilů čerpadla THT TO 3000 - 4 ks, Dodání a montáž couvací kamery pro CAS 20 - 1 ks, Dodání a montáž LED výstražných svítidel na CAS 20 - 4 ks, Tlakový vzduch pro odvodnění čerpadla - 1 ks, Sněhové řetězy PEWAG - 1 ks | H56: Majáková rampa Holomý - 1 ks, Přetěsnění pístové vývěvy - 1 ks, Výměna vřetenových ventilů čerpadla THT TO 3000 - 4 ks, Dodání a montáž couvací kamery pro CAS 20 - 1 ks, Dodání a montáž LED výstražných svítidel na CAS 20 - 4 ks, Tlakový vzduch pro odvodnění čerpadla - 1 ks, Sněhové řetězy PEWAG - 1 ks | I56: 145000 | J56: 72500 | K56: 50 | L56: 72500 | M56: 50 | N56: 145000 | O56: 72500 | P56: 50 | Q56: ANO | R56: 7 | S56: 2.1 | T56: 7 | U56: 0.7 | V56: 2.8 | W56: 15 | X56: 1.5 | Y56: 7 | Z56: 3.5 | AA56: 5 | AB56: 7.8 | AC56: OLP/01909/2025 | AE56: 262 | AF56: Horní Branná | AG56: 51236 | AH56: =_xlfn.XLOOKUP(C56,#REF!,#REF!,"Nenalezeno!") ->  | AI56: starosta | AJ56: 00275735 | AK56: CZ00275735 | AL56: 94-51412451/0710 | AM56: 145 000 Kč | AN56: 72 500,00 Kč | AO56: =Slovy(O56) -> sedmdesát dvatisíce pětset | AP56: 100% | AQ56: 50,00% | AR56: 50,00% | AV56: 303
A57: 148 | B57: Obec | C57: Horní Branná | D57: Přístavba hasičské zbrojnice JSDH Horní Branná | E57: U6f.Přístavba garáže hasičské zbrojnice pro parkování CAS 20 JSDH Horní Branná, do současné garáže se CAS nevejde a je řešeno dočasné a provizorní parkování mimo prostory hasičské zbrojnice, kam mají členové i delší dojezd než k hasičské zbrojnici | F57: 6f | G57: přístavba hasičárny - 1 ks | H57: přístavba hasičárny - 1 ks | I57: 4232773 | J57: 500000 | K57: 11.81 | L57: 3732773 | M57: 88.19 | N57: 4232773 | O57: 500000 | P57: 11.81 | Q57: ANO | R57: 7 | S57: 2.1 | T57: 15 | U57: 1.5 | V57: 3.6 | W57: 15 | X57: 1.5 | Y57: 0 | Z57: 0 | AA57: 1.5 | AB57: 5.1 | AC57: OLP/02002/2025 | AE57: 262 | AF57: Horní Branná | AG57: 51236 | AH57: =_xlfn.XLOOKUP(C57,#REF!,#REF!,"Nenalezeno!") ->  | AI57: starosta | AJ57: 00275735 | AK57: CZ00275735 | AL57: 94-51412451/0710 | AM57: 4 232 773 Kč | AN57: 500 000,00 Kč | AO57: =Slovy(O57) -> pětset tisíc | AP57: 90% | AQ57: 11,81% | AR57: 88,19% | AV57: 26
A58: 260 | B58: Město | C58: Hrádek nad Nisou | D58: JSDHO Hrádek nad Nisou - Oprava teleskopického osvětlovacího stožáru CAS 20 | E58: Účel U6b) | F58: 6b | G58: Oprava teleskopického osvětlovacího stožáru CAS - 1 ks | H58: Oprava teleskopického osvětlovacího stožáru CAS - 1 ks | I58: 56374 | J58: 28187 | K58: 50 | L58: 28187 | M58: 50 | N58: 56374 | O58: 28187 | P58: 50 | Q58: ANO | R58: 15 | S58: 4.5 | T58: 7 | U58: 0.7 | V58: 5.2 | W58: 15 | X58: 1.5 | Y58: 7 | Z58: 3.5 | AA58: 5 | AB58: 10.2 | AC58: OLP/02101/2025 | AE58: Horní náměstí 73 | AF58: Hrádek nad Nisou | AG58: 46334 | AH58: =_xlfn.XLOOKUP(C58,#REF!,#REF!,"Nenalezeno!") ->  | AI58: starosta | AJ58: 00262854 | AK58: CZ00262854 | AL58: 984856329/0800 | AM58: 56 374 Kč | AN58: 28 187,00 Kč | AO58: =Slovy(O58) -> dvacet osmtisíc jednosto osmdesát sedm | AP58: 100% | AQ58: 50,00% | AR58: 50,00% | AV58: 54
A59: 261 | B59: Město | C59: Hrádek nad Nisou | D59: JSDHO Hrádek nad Nisou - Pořízení a obnova osobních ochranných prostředků požární ochrany | E59: Účel - U2 | F59: 2 | G59: Zásahový oblek jednovrstvý - 4 ks, Zásahový oblek třívrstvý - 4 ks, Požární přilba - 7 ks, Zásahové rukavice - 4 ks, Lehká technická víceúčelová přilba - 4 ks, Čelní svítilna pro lehkou víceúčelovou přilbu - 8 ks | H59: Zásahový oblek jednovrstvý - 4 ks, Zásahový oblek třívrstvý - 4 ks, Požární přilba - 7 ks, Zásahové rukavice - 4 ks, Lehká technická víceúčelová přilba - 4 ks, Čelní svítilna pro lehkou víceúčelovou přilbu - 8 ks | I59: 347279 | J59: 173639 | K59: 50 | L59: 173640 | M59: 50 | N59: 347279 | O59: 173639 | P59: 50 | Q59: ANO | R59: 15 | S59: 4.5 | T59: 7 | U59: 0.7 | V59: 5.2 | W59: 15 | X59: 1.5 | Y59: 15 | Z59: 7.5 | AA59: 9 | AB59: 14.2 | AC59: OLP/02102/2025 | AE59: Horní náměstí 73 | AF59: Hrádek nad Nisou | AG59: 46334 | AH59: =_xlfn.XLOOKUP(C59,#REF!,#REF!,"Nenalezeno!") ->  | AI59: starosta | AJ59: 00262854 | AK59: CZ00262854 | AL59: 984856329/0800 | AM59: 347 279 Kč | AN59: 173 639,00 Kč | AO59: =Slovy(O59) -> jednosto sedmdesát třitisíce šestset třicet devět | AP59: 100% | AQ59: 50,00% | AR59: 50,00% | AV59: 213
A60: 25 | B60: Obec | C60: Chuchelna | D60: U5) Pořizení, obnova, doplnění a opravy věcných prostředků PO pro zásahy a likvidací lesních požárů. - NEPLATNÝ PODPIS | E60: Pořízení věcných prostředků PO pro zásahy s likvidací lesních požárů. Zvýšení efektivity a akceschopnosti. Finanční podpora LK je vítaným příjmem do obecního rozpočtu | F60: 5 | G60: Batoh Bag classic - 1 ks, Hasičský zádový vak Ermak 20 l - 1 ks | H60: Batoh Bag classic - 1 ks, Hasičský zádový vak Ermak 20 l - 1 ks | I60: 39738 | J60: 15895 | K60: 40 | L60: 23843 | M60: 60 | N60: 39738 | O60: 15895 | P60: 40 | Q60: ANO | R60: 7 | S60: 2.1 | T60: 7 | U60: 0.7 | V60: 2.8 | W60: 15 | X60: 1.5 | Y60: 15 | Z60: 7.5 | AA60: 9 | AB60: 11.8 | AC60: OLP/01900/2025 | AE60: 296 | AF60: Chuchelna | AG60: 51301 | AH60: =_xlfn.XLOOKUP(C60,#REF!,#REF!,"Nenalezeno!") ->  | AI60: starostka | AJ60: 00275760 | AL60: 107773716/0300 | AM60: 39 738 Kč | AN60: 15 895,00 Kč | AO60: =Slovy(O60) -> patnáct tisíc osmset devadesát pět | AP60: 100% | AQ60: 40,00% | AR60: 60,00% | AV60: 63
A61: 26 | B61: Obec | C61: Chuchelna | D61: Pořízení osobních ochranných prostředků požární ochrany 2025 | E61: U2) Pořízení, obnova, doplnění a opravy osobních ochranných prostředků požární ochrany | F61: 2 | G61: Zásahový oblek Bushfire - 1 ks, ZásAhová obuv Demon Fire - 1 pár, Přilba technická Drager - 4 ks, Příslušenství k přilbě Drager - držák - 4 ks, Příslušenství k přilbě Drager - svítilna - 4 ks | H61: Zásahový oblek Bushfire - 1 ks, ZásAhová obuv Demon Fire - 1 pár, Přilba technická Drager - 4 ks, Příslušenství k přilbě Drager - držák - 4 ks, Příslušenství k přilbě Drager - svítilna - 4 ks | I61: 48766 | J61: 19506 | K61: 40 | L61: 29260 | M61: 60 | N61: 48766 | O61: 19506 | P61: 40 | Q61: ANO | R61: 7 | S61: 2.1 | T61: 7 | U61: 0.7 | V61: 2.8 | W61: 15 | X61: 1.5 | Y61: 15 | Z61: 7.5 | AA61: 9 | AB61: 11.8 | AC61: OLP/01901/2025 | AE61: 296 | AF61: Chuchelna | AG61: 51301 | AH61: =_xlfn.XLOOKUP(C61,#REF!,#REF!,"Nenalezeno!") ->  | AI61: starostka | AJ61: 00275760 | AL61: 107773716/0300 | AM61: 48 766 Kč | AN61: 19 506,00 Kč | AO61: =Slovy(O61) -> devatenáct tisíc pětset šest | AP61: 100% | AQ61: 40,00% | AR61: 60,00% | AV61: 191
A62: 113 | B62: Město | C62: Jablonec nad Jizerou | D62: U5) Pořízení a obnova prostředků požární ochrany | E62: Pořízení a obnova prostředků požární ochrany pro úspěšné zdolávání lesních požárů | F62: 5 | G62: Rukavice pracovní - 4 páry, Přilba zásahová lehká - 4 ks | H62: Rukavice pracovní - 4 páry, Přilba zásahová lehká - 4 ks | I62: 26591 | J62: 15955 | K62: 60 | L62: 10636 | M62: 40 | N62: 26591 | O62: 15955 | P62: 60 | Q62: ANO | R62: 15 | S62: 4.5 | T62: 0 | U62: 0 | V62: 4.5 | W62: 15 | X62: 1.5 | Y62: 15 | Z62: 7.5 | AA62: 9 | AB62: 13.5 | AC62: OLP/01975/2025 | AE62: Jablonec nad Jizerou 277 | AF62: Jablonec nad Jizerou | AG62: 51243 | AH62: =_xlfn.XLOOKUP(C62,#REF!,#REF!,"Nenalezeno!") ->  | AI62: starosta | AJ62: 00275778 | AK62: CZ00275778 | AL62: 1263087309/0800 | AM62: 26 591 Kč | AN62: 15 955,00 Kč | AO62: =Slovy(O62) -> patnáct tisíc devětset padesát pět | AP62: 100% | AQ62: 60,00% | AR62: 40,00% | AV62: 56
A63: 114 | B63: Město | C63: Jablonec nad Jizerou | D63: U2) Pořízení a obnova osobních ochranných prostředků | E63: Pořízení a obnova OOP pro zásahovou jednotku SDH Jablonec nad Jizerou | F63: 2 | G63: Komplet zásahový - 4 ks, Rukavice na lesní požáry - 4 páry, Rukavice zásahové - 4 páry, Přilba zásahová - 4 ks, Obuv zásahová - 4 páry, Svítilna - 4 ks, Nabíječka k svítilně - 2 ks | H63: Komplet zásahový - 4 ks, Rukavice na lesní požáry - 4 páry, Rukavice zásahové - 4 páry, Přilba zásahová - 4 ks, Obuv zásahová - 4 páry, Svítilna - 4 ks, Nabíječka k svítilně - 2 ks | I63: 157974 | J63: 94782 | K63: 60 | L63: 63192 | M63: 40 | N63: 157974 | O63: 94782 | P63: 60 | Q63: ANO | R63: 15 | S63: 4.5 | T63: 0 | U63: 0 | V63: 4.5 | W63: 15 | X63: 1.5 | Y63: 15 | Z63: 7.5 | AA63: 9 | AB63: 13.5 | AC63: OLP/01976/2025 | AE63: Jablonec nad Jizerou 277 | AF63: Jablonec nad Jizerou | AG63: 51243 | AH63: =_xlfn.XLOOKUP(C63,#REF!,#REF!,"Nenalezeno!") ->  | AI63: starosta | AJ63: 00275778 | AK63: CZ00275778 | AL63: 1263087309/0800 | AM63: 157 974 Kč | AN63: 94 782,00 Kč | AO63: =Slovy(O63) -> devadesát čtyřitisíce sedmset osmdesát dva | AP63: 100% | AQ63: 60,00% | AR63: 40,00% | AV63: 181
A64: 122 | B64: Město | C64: Jablonec nad Jizerou | D64: U6c) Pořízení a obnova věcných prostředků PO NENÍ ČASOVÉ RAZÍTKO | E64: Doplnění a obnova vybavení zásahové jednotky SDH Jablonec nad Jizerou | F64: 6c | G64: Lišta k motorové pile - 5 ks, Řetěz k motorové pile - 10 ks, Pilník k motorové pile - 8 ks, Čisticí prostředky řada F3 - 5 litrů, Čisticí prostředky řada F5 - 10 litrů, Čisticí prostředky řada F6 - 5 litrů, Čisticí prostředky řada F15 - 5 litrů | H64: Lišta k motorové pile - 5 ks, Řetěz k motorové pile - 10 ks, Pilník k motorové pile - 8 ks, Čisticí prostředky řada F3 - 5 litrů, Čisticí prostředky řada F5 - 10 litrů, Čisticí prostředky řada F6 - 5 litrů, Čisticí prostředky řada F15 - 5 litrů | I64: 28020 | J64: 16812 | K64: 60 | L64: 11208 | M64: 40 | N64: 28020 | O64: 16812 | P64: 60 | Q64: ANO | R64: 15 | S64: 4.5 | T64: 0 | U64: 0 | V64: 4.5 | W64: 15 | X64: 1.5 | Y64: 7 | Z64: 3.5 | AA64: 5 | AB64: 9.5 | AC64: OLP/01982/2025 | AE64: Jablonec nad Jizerou 277 | AF64: Jablonec nad Jizerou | AG64: 51243 | AH64: =_xlfn.XLOOKUP(C64,#REF!,#REF!,"Nenalezeno!") ->  | AI64: starosta | AJ64: 00275778 | AK64: CZ00275778 | AL64: 1263087309/0800 | AM64: 28 020 Kč | AN64: 16 812,00 Kč | AO64: =Slovy(O64) -> šestnáct tisíc osmset dvanáct | AP64: 100% | AQ64: 60,00% | AR64: 40,00% | AV64: 245
A65: 125 | B65: Město | C65: Jablonec nad Jizerou | D65: U6b) Opravy mobilní techniky | E65: Neopravená a nefunkční technika je výjezdové jednotce k ničemu - opravit se musí | F65: 6b | G65: Pneumatika - 7 ks | H65: Pneumatika - 7 ks | I65: 198457 | J65: 119074 | K65: 60 | L65: 79383 | M65: 40 | N65: 198457 | O65: 119074 | P65: 60 | Q65: ANO | R65: 15 | S65: 4.5 | T65: 0 | U65: 0 | V65: 4.5 | W65: 15 | X65: 1.5 | Y65: 7 | Z65: 3.5 | AA65: 5 | AB65: 9.5 | AC65: OLP/01985/2025 | AE65: Jablonec nad Jizerou 277 | AF65: Jablonec nad Jizerou | AG65: 51243 | AH65: =_xlfn.XLOOKUP(C65,#REF!,#REF!,"Nenalezeno!") ->  | AI65: starosta | AJ65: 00275778 | AK65: CZ00275778 | AL65: 1263087309/0800 | AM65: 198 457 Kč | AN65: 119 074,00 Kč | AO65: =Slovy(O65) -> jednosto devatenáct tisíc sedmdesát čtyři | AP65: 100% | AQ65: 60,00% | AR65: 40,00% | AV65: 17
A66: 130 | B66: Statutární město | C66: Jablonec nad Nisou | D66: Jablonec nad Nisou – nákup ochranných prostředků pro JSDHO 2025 | E66: U2 - pořízeních ochranných prostředků pro JSDHO Kokonín, Proseč nad Nisou a Jablonecké Paseky | F66: 2 | G66: zásahová kukla - 4 ks, zásahové rukavice - 4 páry, Technické rukavice - 4 páry, Svítilna na přilbu - 8 ks, Držák svítilny - 8 ks, Zásahový oblek třívrstvý - 5 komplet, Zásahové kalhoty třívrstvé - 1 ks | H66: zásahová kukla - 4 ks, zásahové rukavice - 4 páry, Technické rukavice - 4 páry, Svítilna na přilbu - 8 ks, Držák svítilny - 8 ks, Zásahový oblek třívrstvý - 5 komplet, Zásahové kalhoty třívrstvé - 1 ks | I66: 148500 | J66: 89000 | K66: 59.93 | L66: 59500 | M66: 40.07 | N66: 148500 | O66: 89000 | P66: 59.93 | Q66: ANO | R66: 15 | S66: 4.5 | T66: 0 | U66: 0 | V66: 4.5 | W66: 15 | X66: 1.5 | Y66: 15 | Z66: 7.5 | AA66: 9 | AB66: 13.5 | AC66: OLP/01990/2025 | AE66: Mírové náměstí 3100/19 | AF66: Jablonec nad Nisou | AG66: 46601 | AH66: =_xlfn.XLOOKUP(C66,#REF!,#REF!,"Nenalezeno!") ->  | AI66: starosta | AJ66: 00262340 | AK66: CZ00262340 | AL66: 9005-228451/0100 | AM66: 148 500 Kč | AN66: 89 000,00 Kč | AO66: =Slovy(O66) -> osmdesát devěttisíc | AP66: 100% | AQ66: 59,93% | AR66: 40,07% | AV66: 201
A67: 135 | B67: Statutární město | C67: Jablonec nad Nisou | D67: Jablonec nad Nisou - prostředky pro likvidaci lesních požárů - JSDHO - 2025 | E67: U5 - obnova a doplnění prostředků využívaných v souvislosti s likvidací lesních požárů pro Jednotky JSDHO Jablonec nad Nisou. | F67: 5 | G67: zásahový oblek jednotvrstvý - 7 ks, nástroj ženijní kombinovaný - 4 ks, tlumice - 4 ks, vak hasící - 1 ks, přilba zásahová pro technické zásahy - 8 ks, rukavice k použití při lesních požárech - 4 páry, svítilna na přilbu - 4 ks | H67: zásahový oblek jednotvrstvý - 7 ks, nástroj ženijní kombinovaný - 4 ks, tlumice - 4 ks, vak hasící - 1 ks, přilba zásahová pro technické zásahy - 8 ks, rukavice k použití při lesních požárech - 4 páry, svítilna na přilbu - 4 ks | I67: 150900 | J67: 90000 | K67: 59.64 | L67: 60900 | M67: 40.36 | N67: 150900 | O67: 90000 | P67: 59.64 | Q67: ANO | R67: 15 | S67: 4.5 | T67: 0 | U67: 0 | V67: 4.5 | W67: 15 | X67: 1.5 | Y67: 15 | Z67: 7.5 | AA67: 9 | AB67: 13.5 | AC67: OLP/01996/2025 | AE67: Mírové náměstí 3100/19 | AF67: Jablonec nad Nisou | AG67: 46601 | AH67: =_xlfn.XLOOKUP(C67,#REF!,#REF!,"Nenalezeno!") ->  | AI67: starosta | AJ67: 00262340 | AK67: CZ00262340 | AL67: 9005-228451/0100 | AM67: 150 900 Kč | AN67: 90 000,00 Kč | AO67: =Slovy(O67) -> devadesát tisíc | AP67: 100% | AQ67: 59,64% | AR67: 40,36% | AV67: 229
A68: 136 | B68: Statutární město | C68: Jablonec nad Nisou | D68: Jablonec nad Nisou - věcné prostředky pro JSDHO Jablonecké Paseky - 2025 | E68: U 6a - obměna hydraulických hadic k sadě HVZ LUKAS, kterou využívá JSDHO Jablonecké Paseky při likvidaci následků dopravních nehod v rámci své předurčenosti | F68: 6a | G68: obměna hydraulických hadic -1 komplet | H68: obměna hydraulických hadic -1 komplet | I68: 59544 | J68: 41000 | K68: 68.86 | L68: 18544 | M68: 31.14 | N68: 59544 | O68: 41000 | P68: 68.86 | Q68: ANO | R68: 15 | S68: 4.5 | T68: 0 | U68: 0 | V68: 4.5 | W68: 15 | X68: 1.5 | Y68: 15 | Z68: 7.5 | AA68: 9 | AB68: 13.5 | AC68: OLP/01997/2025 | AE68: Mírové náměstí 3100/19 | AF68: Jablonec nad Nisou | AG68: 46601 | AH68: =_xlfn.XLOOKUP(C68,#REF!,#REF!,"Nenalezeno!") ->  | AI68: starosta | AJ68: 00262340 | AK68: CZ00262340 | AL68: 9005-228451/0100 | AM68: 59 544 Kč | AN68: 41 000,00 Kč | AO68: =Slovy(O68) -> čtyřicet jedentisíc | AP68: 100% | AQ68: 68,86% | AR68: 31,14% | AV68: 37
A69: 141 | B69: Statutární město | C69: Jablonec nad Nisou | D69: Jablonec nad Nisou - JSDHO Proseč nad Nisou - pořízení nové CAS (V1) | E69: U1 - pořízení nové CAS pro JDSHO Proseč nad Nisou | F69: 1 | G69: pořízení CAS - 1 ks | H69: pořízení CAS - 1 ks | I69: 10057955 | J69: 1500000 | K69: 14.91 | L69: 8557955 | M69: 85.09 | N69: 10057955 | O69: 1500000 | P69: 14.91 | Q69: ANO | R69: 15 | S69: 4.5 | T69: 15 | U69: 1.5 | V69: 6 | W69: 15 | X69: 1.5 | Y69: 15 | Z69: 7.5 | AA69: 9 | AB69: 15 | AC69: OLP/01998/2025 | AE69: Mírové náměstí 3100/19 | AF69: Jablonec nad Nisou | AG69: 46601 | AH69: =_xlfn.XLOOKUP(C69,#REF!,#REF!,"Nenalezeno!") ->  | AI69: starosta | AJ69: 00262340 | AK69: CZ00262340 | AL69: 9005-228451/0100 | AM69: 10 057 955 Kč | AN69: 1 500 000,00 Kč | AO69: =Slovy(O69) -> jedenmilion pětset tisíc | AP69: 90% | AQ69: 14,91% | AR69: 85,09% | AV69: 19
A70: 142 | B70: Statutární město | C70: Jablonec nad Nisou | D70: Jablonec nad Nisou - věcné prostředky pro JSDHO - 2025 | E70: U6c - obnova a doplnění věcných prostředků pro JSDHO Jablonec nad Nisou | F70: 6c | G70: Radiostanice přenosná - 1 ks, Dobíječ k radiostanici - 4 ks, Nabíječka do vozu pro termokameru - 1 ks, Hadice C - 4 ks, Hadice B - 4 ks, Ochranný oděv protichemický - 6 ks, Elektrocentrála - 2 ks, Baterie do radiostanice - 5 ks, Autonabíječe svítilen - 2 ks, Hadice D - 4 ks, Prodlužovací kabel na bubnu - 4 ks, Lano static - 2 ks, Radiostanice DP - 2 ks | H70: Radiostanice přenosná - 1 ks, Dobíječ k radiostanici - 4 ks, Nabíječka do vozu pro termokameru - 1 ks, Hadice C - 4 ks, Hadice B - 4 ks, Ochranný oděv protichemický - 6 ks, Elektrocentrála - 2 ks, Baterie do radiostanice - 5 ks, Autonabíječe svítilen - 2 ks, Hadice D - 4 ks, Prodlužovací kabel na bubnu - 4 ks, Lano static - 2 ks, Radiostanice DP - 2 ks | I70: 324668 | J70: 193000 | K70: 59.45 | L70: 131668 | M70: 40.55 | N70: 324668 | O70: 193000 | P70: 59.45 | Q70: ANO | R70: 15 | S70: 4.5 | T70: 0 | U70: 0 | V70: 4.5 | W70: 15 | X70: 1.5 | Y70: 7 | Z70: 3.5 | AA70: 5 | AB70: 9.5 | AC70: OLP/01999/2025 | AE70: Mírové náměstí 3100/19 | AF70: Jablonec nad Nisou | AG70: 46601 | AH70: =_xlfn.XLOOKUP(C70,#REF!,#REF!,"Nenalezeno!") ->  | AI70: starosta | AJ70: 00262340 | AK70: CZ00262340 | AL70: 9005-228451/0100 | AM70: 324 668 Kč | AN70: 193 000,00 Kč | AO70: =Slovy(O70) -> jednosto devadesát třitisíce | AP70: 100% | AQ70: 59,45% | AR70: 40,55% | AV70: 354
A71: 150 | B71: Město | C71: Jablonné v Podještědí | D71: U2 – Nákup ochranných prostředků PO | E71: Vybavení jednotky sboru dobrovolných hasičů prostředky požární ochrany nutnou při zásazích | F71: 2 | G71: Zásahový oblek DEVA PATRIOT + nápis - 3 ks, Zásahový oblek jednovrstvý BUSHFIRE + nápis - 3 ks, Zásahová lehká přilba HPS 3500 - 4 ks, Zásahová přilba DRAEGER HPS 7000 - 4 ks, Zásahová obuv HAIX FIRE - 3 ks | H71: Zásahový oblek DEVA PATRIOT + nápis - 3 ks, Zásahový oblek jednovrstvý BUSHFIRE + nápis - 3 ks, Zásahová lehká přilba HPS 3500 - 4 ks, Zásahová přilba DRAEGER HPS 7000 - 4 ks, Zásahová obuv HAIX FIRE - 3 ks | I71: 205120 | J71: 123072 | K71: 60 | L71: 82048 | M71: 40 | N71: 205120 | O71: 123072 | P71: 60 | Q71: ANO | R71: 15 | S71: 4.5 | T71: 0 | U71: 0 | V71: 4.5 | W71: 15 | X71: 1.5 | Y71: 15 | Z71: 7.5 | AA71: 9 | AB71: 13.5 | AC71: OLP/02007/2025 | AE71: náměstí Míru 22 | AF71: Jablonné v Podještědí | AG71: 47125 | AH71: =_xlfn.XLOOKUP(C71,#REF!,#REF!,"Nenalezeno!") ->  | AI71: starosta | AJ71: 00260576 | AK71: CZ00260576 | AL71: 903269369/0800 | AM71: 205 120 Kč | AN71: 123 072,00 Kč | AO71: =Slovy(O71) -> jednosto dvacet třitisíce sedmdesát dva | AP71: 100% | AQ71: 60,00% | AR71: 40,00% | AV71: 206
A72: 151 | B72: Město | C72: Jablonné v Podještědí | D72: U6c) - pořízení, obnova, doplnění a oprava techniky | E72: Nákup, pořízení ,obnova, doplnění a oprava techniky | F72: 6b | G72: Pneumatiky MATADOR DR1 - 8 ks | H72: Pneumatiky MATADOR DR1 - 8 ks | I72: 69280 | J72: 41568 | K72: =ROUND(J72/I72*100,2) -> 60 | L72: =I72-J72 -> 27712 | M72: =ROUND(L72/I72*100,2) -> 40 | N72: 69280 | O72: 41568 | P72: =ROUND(O72/N72*100,2) -> 60 | Q72: ANO | R72: 15 | S72: =R72*0.3 -> 4.5 | T72: =IF(K72<=30,"15",IF(K72<=50,"7",IF(K72<=70,"0","!!!"))) -> 0 | U72: =T72*0.1 -> 0 | V72: =S72+U72 -> 4.5 | W72: 15 | X72: =W72*0.1 -> 1.5 | Y72: 7 | Z72: =Y72*0.5 -> 3.5 | AA72: =X72+Z72 -> 5 | AB72: =V72+AA72 -> 9.5 | AC72: OLP/02008/2025 | AE72: náměstí Míru 22 | AF72: Jablonné v Podještědí | AG72: 47125 | AH72: =_xlfn.XLOOKUP(C72,#REF!,#REF!,"Nenalezeno!") ->  | AI72: starosta | AJ72: 00260576 | AK72: CZ00260576 | AL72: 903269369/0800 | AM72: =TEXT(N72,"# ##0 Kč") -> 69 280 Kč | AN72: =TEXT(O72,"# ##0,00 Kč") -> 41 568,00 Kč | AO72: =Slovy(O72) -> čtyřicet jedentisíc pětset šedesát osm | AP72: =IF(O72<=300000,"100%","90%") -> 100% | AQ72: =TEXT(P72,"0,00")& "%" -> 60,00% | AR72: =TEXT(M72,"0,00")& "%" -> 40,00% | AV72: =LEN(H72) -> 29
A73: 109 | B73: Obec | C73: Jindřichovice pod Smrkem | D73: Doplnění prostředků DT a první pomoci pro JSDH Jindřichovice p.Sm. | E73: U1)-U6 a-f. Účelem projektu je pokračovat v doplnění prostředků DT o náhradní lahve Draeger a prostředky pvní pomoci u předurčenosti jednotky pro pomoc s AED | F73: 6c | G73: Doplnění lahví DT Draeger - 4 ks, Záchranářský batoh - 1 ks, Páteřní deska - nosítka - 1 ks | H73: Doplnění lahví DT Draeger - 4 ks, Záchranářský batoh - 1 ks, Páteřní deska - nosítka - 1 ks | I73: 39435 | J73: 23661 | K73: 60 | L73: 15774 | M73: 40 | N73: 39435 | O73: 23661 | P73: 60 | Q73: ANO | R73: 15 | S73: 4.5 | T73: 0 | U73: 0 | V73: 4.5 | W73: 15 | X73: 1.5 | Y73: 7 | Z73: 3.5 | AA73: 5 | AB73: 9.5 | AC73: OLP/01973/2025 | AE73: 245 | AF73: Jindřichovice pod Smrkem | AG73: 46365 | AH73: =_xlfn.XLOOKUP(C73,#REF!,#REF!,"Nenalezeno!") ->  | AI73: starosta | AJ73: 00672025 | AK73: CZ00672025 | AL73: 94-2917461/0710 | AM73: 39 435 Kč | AN73: 23 661,00 Kč | AO73: =Slovy(O73) -> dvacet třitisíce šestset šedesát jedna | AP73: 100% | AQ73: 60,00% | AR73: 40,00% | AV73: 91
A74: 253 | B74: Obec | C74: Jindřichovice pod Smrkem | D74: Oprava podlahy v hasičské zbrojnici | E74: U6f - Oprava podlahy pro stání hasičské cisterny v hasičské zbrojnici a instalace nových okapních svodů na budovu hasičské zbrojnice v Jindřichovicích pod Smrkem. | F74: 6f | G74: Podlaha - 83 m2, Okapní žlaby - 49 m | H74: Podlaha - 83 m2, Okapní žlaby - 49 m | I74: 870162 | J74: 522097 | K74: 60 | L74: 348065 | M74: 40 | N74: 870162 | O74: 522097 | P74: 60 | Q74: ANO | R74: 15 | S74: 4.5 | T74: 0 | U74: 0 | V74: 4.5 | W74: 15 | X74: 1.5 | Y74: 0 | Z74: 0 | AA74: 1.5 | AB74: 6 | AC74: OLP/02100/2025 | AE74: 245 | AF74: Jindřichovice pod Smrkem | AG74: 46365 | AH74: =_xlfn.XLOOKUP(C74,#REF!,#REF!,"Nenalezeno!") ->  | AI74: starosta | AJ74: 00672025 | AK74: CZ00672025 | AL74: 94-2917461/0710 | AM74: 870 162 Kč | AN74: 522 097,00 Kč | AO74: =Slovy(O74) -> pětset dvacet dvatisíce devadesát sedm | AP74: 90% | AQ74: 60,00% | AR74: 40,00% | AV74: 36
A75: 84 | B75: Obec | C75: Kořenov | D75: Pořízení ochranných prostředků pro JPO III Příchovice | E75: U2) Pořízení, obnova a doplnění ochranných prostředků požární ochrany | F75: 2 | G75: Zásahový oblek - 3 ks, Zásahová obuv - 3 páry, Zásahová přilba - 1 kus, Záchranářské rukavice - 4 páry, Ochranná kukla - 4 ks | H75: Zásahový oblek - 3 ks, Zásahová obuv - 3 páry, Zásahová přilba - 1 kus, Záchranářské rukavice - 4 páry, Ochranná kukla - 4 ks | I75: 80841 | J75: 48505 | K75: 60 | L75: 32336 | M75: 40 | N75: 80841 | O75: 48505 | P75: 60 | Q75: ANO | R75: 15 | S75: 4.5 | T75: 0 | U75: 0 | V75: 4.5 | W75: 15 | X75: 1.5 | Y75: 15 | Z75: 7.5 | AA75: 9 | AB75: 13.5 | AC75: OLP/01953/2025 | AE75: 480 | AF75: Kořenov | AG75: 46849 | AH75: =_xlfn.XLOOKUP(C75,#REF!,#REF!,"Nenalezeno!") ->  | AI75: starosta | AJ75: 00262421 | AK75: CZ00262421 | AL75: 1925451/0100 | AM75: 80 841 Kč | AN75: 48 505,00 Kč | AO75: =Slovy(O75) -> čtyřicet osmtisíc pětset pět | AP75: 100% | AQ75: 60,00% | AR75: 40,00% | AV75: 125
A76: 46 | B76: Město | C76: Krásný Les | D76: Doplnění osobních ochranných prostředků požární ochrany JPO5 Krásný Les | E76: U2 - obnova a doplnění osobních ochranných prostředků požární ochrany | F76: 2 | G76: jednovrtstvý zásahový oblek - 3 ks, Zásahová obuv - 3 ks, zásahové rukavice - 2 ks | H76: jednovrtstvý zásahový oblek - 3 ks, Zásahová obuv - 3 ks, zásahové rukavice - 2 ks | I76: 50000 | J76: 25000 | K76: 50 | L76: 25000 | M76: 50 | N76: 50000 | O76: 25000 | P76: 50 | Q76: ANO | R76: 7 | S76: 2.1 | T76: 7 | U76: 0.7 | V76: 2.8 | W76: 15 | X76: 1.5 | Y76: 15 | Z76: 7.5 | AA76: 9 | AB76: 11.8 | AC76: OLP/01918/2025 | AE76: 257 | AF76: Krásný Les | AG76: 46401 | AH76: =_xlfn.XLOOKUP(C76,#REF!,#REF!,"Nenalezeno!") ->  | AJ76: 00672009 | AL76: 19727461/0100 | AM76: 50 000 Kč | AN76: 25 000,00 Kč | AO76: =Slovy(O76) -> dvacet pěttisíc | AP76: 100% | AQ76: 50,00% | AR76: 50,00% | AV76: 82
A77: 21 | B77: Obec | C77: Kravaře | D77: U5) Doplnění vybavení pro likvidaci lesních požárů | E77: Vybavení CAS 24 a CAS 30 prostředky pro zefektivnění likvidace lesních požárů. | F77: 5 | G77: Motykohrábě - 2 ks, Zádový hasící vak - 2 ks, Rozdělovač DCD - 1 ks, Proudnice D - 2 ks | H77: Motykohrábě - 1 ks, Zádový hasící vak - 1 ks, Rozdělovač DCD - 1 ks, Proudnice D - 2 ks | I77: 52118 | J77: 31270 | K77: 60 | L77: 20848 | M77: 40 | N77: 38818 | O77: 23290 | P77: 60 | Q77: ANO lze pořídit pouze 1 ks motykohrábí a 1 ks zádového hasicího vaku | R77: 15 | S77: 4.5 | T77: 0 | U77: 0 | V77: 4.5 | W77: 15 | X77: 1.5 | Y77: 15 | Z77: 7.5 | AA77: 9 | AB77: 13.5 | AC77: OLP/01898/2025 | AE77: náměstí 166 | AF77: Kravaře | AG77: 47103 | AH77: =_xlfn.XLOOKUP(C77,#REF!,#REF!,"Nenalezeno!") ->  | AI77: starosta | AJ77: 00260657 | AL77: 2006-2117421/0710 | AM77: 38 818 Kč | AN77: 23 290,00 Kč | AO77: =Slovy(O77) -> dvacet třitisíce dvěstě devadesát | AP77: 100% | AQ77: 60,00% | AR77: 40,00% | AV77: 87
A78: 22 | B78: Obec | C78: Kravaře | D78: U2) obnova a doplnění vybavení osobními ochrannými pracovními prostředky | E78: U2) obnova a doplnění vybavení osobními ochrannými pracovními prostředky | F78: 2 | G78: Třívrstvý zásahový oděv - 2 ks, Zásahové rukavice - 4 ks, Dvouvrstvá zásahová kukla - 4 ks, Svítilna k přilbě - 4 ks | H78: Třívrstvý zásahový oděv - 2 ks, Zásahové rukavice - 4 ks, Dvouvrstvá zásahová kukla - 4 ks, Svítilna k přilbě - 4 ks | I78: 64648 | J78: 38788 | K78: 60 | L78: 25860 | M78: 40 | N78: 64648 | O78: 38788 | P78: 60 | Q78: ANO | R78: 15 | S78: 4.5 | T78: 0 | U78: 0 | V78: 4.5 | W78: 15 | X78: 1.5 | Y78: 15 | Z78: 7.5 | AA78: 9 | AB78: 13.5 | AC78: OLP/01899/2025 | AE78: náměstí 166 | AF78: Kravaře | AG78: 47103 | AH78: =_xlfn.XLOOKUP(C78,#REF!,#REF!,"Nenalezeno!") ->  | AI78: starosta | AJ78: 00260657 | AL78: 2006-2117421/0710 | AM78: 64 648 Kč | AN78: 38 788,00 Kč | AO78: =Slovy(O78) -> třicet osmtisíc sedmset osmdesát osm | AP78: 100% | AQ78: 60,00% | AR78: 40,00% | AV78: 116
A79: 33 | B79: Obec | C79: Kravaře | D79: U4 Obnova vybavení jednotky pro řešení povodní a mimořádných událostí spojených s vodou | E79: Nákup čerpadla a vysavače pro účel nasazení při mimořádných událostech spojených se záplavami nebo povodněmi nebo haváriemi spojených s vodou. | F79: 4 | G79: Vysavač průmyslový - 1 ks, Kalové čerpadlo se spalovacím motorem - 1 ks | H79: Vysavač průmyslový - 1 ks | I79: 98073 | J79: 58843 | K79: 60 | L79: 39230 | M79: 40 | N79: 84458 | O79: 50674 | P79: 60 | Q79: ANO kalové čerpadlo nesplňuje požadavek na minimální průtok 1150 l/min | R79: 15 | S79: 4.5 | T79: 0 | U79: 0 | V79: 4.5 | W79: 15 | X79: 1.5 | Y79: 15 | Z79: 7.5 | AA79: 9 | AB79: 13.5 | AC79: OLP/01907/2025 | AE79: náměstí 166 | AF79: Kravaře | AG79: 47103 | AH79: =_xlfn.XLOOKUP(C79,#REF!,#REF!,"Nenalezeno!") ->  | AI79: starosta | AJ79: 00260657 | AL79: 2006-2117421/0710 | AM79: 84 458 Kč | AN79: 50 674,00 Kč | AO79: =Slovy(O79) -> padesát tisíc šestset sedmdesát čtyři | AP79: 100% | AQ79: 60,00% | AR79: 40,00% | AV79: 25
A80: 34 | B80: Obec | C80: Kravaře | D80: U6 e) - Vybavení hasičské zbrojnice vysokotlakým čističem WAP | E80: Účelem poskytnutí dotace bude pořízení horkovodního vysokotlakého čističe WAP. | F80: 6e | G80: Horkovodní vysokotlaký čistič WAP - 1 ks | H80: Horkovodní vysokotlaký čistič WAP - 1 ks | I80: 104000 | J80: 62400 | K80: 60 | L80: 41600 | M80: 40 | N80: 104000 | O80: 62400 | P80: 60 | Q80: ANO | R80: 15 | S80: 4.5 | T80: 0 | U80: 0 | V80: 4.5 | W80: 15 | X80: 1.5 | Y80: 0 | Z80: 0 | AA80: 1.5 | AB80: 6 | AC80: OLP/01908/2025 | AE80: náměstí 166 | AF80: Kravaře | AG80: 47103 | AH80: =_xlfn.XLOOKUP(C80,#REF!,#REF!,"Nenalezeno!") ->  | AI80: starosta | AJ80: 00260657 | AL80: 2006-2117421/0710 | AM80: 104 000 Kč | AN80: 62 400,00 Kč | AO80: =Slovy(O80) -> šedesát dvatisíce čtyřista | AP80: 100% | AQ80: 60,00% | AR80: 40,00% | AV80: 40
A81: 81 | B81: Obec | C81: Kravaře | D81: U6a) pořízení a obnova technických prostředků | E81: Doplnění a obnova výbavy jednotky pro zvýšení akceschopnosti a pro naplnění požadavků výbavy CAS dle platných legislativních požadavků a k plnění základních úkolů jednotek uložených zákonem o PO | F81: 6c | G81: Náhradní zdroje do svítilen Survivor - 3 ks, Náhradní zdroje do RDST GP - 2 ks, Náhradní zdroj do RDST DP - 1 ks, Hadicový sběrač - 1 ks, Osvětlovací systém PELI - 1 ks, Proudnice na střední pěnu - 1 ks, Přenosný přiměšovač - 1 ks, Svítilna Survivor - 3 ks, Skříňka s elektronástroji - 1 ks, Suchý oblek do vody SET - 2 ks, Vesta plovací - 2 ks, Přilba vodácká - 2 ks, Rukavice pro komínové požáry do 1000°C - 1 pár | H81: Náhradní zdroje do svítilen Survivor - 3 ks, Náhradní zdroje do RDST GP - 2 ks, Náhradní zdroj do RDST DP - 1 ks, Hadicový sběrač - 1 ks, Osvětlovací systém PELI - 1 ks, Proudnice na střední pěnu - 1 ks, Přenosný přiměšovač - 1 ks, Svítilna Survivor - 3 ks, Skříňka s elektronástroji - 1 ks, Suchý oblek do vody SET - 2 ks, Vesta plovací - 2 ks, Přilba vodácká - 2 ks, Rukavice pro komínové požáry do 1000°C - 1 pár | I81: 187939 | J81: 100000 | K81: 53.21 | L81: 87939 | M81: 46.79 | N81: 187939 | O81: 100000 | P81: 53.21 | Q81: ANO | R81: 15 | S81: 4.5 | T81: 0 | U81: 0 | V81: 4.5 | W81: 15 | X81: 1.5 | Y81: 7 | Z81: 3.5 | AA81: 5 | AB81: 9.5 | AC81: OLP/01949/2025 | AE81: náměstí 166 | AF81: Kravaře | AG81: 47103 | AH81: =_xlfn.XLOOKUP(C81,#REF!,#REF!,"Nenalezeno!") ->  | AI81: starosta | AJ81: 00260657 | AL81: 2006-2117421/0710 | AM81: 187 939 Kč | AN81: 100 000,00 Kč | AO81: =Slovy(O81) -> jednosto tisíc | AP81: 100% | AQ81: 53,21% | AR81: 46,79% | AV81: 415
A82: 57 | B82: Obec | C82: Krompach | D82: U2 - Obnova a doplnění osobních ochranných prostředků členů požární jednotky obce Krompach. | E82: Cílem projektu je pořízení osobních ochranných prostředků, především svítilen, které ve vybavení jednotky schází a zvýší tak její akceschopnost především při zdolávání mimořádných událostí v otevřeném prostředí (lesní požáry, technická pomoc apod.) | F82: 2 | G82: 0032687:kabát zásahový jednovrstvý FR2 FireFalcon - STAR, 182/52 [OH 102-106 cm], 217 63 S - 4 ks, 0032749:kalhoty zásahové jednovrstvé FR2 FireFalcon - STAR, 182/52 [OP 93-98 cm], 217 12 S - 4 ks, 0017325:obuv zásahová Red Fighter - podešev Michelin, 43, 208 99 - 4 páry, 65991:přilba GALLET F2 XR žlutá fotoluminiscenční vnější brýle, držák, 21 000 400-YP001 vnější brýle, držák, samolepy - 4 ks, 65459:svítilna ruční nabíjecí ADALIT L-90 R POWER F LED Ex bez nabíječe, L.90RPF - 4 ks, 65461:nabíječka 12/24V pro svítilnu ADALIT L-90, CVL90.1 - 4 ks, 66197:svítilna ADALIT L-20F LED Ex, včetně držáku na přilbu, L.20F - 4 ks, 61227:kukla dvouvrstvá DEVOLD SPIRIT s otvorem na obličej, 120 817 950 - 4 ks | H82: 0032687:kabát zásahový jednovrstvý FR2 FireFalcon - STAR, 182/52 [OH 102-106 cm], 217 63 S - 4 ks, 0032749:kalhoty zásahové jednovrstvé FR2 FireFalcon - STAR, 182/52 [OP 93-98 cm], 217 12 S - 4 ks, 0017325:obuv zásahová Red Fighter - podešev Michelin, 43, 208 99 - 4 páry, 65991:přilba GALLET F2 XR žlutá fotoluminiscenční vnější brýle, držák, 21 000 400-YP001 vnější brýle, držák, samolepy - 4 ks, 65459:svítilna ruční nabíjecí ADALIT L-90 R POWER F LED Ex bez nabíječe, L.90RPF - 4 ks, 65461:nabíječka 12/24V pro svítilnu ADALIT L-90, CVL90.1 - 4 ks, 66197:svítilna ADALIT L-20F LED Ex, včetně držáku na přilbu, L.20F - 4 ks, 61227:kukla dvouvrstvá DEVOLD SPIRIT s otvorem na obličej, 120 817 950 - 4 ks | I82: 131880 | J82: 79128 | K82: 60 | L82: 52752 | M82: 40 | N82: 131880 | O82: 79128 | P82: 60 | Q82: ANO | R82: 7 | S82: 2.1 | T82: 0 | U82: 0 | V82: 2.1 | W82: 15 | X82: 1.5 | Y82: 15 | Z82: 7.5 | AA82: 9 | AB82: 11.1 | AC82: OLP/01928/2025 | AE82: 49 | AF82: Krompach | AG82: 47157 | AH82: =_xlfn.XLOOKUP(C82,#REF!,#REF!,"Nenalezeno!") ->  | AI82: starostka | AJ82: 00673421 | AK82: CZ00673421 | AL82: 903996339/0800 | AM82: 131 880 Kč | AN82: 79 128,00 Kč | AO82: =Slovy(O82) -> sedmdesát devěttisíc jednosto dvacet osm | AP82: 100% | AQ82: 60,00% | AR82: 40,00% | AV82: 705
A83: 167 | B83: Obec | C83: Kruh | D83: Nákup ochranných prostředků | E83: U2) Obnova a doplnění osobních ochranných prostředků požární ochrany | F83: 2 | G83: AP1 s karabinou - pracovní polohovací pás - 2 ks, Vesta výstražná s nápisem dle GŘ HZS - 1 ks, Red Fighter zásahová obuv - 3 ks, SICOR EOM lehká zásahová přilba s brýlemi - 4 ks, Ochranný textilní kryt na brýle - 4 ks, Reflexní polep přilby EOM s potiskem - 4 ks, svítilna NightStick XPP-5418GX - 4 ks, držák svítilny NightStick XPP-5418GX - 4 ks | H83: AP1 s karabinou - pracovní polohovací pás - 2 ks, Vesta výstražná s nápisem dle GŘ HZS - 1 ks, Red Fighter zásahová obuv - 3 ks, SICOR EOM lehká zásahová přilba s brýlemi - 4 ks, Ochranný textilní kryt na brýle - 4 ks, Reflexní polep přilby EOM s potiskem - 4 ks, svítilna NightStick XPP-5418GX - 4 ks, držák svítilny NightStick XPP-5418GX - 4 ks | I83: 48345 | J83: 24172 | K83: 50 | L83: 24173 | M83: 50 | N83: 48345 | O83: 24172 | P83: 50 | Q83: ANO | R83: 7 | S83: 2.1 | T83: 7 | U83: 0.7 | V83: 2.8 | W83: 15 | X83: 1.5 | Y83: 15 | Z83: 7.5 | AA83: 9 | AB83: 11.8 | AC83: OLP/02027/2025 | AE83: 165 | AF83: Kruh | AG83: 51401 | AH83: =_xlfn.XLOOKUP(C83,#REF!,#REF!,"Nenalezeno!") ->  | AI83: starosta | AJ83: 00275859 | AK83: CZ00275859 | AL83: 3820581/0100 | AM83: 48 345 Kč | AN83: 24 172,00 Kč | AO83: =Slovy(O83) -> dvacet čtyřitisíce jednosto sedmdesát dva | AP83: 100% | AQ83: 50,00% | AR83: 50,00% | AV83: 346
A84: 186 | B84: Obec | C84: Kryštofovo Údolí | D84: Dovybavení JSDH Kryštofovo Údolí ochrannými prostředky | E84: Dovybavení JSDH chybějícími ochrannými prostředky | F84: 2 | G84: Přilba MSA Gallet F2 XR - 4 ks, Rukavice zásahové Brela Easy - 3 ks, Kompletní zásahový oblek Patriot Elite - 3 ks, Reflexní nápis - 3 ks | H84: Přilba MSA Gallet F2 XR - 4 ks, Rukavice zásahové Brela Easy - 3 ks, Kompletní zásahový oblek Patriot Elite - 3 ks, Reflexní nápis - 3 ks | I84: 92495 | J84: 55496 | K84: 60 | L84: 36999 | M84: 40 | N84: 92495 | O84: 55496 | P84: 60 | Q84: ANO | R84: 7 | S84: 2.1 | T84: 0 | U84: 0 | V84: 2.1 | W84: 15 | X84: 1.5 | Y84: 15 | Z84: 7.5 | AA84: 9 | AB84: 11.1 | AC84: OLP/02045/2025 | AE84: Kryštofovo Údolí 166 | AF84: Kryštofovo Údolí | AG84: 46001 | AH84: =_xlfn.XLOOKUP(C84,#REF!,#REF!,"Nenalezeno!") ->  | AI84: starostka | AJ84: 00671991 | AL84: 20429461/0100 | AM84: 92 495 Kč | AN84: 55 496,00 Kč | AO84: =Slovy(O84) -> padesát pěttisíc čtyřista devadesát šest | AP84: 100% | AQ84: 60,00% | AR84: 40,00% | AV84: 137
A85: 189 | B85: Obec | C85: Kryštofovo Údolí | D85: Dovybavení JSDH Kryštofovo Údolí věcnými prostředky | E85: Níže uvedené věcné prostředky ve vybavení JSDH Kryštofovo Údolí zcela chybí | F85: 6c | G85: Láhev ocelová 6l/300 Extra 5/8kg - 1 ks, Set dýchací přístroj PSS4000/O/FPSS - 2 ks | H85: Láhev ocelová 6l/300 Extra 5/8kg - 1 ks, Set dýchací přístroj PSS4000/O/FPSS - 2 ks | I85: 95695 | J85: 57416 | K85: 60 | L85: 38279 | M85: 40 | N85: 95695 | O85: 57416 | P85: 60 | Q85: ANO | R85: 7 | S85: 2.1 | T85: 0 | U85: 0 | V85: 2.1 | W85: 15 | X85: 1.5 | Y85: 7 | Z85: 3.5 | AA85: 5 | AB85: 7.1 | AC85: OLP/02048/2025 | AE85: Kryštofovo Údolí 166 | AF85: Kryštofovo Údolí | AG85: 46001 | AH85: =_xlfn.XLOOKUP(C85,#REF!,#REF!,"Nenalezeno!") ->  | AI85: starostka | AJ85: 00671991 | AL85: 20429461/0100 | AM85: 95 695 Kč | AN85: 57 416,00 Kč | AO85: =Slovy(O85) -> padesát sedmtisíc čtyřista šestnáct | AP85: 100% | AQ85: 60,00% | AR85: 40,00% | AV85: 83
A86: 52 | B86: Obec | C86: Kunratice u Cvikova | D86: Oprava vozidla CAS TATRA 815 | E86: U6b - Oprava vozidla CAS TATRA 815 (karosérie). | F86: 6b | G86: Oprava vozidla CAS TATRA 815 - 1 ks | H86: Oprava vozidla CAS TATRA 815 - 1 ks | I86: 90000 | J86: 54000 | K86: 60 | L86: 36000 | M86: 40 | N86: 90000 | O86: 54000 | P86: 60 | Q86: ANO | R86: 15 | S86: 4.5 | T86: 0 | U86: 0 | V86: 4.5 | W86: 15 | X86: 1.5 | Y86: 7 | Z86: 3.5 | AA86: 5 | AB86: 9.5 | AC86: OLP/01924/2025 | AE86: 145 | AF86: Kunratice u Cvikova | AG86: 47155 | AH86: =_xlfn.XLOOKUP(C86,#REF!,#REF!,"Nenalezeno!") ->  | AI86: starosta | AJ86: 00524301 | AL86: 903264349/0800 | AM86: 90 000 Kč | AN86: 54 000,00 Kč | AO86: =Slovy(O86) -> padesát čtyřitisíce | AP86: 100% | AQ86: 60,00% | AR86: 40,00% | AV86: 35
A87: 159 | B87: Obec | C87: Kunratice u Cvikova | D87: Pořízení věcných prostředků požární ochrany a technického vybavení hasičských zbrojnic - svolávací systém | E87: Pořízení nového svolávacího systému hasičů. | F87: 6e | G87: Svolávací systém - 1 ks | H87: Svolávací systém - 1 ks | I87: 27000 | J87: 16200 | K87: 60 | L87: 10800 | M87: 40 | N87: 27000 | O87: 16200 | P87: 60 | Q87: ANO | R87: 15 | S87: 4.5 | T87: 0 | U87: 0 | V87: 4.5 | W87: 15 | X87: 1.5 | Y87: 0 | Z87: 0 | AA87: 1.5 | AB87: 6 | AC87: OLP/02013/2025 | AE87: 145 | AF87: Kunratice u Cvikova | AG87: 47155 | AH87: =_xlfn.XLOOKUP(C87,#REF!,#REF!,"Nenalezeno!") ->  | AI87: starosta | AJ87: 00524301 | AL87: 903264349/0800 | AM87: 27 000 Kč | AN87: 16 200,00 Kč | AO87: =Slovy(O87) -> šestnáct tisíc dvěstě | AP87: 100% | AQ87: 60,00% | AR87: 40,00% | AV87: 23
A88: 206 | B88: Obec | C88: Lázně Libverda | D88: Obnova osobních ochranných prostředků požární ochrany pro JPO III Obce Lázně Libverda | E88: Účel podpory U2 - Obnova osobních ochranných prostředků požární ochrany pro JPO III Obce Lázně Libverda | F88: 2 | G88: Komplet zásahový oděv DEVA PATRIOT ELITE CZ - 4 ks, Prsačky DUNLOP - 2 ks, U2 | H88: Komplet zásahový oděv DEVA PATRIOT ELITE CZ - 4 ks | I88: 89200 | J88: 44600 | K88: 50 | L88: 44600 | M88: 50 | N88: 84800 | O88: 42400 | P88: 50 | Q88: ANO prsačky nejsou podporovaným OOPP v tomto účelu | R88: 15 | S88: 4.5 | T88: 7 | U88: 0.7 | V88: 5.2 | W88: 15 | X88: 1.5 | Y88: 15 | Z88: 7.5 | AA88: 9 | AB88: 14.2 | AC88: OLP/02057/2025 | AE88: 16 | AF88: Lázně Libverda | AG88: 46362 | AH88: =_xlfn.XLOOKUP(C88,#REF!,#REF!,"Nenalezeno!") ->  | AI88: starosta | AJ88: 00671983 | AK88: CZ00671983 | AL88: 984940379/0800 | AM88: 84 800 Kč | AN88: 42 400,00 Kč | AO88: =Slovy(O88) -> čtyřicet dvatisíce čtyřista | AP88: 100% | AQ88: 50,00% | AR88: 50,00% | AV88: 50
A89: 213 | B89: Obec | C89: Lázně Libverda | D89: Pořízení věcných prostředků požární ochrany pro JPO III Obce Lázně Libverda | E89: Účel podpory U6c - Doplnění přetlakové dýchací techniky pro JPO III Obce Lázně Libverda. | F89: 6c | G89: Dýchací přístroj DRAEGER PSS 4000 set - 2 ks, Tlaková lahev kompozitní - 1 ks | H89: Dýchací přístroj DRAEGER PSS 4000 set - 2 ks, Tlaková lahev kompozitní - 1 ks | I89: 117400 | J89: 58700 | K89: 50 | L89: 58700 | M89: 50 | N89: 117400 | O89: 58700 | P89: 50 | Q89: ANO | R89: 15 | S89: 4.5 | T89: 7 | U89: 0.7 | V89: 5.2 | W89: 15 | X89: 1.5 | Y89: 7 | Z89: 3.5 | AA89: 5 | AB89: 10.2 | AC89: OLP/02063/2025 | AE89: 16 | AF89: Lázně Libverda | AG89: 46362 | AH89: =_xlfn.XLOOKUP(C89,#REF!,#REF!,"Nenalezeno!") ->  | AI89: starosta | AJ89: 00671983 | AK89: CZ00671983 | AL89: 984940379/0800 | AM89: 117 400 Kč | AN89: 58 700,00 Kč | AO89: =Slovy(O89) -> padesát osmtisíc sedmset | AP89: 100% | AQ89: 50,00% | AR89: 50,00% | AV89: 77
A90: 218 | B90: Obec | C90: Lažany | D90: Nákup ochranných prostředků pro JSDHO Lažany | E90: V rámci projektu budou pořízeny nové ochranné osobní prostředky pro JSDHO Lažany. Nové ochranné prostředky nahradí poškozené či opotřebené vybavení, a to pro zajištění maximální bezpečnosti hasičů při zásahu. | F90: 2 | G90: Jednovrstvý zásahový oblek - 2 ks | H90: Jednovrstvý zásahový oblek - 2 ks | I90: 27494 | J90: 16000 | K90: 58.19 | L90: 11494 | M90: 41.81 | N90: 27494 | O90: 16000 | P90: 58.19 | Q90: ANO | R90: 7 | S90: 2.1 | T90: 0 | U90: 0 | V90: 2.1 | W90: 15 | X90: 1.5 | Y90: 15 | Z90: 7.5 | AA90: 9 | AB90: 11.1 | AC90: OLP/02070/2025 | AE90: 67 | AF90: Lažany | AG90: 46345 | AH90: =_xlfn.XLOOKUP(C90,#REF!,#REF!,"Nenalezeno!") ->  | AI90: starosta | AJ90: 00671975 | AL90: 20824461/0100 | AM90: 27 494 Kč | AN90: 16 000,00 Kč | AO90: =Slovy(O90) -> šestnáct tisíc | AP90: 100% | AQ90: 58,19% | AR90: 41,81% | AV90: 33
A91: 76 | B91: Statutární město | C91: Liberec | D91: Nákup osobních ochranných prostředků požární ochrany | E91: U2)Nákup osobních ochranných prostředků požární ochrany pro jednotky dobrovolných hasičů města Liberec. | F91: 2 | G91: Zásahový oblek třívrstvý - 13ks, Zásahová obuv - 8 ks, Zásahové rukavice - 14 ks, Rukavice pro technické zásahy - 22 ks, Polohovací opasek - 9 ks | H91: Zásahový oblek třívrstvý - 13ks, Zásahová obuv - 8 ks, Zásahové rukavice - 14 ks, Rukavice pro technické zásahy - 22 ks, Polohovací opasek - 9 ks | I91: 460000 | J91: 276000 | K91: 60 | L91: 184000 | M91: 40 | N91: 460000 | O91: 276000 | P91: 60 | Q91: ANO | R91: 15 | S91: 4.5 | T91: 0 | U91: 0 | V91: 4.5 | W91: 15 | X91: 1.5 | Y91: 15 | Z91: 7.5 | AA91: 9 | AB91: 13.5 | AC91: OLP/01944/2025 | AE91: nám. Dr. E. Beneše 1/1 | AF91: Liberec | AG91: 46001 | AH91: =_xlfn.XLOOKUP(C91,#REF!,#REF!,"Nenalezeno!") ->  | AI91: starosta | AJ91: 00262978 | AK91: CZ00262978 | AL91: 1089692/0800 | AM91: 460 000 Kč | AN91: 276 000,00 Kč | AO91: =Slovy(O91) -> dvěstě sedmdesát šesttisíc | AP91: 100% | AQ91: 60,00% | AR91: 40,00% | AV91: 145
A92: 79 | B92: Statutární město | C92: Liberec | D92: Oprava cisternových automobilových stříkaček JSDH Pilínkov, JSDH Růžodol a JSDH Vratislavice nad Nisou. | E92: Oprava cisternových automobilových stříkaček JSDH Pilínkov, JSDH Růžodol a JSDH Vratislavice nad Nisou | F92: 6b | G92: Oprava CAS JSDH Pilínkov - 1 ks, Oprava CAS JSDH Růžodol - 1 ks, Oprava CAS JSDH Vratislavice nad Nisou - 1 ks | H92: Oprava CAS JSDH Pilínkov - 1 ks, Oprava CAS JSDH Růžodol - 1 ks, Oprava CAS JSDH Vratislavice nad Nisou - 1 ks | I92: 182000 | J92: 109200 | K92: 60 | L92: 72800 | M92: 40 | N92: 182000 | O92: 109200 | P92: 60 | Q92: ANO | R92: 15 | S92: 4.5 | T92: 0 | U92: 0 | V92: 4.5 | W92: 15 | X92: 1.5 | Y92: 7 | Z92: 3.5 | AA92: 5 | AB92: 9.5 | AC92: OLP/01947/2025 | AE92: nám. Dr. E. Beneše 1/1 | AF92: Liberec | AG92: 46001 | AH92: =_xlfn.XLOOKUP(C92,#REF!,#REF!,"Nenalezeno!") ->  | AI92: starosta | AJ92: 00262978 | AK92: CZ00262978 | AL92: 1089692/0800 | AM92: 182 000 Kč | AN92: 109 200,00 Kč | AO92: =Slovy(O92) -> jednosto devěttisíc dvěstě | AP92: 100% | AQ92: 60,00% | AR92: 40,00% | AV92: 110
A93: 103 | B93: Statutární město | C93: Liberec | D93: Nákup věcných prostředků požární ochrany | E93: U6c) Pořízení, obnova, doplnění a opravy věcných prostředků ochrany | F93: 6c | G93: Termo kamera - 1 ks, Sací koš plovoucí - 1 ks, Proudnice C kombi AWG - 2 ks, Variabilní vyprošťovací nástroj - 1 ks, Oblouk opěrný B75 AWG - 1 ks, Proudnice kombinovaná B 75 - 1 ks, Trhací hák - 1 ks, Žebřík záchranářský čtyřdílný - 1 ks, Deflektor C 52 - 2 ks, Páteřní deska - 1 ks, Vesta plovací - 2 ks, Pláštěnka hasičská - 4 ks, Savice A 110 - 2 ks, Upínací pás- multifunkční popruh - 2 ks, Batoh na lano - 2 ks, Hadice B 75 - 2 ks, Hadice B 65 - 2 ks, Lékárnička – záchranářský batoh - 1 ks | H93: Termo kamera - 1 ks, Sací koš plovoucí - 1 ks, Proudnice C kombi AWG - 2 ks, Variabilní vyprošťovací nástroj - 1 ks, Oblouk opěrný B75 AWG - 1 ks, Proudnice kombinovaná B 75 - 1 ks, Trhací hák - 1 ks, Žebřík záchranářský čtyřdílný - 1 ks, Deflektor C 52 - 2 ks, Páteřní deska - 1 ks, Vesta plovací - 2 ks, Pláštěnka hasičská - 4 ks, Savice A 110 - 2 ks, Upínací pás- multifunkční popruh - 2 ks, Batoh na lano - 2 ks, Hadice B 75 - 2 ks, Hadice B 65 - 2 ks, Lékárnička – záchranářský batoh - 1 ks | I93: 178000 | J93: 106800 | K93: 60 | L93: 71200 | M93: 40 | N93: 178000 | O93: 106800 | P93: 60 | Q93: ANO | R93: 15 | S93: 4.5 | T93: 0 | U93: 0 | V93: 4.5 | W93: 15 | X93: 1.5 | Y93: 7 | Z93: 3.5 | AA93: 5 | AB93: 9.5 | AC93: OLP/01968/2025 | AE93: nám. Dr. E. Beneše 1/1 | AF93: Liberec | AG93: 46001 | AH93: =_xlfn.XLOOKUP(C93,#REF!,#REF!,"Nenalezeno!") ->  | AI93: starosta | AJ93: 00262978 | AK93: CZ00262978 | AL93: 1089692/0800 | AM93: 178 000 Kč | AN93: 106 800,00 Kč | AO93: =Slovy(O93) -> jednosto šesttisíc osmset | AP93: 100% | AQ93: 60,00% | AR93: 40,00% | AV93: 495
A94: 107 | B94: Statutární město | C94: Liberec | D94: Nákup věcných prostředků pro zásahy v souvislosti s liokvidací lesních požárů | E94: Pořízení, obnova, doplnění a opravy věcných prostředků požární ochrany pro zásahy v souvislosti s likvidací lesních požárů | F94: 5 | G94: Polomaska - maska Vallfirest- Nano filtr - 14 ks, Přilba Dräger 3500 - 8 ks, Proudnice kombinovaná D 25 - 2 ks, Zásahový ochranný oblek jednovrstvý - 32 ks, Zádový vak - 1 ks, Motykohrábě pro lesní požáry - 3 ks, Tlumice ohně kovová - 2 ks, Hadice D 25 20 m - 6 ks | H94: Polomaska - maska Vallfirest- Nano filtr - 14 ks, Přilba Dräger 3500 - 8 ks, Proudnice kombinovaná D 25 - 2 ks, Zásahový ochranný oblek jednovrstvý - 32 ks, Zádový vak - 1 ks, Motykohrábě pro lesní požáry - 3 ks, Tlumice ohně kovová - 2 ks, Hadice D 25 20 m - 6 ks | I94: 521000 | J94: 312600 | K94: 60 | L94: 208400 | M94: 40 | N94: 521000 | O94: 312600 | P94: 60 | Q94: ANO | R94: 15 | S94: 4.5 | T94: 0 | U94: 0 | V94: 4.5 | W94: 15 | X94: 1.5 | Y94: 15 | Z94: 7.5 | AA94: 9 | AB94: 13.5 | AC94: OLP/01971/2025 | AE94: nám. Dr. E. Beneše 1/1 | AF94: Liberec | AG94: 46001 | AH94: =_xlfn.XLOOKUP(C94,#REF!,#REF!,"Nenalezeno!") ->  | AI94: starosta | AJ94: 00262978 | AK94: CZ00262978 | AL94: 1089692/0800 | AM94: 521 000 Kč | AN94: 312 600,00 Kč | AO94: =Slovy(O94) -> třista dvanáct tisíc šestset | AP94: 90% | AQ94: 60,00% | AR94: 40,00% | AV94: 264
A95: 64 | B95: Městys | C95: Libštát | D95: Nákup věcných prostředků U6c | E95: U6c pořízení věcných prostředků | F95: 6c | G95: Záchranářský batoh - 1 ks, Akumulátor pro radiostanice HYT TC700 - 2 ks, Náhradní akumulátor pro RLS 2000 Pb - 1 ks, Set dýchací přístroj PSS4000 s druhým vývodem a evakuační maskou a brašnou na masku - 2 ks | H95: Záchranářský batoh - 1 ks, Akumulátor pro radiostanice HYT TC700 - 2 ks, Náhradní akumulátor pro RLS 2000 Pb - 1 ks, Set dýchací přístroj PSS4000 s druhým vývodem a evakuační maskou a brašnou na masku - 2 ks | I95: 121893 | J95: 73135 | K95: 60 | L95: 48758 | M95: 40 | N95: 121893 | O95: 73135 | P95: 60 | Q95: ANO | R95: 15 | S95: 4.5 | T95: 0 | U95: 0 | V95: 4.5 | W95: 15 | X95: 1.5 | Y95: 7 | Z95: 3.5 | AA95: 5 | AB95: 9.5 | AC95: OLP/01932/2025 | AE95: 198 | AF95: Libštát | AG95: 51203 | AH95: =_xlfn.XLOOKUP(C95,#REF!,#REF!,"Nenalezeno!") ->  | AI95: starosta | AJ95: 00275891 | AK95: CZ00275891 | AL95: 4428581/0100 | AM95: 121 893 Kč | AN95: 73 135,00 Kč | AO95: =Slovy(O95) -> sedmdesát třitisíce jednosto třicet pět | AP95: 100% | AQ95: 60,00% | AR95: 40,00% | AV95: 207
A96: 65 | B96: Městys | C96: Libštát | D96: Oprava CAS MAN U6b | E96: U6b opravy cisternových automobilových stříkaček s objemem nádrže do 6000 litrů vyrobených v roce 1985 a letech následujících | F96: 6b | G96: Přední zábleskové světlo - predátor - 2 ks, Rettbox®-air- inovativní napájení pro připojení vozidel IZS BOX 230/24 V - 4 m - 1 ks, Napájecí zásuvka Rettbox-Air 230 V - 1 ks, Oprava výfuku MAN - 1 ks | H96: Přední zábleskové světlo - predátor - 2 ks, Rettbox®-air- inovativní napájení pro připojení vozidel IZS BOX 230/24 V - 4 m - 1 ks, Napájecí zásuvka Rettbox-Air 230 V - 1 ks, Oprava výfuku MAN - 1 ks | I96: 58417 | J96: 35050 | K96: 60 | L96: 23367 | M96: 40 | N96: 58417 | O96: 35050 | P96: 60 | Q96: ANO | R96: 15 | S96: 4.5 | T96: 0 | U96: 0 | V96: 4.5 | W96: 15 | X96: 1.5 | Y96: 7 | Z96: 3.5 | AA96: 5 | AB96: 9.5 | AC96: OLP/01933/2025 | AE96: 198 | AF96: Libštát | AG96: 51203 | AH96: =_xlfn.XLOOKUP(C96,#REF!,#REF!,"Nenalezeno!") ->  | AI96: starosta | AJ96: 00275891 | AK96: CZ00275891 | AL96: 4428581/0100 | AM96: 58 417 Kč | AN96: 35 050,00 Kč | AO96: =Slovy(O96) -> třicet pěttisíc padesát | AP96: 100% | AQ96: 60,00% | AR96: 40,00% | AV96: 198
A97: 66 | B97: Městys | C97: Libštát | D97: Nákup ochranných prostředků PO | E97: U2) Pořízení osobních ochranných prostředků | F97: 2 | G97: Vesta Velitel jednotky - 1 ks, Vícevrstvý zásahový oblek - 1 ks, Zásahová obuv - 1 ks, Zásahové rukavice - 1 ks, Ochranná kukla ks - 4 ks, Kryt brýlí Sicor - 4 ks | H97: Vesta Velitel jednotky - 1 ks, Vícevrstvý zásahový oblek - 1 ks, Zásahová obuv - 1 ks, Zásahové rukavice - 1 ks, Ochranná kukla ks - 4 ks, Kryt brýlí Sicor - 4 ks | I97: 38931 | J97: 23358 | K97: 60 | L97: 15573 | M97: 40 | N97: 38931 | O97: 23358 | P97: 60 | Q97: ANO | R97: 15 | S97: 4.5 | T97: 0 | U97: 0 | V97: 4.5 | W97: 15 | X97: 1.5 | Y97: 15 | Z97: 7.5 | AA97: 9 | AB97: 13.5 | AC97: OLP/01934/2025 | AE97: 198 | AF97: Libštát | AG97: 51203 | AH97: =_xlfn.XLOOKUP(C97,#REF!,#REF!,"Nenalezeno!") ->  | AI97: starosta | AJ97: 00275891 | AK97: CZ00275891 | AL97: 4428581/0100 | AM97: 38 931 Kč | AN97: 23 358,00 Kč | AO97: =Slovy(O97) -> dvacet třitisíce třista padesát osm | AP97: 100% | AQ97: 60,00% | AR97: 40,00% | AV97: 162
A98: 43 | B98: Obec | C98: LOMNICE NAD POPELKOU | D98: Pořízení věcných prostředků k likvidací lesních požárů | E98: Pořízení, obnova, doplnění a opravy věcných prostředků požární ochrany pro zásahy v souvislosti s likvidací lesních požárů. | F98: 5 | G98: Tlumice pro lesní požáry - 2 ks, Motykohrábě pro lesní požáry - 2 ks, Oblek pro lesní požáry - 6 ks | H98: Tlumice pro lesní požáry - 2 ks, Motykohrábě pro lesní požáry - 2 ks, Oblek pro lesní požáry - 6 ks | I98: 129000 | J98: 77400 | K98: 60 | L98: 51600 | M98: 40 | N98: 129000 | O98: 77400 | P98: 60 | Q98: ANO | R98: 15 | S98: 4.5 | T98: 0 | U98: 0 | V98: 4.5 | W98: 15 | X98: 1.5 | Y98: 15 | Z98: 7.5 | AA98: 9 | AB98: 13.5 | AC98: OLP/01915/2025 | AE98: Husovo náměstí 6 | AF98: Lomnice nad Popelkou | AG98: 51251 | AH98: =_xlfn.XLOOKUP(C98,#REF!,#REF!,"Nenalezeno!") ->  | AI98: starosta | AJ98: 00275905 | AK98: CZ00275905 | AL98: 9005-2529581/0100 | AM98: 129 000 Kč | AN98: 77 400,00 Kč | AO98: =Slovy(O98) -> sedmdesát sedmtisíc čtyřista | AP98: 100% | AQ98: 60,00% | AR98: 40,00% | AV98: 99
A99: 44 | B99: Město | C99: LOMNICE NAD POPELKOU | D99: Nákup ochranných prostředků PO 2025 | E99: Pořízení, obnova, doplnění a opravy osobních ochranných prostředků požární ochrany | F99: 2 | G99: Ochranná kukla - 4 ks, Zásahová obuv - 3 ks, Zásahový oblek - 3 ks, Zásahové rukavice - 6 ks, Vesta s nápisem k označení hasičů - 8 ks, Osobní svítilna - 3 ks | H99: Ochranná kukla - 4 ks, Zásahová obuv - 3 ks, Zásahový oblek - 3 ks, Zásahové rukavice - 6 ks, Vesta s nápisem k označení hasičů - 8 ks, Osobní svítilna - 3 ks | I99: 174088 | J99: 104452 | K99: 60 | L99: 69636 | M99: 40 | N99: 174088 | O99: 104452 | P99: 60 | Q99: ANO | R99: 15 | S99: 4.5 | T99: 0 | U99: 0 | V99: 4.5 | W99: 15 | X99: 1.5 | Y99: 15 | Z99: 7.5 | AA99: 9 | AB99: 13.5 | AC99: OLP/01916/2025 | AE99: Husovo náměstí 6 | AF99: Lomnice nad Popelkou | AG99: 51251 | AH99: =_xlfn.XLOOKUP(C99,#REF!,#REF!,"Nenalezeno!") ->  | AI99: starosta | AJ99: 00275905 | AK99: CZ00275905 | AL99: 9005-2529581/0100 | AM99: 174 088 Kč | AN99: 104 452,00 Kč | AO99: =Slovy(O99) -> jednosto čtyřitisíce čtyřista padesát dva | AP99: 100% | AQ99: 60,00% | AR99: 40,00% | AV99: 158
A100: 45 | B100: Město | C100: LOMNICE NAD POPELKOU | D100: Pořízení věcných prostředků PO 2025 | E100: Pořízení, obnova, doplnění a opravy věcných prostředků požární ochrany mimo prostředků uvedených v U5) a U6a) | F100: 6e | G100: Autobaterie - 1 ks, Pneumatika (Patrol) - 4 ks, Pneumatika (CAS) - 2 ks | H100: Autobaterie - 1 ks, Pneumatika (Patrol) - 4 ks, Pneumatika (CAS) - 2 ks | I100: 48412 | J100: 29047 | K100: 60 | L100: 19365 | M100: 40 | N100: 48412 | O100: 29047 | P100: 60 | Q100: ANO | R100: 15 | S100: 4.5 | T100: 0 | U100: 0 | V100: 4.5 | W100: 15 | X100: 1.5 | Y100: 0 | Z100: 0 | AA100: 1.5 | AB100: 6 | AC100: OLP/01917/2025 | AE100: Husovo náměstí 6 | AF100: Lomnice nad Popelkou | AG100: 51251 | AH100: =_xlfn.XLOOKUP(C100,#REF!,#REF!,"Nenalezeno!") ->  | AI100: starosta | AJ100: 00275905 | AK100: CZ00275905 | AL100: 9005-2529581/0100 | AM100: 48 412 Kč | AN100: 29 047,00 Kč | AO100: =Slovy(O100) -> dvacet devěttisíc čtyřicet sedm | AP100: 100% | AQ100: 60,00% | AR100: 40,00% | AV100: 71
A101: 165 | B101: Město | C101: Lučany nad Nisou | D101: Nákup věcných prostředků požární ochrany | E101: U6) Pořízení, obnova, doplnění, opravy a výstavba: c) pořízení, obnova, doplnění a opravy věcných prostředků požární ochrany mimo prostředků uvedených v U5) a U6)a). | F101: 6c | G101: kombinovaná proudnice C52 - 1 ks, záchranné lano typu A 60 m - 1 ks, záchranné lano typu A 30 m - 2 ks, hadice zásahová C52 - 6 ks, hadice zásahová B75 - 4 ks, tlaková láhev k IDP - 4 ks | H101: kombinovaná proudnice C52 - 1 ks, záchranné lano typu A 60 m - 1 ks, záchranné lano typu A 30 m - 2 ks, hadice zásahová C52 - 6 ks, hadice zásahová B75 - 4 ks, tlaková láhev k IDP - 4 ks | I101: 99120 | J101: 48569 | K101: 49 | L101: 50551 | M101: 51 | N101: 99120 | O101: 48569 | P101: 49 | Q101: ANO | R101: 15 | S101: 4.5 | T101: 7 | U101: 0.7 | V101: 5.2 | W101: 15 | X101: 1.5 | Y101: 7 | Z101: 3.5 | AA101: 5 | AB101: 10.2 | AC101: OLP/02025/2025 | AE101: Lučany nad Nisou 333 | AF101: Lučany nad Nisou | AG101: 46871 | AH101: =_xlfn.XLOOKUP(C101,#REF!,#REF!,"Nenalezeno!") ->  | AI101: starosta | AJ101: 00262455 | AK101: CZ00262455 | AL101: 94-1810451/0710 | AM101: 99 120 Kč | AN101: 48 569,00 Kč | AO101: =Slovy(O101) -> čtyřicet osmtisíc pětset šedesát devět | AP101: 100% | AQ101: 49,00% | AR101: 51,00% | AV101: 186
A102: 166 | B102: Město | C102: Lučany nad Nisou | D102: Nákup osobních ochranných prostředků požární ochrany | E102: U2) Pořízení, obnova, doplnění a opravy osobních ochranných prostředků požární ochrany - polohovací pás Cobra, ocelová karabina HMS k polohovacímu pásu, zásahová obuv a zásahový třívrstvý komplet | F102: 2 | G102: polohovací pás Cobra - 4 ks, ocelová karabina HMS k polohovacímu pásu - 8 ks,zásahová obuv - 2 ks, zásahový třívrstvý komplet - 2 ks | H102: polohovací pás Cobra - 4 ks, ocelová karabina HMS k polohovacímu pásu - 8 ks,zásahová obuv - 2 ks, zásahový třívrstvý komplet - 2 ks | I102: 82272 | J102: 40313 | K102: 49 | L102: 41959 | M102: 51 | N102: 82272 | O102: 40313 | P102: 49 | Q102: ANO | R102: 15 | S102: 4.5 | T102: 7 | U102: 0.7 | V102: 5.2 | W102: 15 | X102: 1.5 | Y102: 15 | Z102: 7.5 | AA102: 9 | AB102: 14.2 | AC102: OLP/02026/2025 | AE102: Lučany nad Nisou 333 | AF102: Lučany nad Nisou | AG102: 46871 | AH102: =_xlfn.XLOOKUP(C102,#REF!,#REF!,"Nenalezeno!") ->  | AI102: starosta | AJ102: 00262455 | AK102: CZ00262455 | AL102: 94-1810451/0710 | AM102: 82 272 Kč | AN102: 40 313,00 Kč | AO102: =Slovy(O102) -> čtyřicet tisíc třista třináct | AP102: 100% | AQ102: 49,00% | AR102: 51,00% | AV102: 133
A103: 80 | B103: Obec | C103: Martinice v Krkonoších | D103: Obnova osobních ochranných prostředků členů jednotky. | E103: Projekt zajistí plnou vybavenost ochrannými prostředky členů jednotky JPO V Martinice v Krkonoších | F103: 2 | G103: Zásahový oblek 3-vrstvý - komplet - 1 ks, Zásahový oblek jednovrstvý - komplet - 1 ks, Přilba Heros Titan - 1 ks, Držák svítilny PELLI - 1 ks, Svítilna PELLI 3315 LED - 1 ks, Kukla bavlna - 1 ks, Rukavice zásahové Diamant - 4 páry, Vesta výstražná dle GŘ - 4 ks | H103: Zásahový oblek 3-vrstvý - komplet - 1 ks, Zásahový oblek jednovrstvý - komplet - 1 ks, Přilba Heros Titan - 1 ks, Držák svítilny PELLI - 1 ks, Svítilna PELLI 3315 LED - 1 ks, Kukla bavlna - 1 ks, Rukavice zásahové Diamant - 4 páry, Vesta výstražná dle GŘ - 4 ks | I103: 57800 | J103: 34000 | K103: 58.82 | L103: 23800 | M103: 41.18 | N103: 57800 | O103: 34000 | P103: 58.82 | Q103: ANO | R103: 7 | S103: 2.1 | T103: 0 | U103: 0 | V103: 2.1 | W103: 15 | X103: 1.5 | Y103: 15 | Z103: 7.5 | AA103: 9 | AB103: 11.1 | AC103: OLP/01948/2025 | AE103: 131 | AF103: Martinice v Krkonoších | AG103: 51232 | AH103: =_xlfn.XLOOKUP(C103,#REF!,#REF!,"Nenalezeno!") ->  | AI103: starosta | AJ103: 00580805 | AK103: CZ00580805 | AL103: 1263089339/0800 | AM103: 57 800 Kč | AN103: 34 000,00 Kč | AO103: =Slovy(O103) -> třicet čtyřitisíce | AP103: 100% | AQ103: 58,82% | AR103: 41,18% | AV103: 261
A104: 182 | B104: Město | C104: Mimoň | D104: Podpora JSDH Mimoň | E104: Zvýšení akceschopnosti a bezpečnosti jednotky, pořízení, obnova, doplnění osobních ochranných prostředků požární ochrany U2 | F104: 2 | G104: komplet zásahový FIREMAX 3 Rosenbauer vč. Nápisu HASIČI MIMOŇ kovový zip - 4 ks, kukla Nomex deva - 4 ks, svítilny ADALIT L-10 LED - 4 ks, nabíječky 220 V - 4 ks, přilba GALLET F1 XF velikost L - 4 ks | H104: komplet zásahový FIREMAX 3 Rosenbauer vč. Nápisu HASIČI MIMOŇ kovový zip - 4 ks, kukla Nomex deva - 4 ks, svítilny ADALIT L-10 LED - 4 ks, nabíječky 220 V - 4 ks, přilba GALLET F1 XF velikost L - 4 ks | I104: 213224 | J104: 98083 | K104: =ROUND(J104/I104*100,2) -> 46 | L104: =I104-J104 -> 115141 | M104: =ROUND(L104/I104*100,2) -> 54 | N104: 213224 | O104: 98083 | P104: =ROUND(O104/N104*100,2) -> 46 | Q104: ANO | R104: 15 | S104: =R104*0.3 -> 4.5 | T104: =IF(K104<=30,"15",IF(K104<=50,"7",IF(K104<=70,"0","!!!"))) -> 7 | U104: =T104*0.1 -> 0.7 | V104: =S104+U104 -> 5.2 | W104: 15 | X104: =W104*0.1 -> 1.5 | Y104: 15 | Z104: =Y104*0.5 -> 7.5 | AA104: =X104+Z104 -> 9 | AB104: =V104+AA104 -> 14.2 | AC104: OLP/02042/2025 | AE104: Mírová 120 | AF104: Mimoň | AG104: 47124 | AH104: =_xlfn.XLOOKUP(C104,#REF!,#REF!,"Nenalezeno!") ->  | AI104: starosta | AJ104: 00260746 | AK104: CZ00260746 | AL104: 94-2811421/0710 | AM104: =TEXT(N104,"# ##0 Kč") -> 213 224 Kč | AN104: =TEXT(O104,"# ##0,00 Kč") -> 98 083,00 Kč | AO104: =Slovy(O104) -> devadesát osmtisíc osmdesát tři | AP104: =IF(O104<=300000,"100%","90%") -> 100% | AQ104: =TEXT(P104,"0,00")& "%" -> 46,00% | AR104: =TEXT(M104,"0,00")& "%" -> 54,00% | AV104: =LEN(H104) -> 201
A105: 156 | B105: Obec | C105: Mírová pod Kozákovem | D105: U2) Pořízení, obnova, doplnění a opravy v závorce vyjmenovaných osobních ochranných prostředků požární ochrany (jednovrstvé a vícevrstvé zásahové obleky, zásahové boty, zásahové rukavice, zásahové přilby, polohovací opasky pro hasiče, ochranné kukly, ve | E105: Pořízení, obnova, doplnění a opravy osobních ochranných prostředků požární ochrany | F105: 2 | G105: Zásahový oblek PATRIOT ELITE - kabát - 2 ks, Zásahový oblek PATRIOT ELITE - kalhoty - 2 ks, Zásahový oblek BUSHFIRE - blůza - 2 ks, Zásahový oblek BUSHFIRE - kalhoty - 2 ks | H105: Zásahový oblek PATRIOT ELITE - kabát - 2 ks, Zásahový oblek PATRIOT ELITE - kalhoty - 2 ks, Zásahový oblek BUSHFIRE - blůza - 2 ks, Zásahový oblek BUSHFIRE - kalhoty - 2 ks | I105: 68861 | J105: 33742 | K105: 49 | L105: 35119 | M105: 51 | N105: 68861 | O105: 33742 | P105: 49 | Q105: ANO | R105: 7 | S105: 2.1 | T105: 7 | U105: 0.7 | V105: 2.8 | W105: 15 | X105: 1.5 | Y105: 15 | Z105: 7.5 | AA105: 9 | AB105: 11.8 | AC105: OLP/02012/2025 | AE105: 36 | AF105: Mírová pod Kozákovem | AG105: 51101 | AH105: =_xlfn.XLOOKUP(C105,#REF!,#REF!,"Nenalezeno!") ->  | AI105: starosta | AJ105: 00275913 | AK105: CZ00275913 | AL105: 1263261389/0800 | AM105: 68 861 Kč | AN105: 33 742,00 Kč | AO105: =Slovy(O105) -> třicet třitisíce sedmset čtyřicet dva | AP105: 100% | AQ105: 49,00% | AR105: 51,00% | AV105: 172
A106: 8 | B106: Obec | C106: Mníšek | D106: U4 - hasiči Mníšek - čerpadlo kalové benzinové | E106: Čerpadlo jednotka využije hlavně při povodních a záplavách které obec Mníšek pravidelně postihují. Moderní kalové čerpadlo bude využito při čerpání lagun a vody ze zaplavených budov. Lze jej použít i k plnění cisternových vozidel vodou | F106: 4 | G106: Kalové čerpadlo - 1ks | H106: Kalové čerpadlo - 1ks | I106: 33277 | J106: 19900 | K106: 59.8 | L106: 13377 | M106: 40.2 | N106: 33277 | O106: 19900 | P106: 59.8 | Q106: ANO | R106: 5 | S106: 1.5 | T106: 0 | U106: 0 | V106: 1.5 | W106: 15 | X106: 1.5 | Y106: 15 | Z106: 7.5 | AA106: 9 | AB106: 10.5 | AC106: OLP/01889/2025 | AE106: Oldřichovská 185 | AF106: Mníšek | AG106: 46331 | AH106: =_xlfn.XLOOKUP(C106,#REF!,#REF!,"Nenalezeno!") ->  | AI106: starosta | AJ106: 00263001 | AK106: CZ00263001 | AL106: 158868002/0300 | AM106: 33 277 Kč | AN106: 19 900,00 Kč | AO106: =Slovy(O106) -> devatenáct tisíc devětset | AP106: 100% | AQ106: 59,80% | AR106: 40,20% | AV106: 21
A107: 10 | B107: Obec | C107: Mníšek | D107: U6 c - hasiči Mníšek - radiostanice | E107: Radiostanice nahradí radiostanici, o kterou hasiči přišli při povodni v 09/2024. Druhá radiostanice chybí pro operativní činnost jednotky. Ruční radiostanice je nezbytnou výbavou každé jednotky a využívá se především ke komunikaci na místě zásahu | F107: 6c | G107: radiostanice - 2 ks | H107: radiostanice - 2 ks | I107: 35769 | J107: 21400 | K107: 59.83 | L107: 14369 | M107: 40.17 | N107: 35769 | O107: 21400 | P107: 59.83 | Q107: ANO | R107: 5 | S107: 1.5 | T107: 0 | U107: 0 | V107: 1.5 | W107: 15 | X107: 1.5 | Y107: 7 | Z107: 3.5 | AA107: 5 | AB107: 6.5 | AC107: OLP/01890/2025 | AE107: Oldřichovská 185 | AF107: Mníšek | AG107: 46331 | AH107: =_xlfn.XLOOKUP(C107,#REF!,#REF!,"Nenalezeno!") ->  | AI107: starosta | AJ107: 00263001 | AK107: CZ00263001 | AL107: 158868002/0300 | AM107: 35 769 Kč | AN107: 21 400,00 Kč | AO107: =Slovy(O107) -> dvacet jedentisíc čtyřista | AP107: 100% | AQ107: 59,83% | AR107: 40,17% | AV107: 19
A108: 13 | B108: Obec | C108: Mníšek | D108: U6 f - hasiči Mníšek - vrata do garáže | E108: důvodu opotřebení současných jednovrstvých obleků | F108: 6f | G108: vrata do garáže ks - 1 ks | H108: vrata do garáže ks - 1 ks | I108: 225323 | J108: 135000 | K108: 59.91 | L108: 90323 | M108: 40.09 | N108: 225323 | O108: 135000 | P108: 59.91 | Q108: ANO | R108: 5 | S108: 1.5 | T108: 0 | U108: 0 | V108: 1.5 | W108: 15 | X108: 1.5 | Y108: 0 | Z108: 0 | AA108: 1.5 | AB108: 3 | AC108: OLP/01892/2025 | AE108: Oldřichovská 185 | AF108: Mníšek | AG108: 46331 | AH108: =_xlfn.XLOOKUP(C108,#REF!,#REF!,"Nenalezeno!") ->  | AI108: starosta | AJ108: 00263001 | AK108: CZ00263001 | AL108: 158868002/0300 | AM108: 225 323 Kč | AN108: 135 000,00 Kč | AO108: =Slovy(O108) -> jednosto třicet pěttisíc | AP108: 100% | AQ108: 59,91% | AR108: 40,09% | AV108: 25
A109: 27 | B109: Obec | C109: Mníšek | D109: U2 - Hasiči Mnišek - zásahové obleky | E109: Doplnění vybavení zásahové jednotky 4ks zásahových obleků. | F109: 2 | G109: zásahový oblek - 4 ks | H109: zásahový oblek - 4 ks | I109: 95227 | J109: 57000 | K109: 59.86 | L109: 38227 | M109: 40.14 | N109: 95227 | O109: 57000 | P109: 59.86 | Q109: ANO | R109: 5 | S109: 1.5 | T109: 0 | U109: 0 | V109: 1.5 | W109: 15 | X109: 1.5 | Y109: 15 | Z109: 7.5 | AA109: 9 | AB109: 10.5 | AC109: OLP/01902/2025 | AE109: Oldřichovská 185 | AF109: Mníšek | AG109: 46331 | AH109: =_xlfn.XLOOKUP(C109,#REF!,#REF!,"Nenalezeno!") ->  | AI109: starosta | AJ109: 00263001 | AK109: CZ00263001 | AL109: 158868002/0300 | AM109: 95 227 Kč | AN109: 57 000,00 Kč | AO109: =Slovy(O109) -> padesát sedmtisíc | AP109: 100% | AQ109: 59,86% | AR109: 40,14% | AV109: 21
A110: 174 | B110: Obec | C110: MŘÍČNÁ | D110: Nákup ochranných prostředků PO | E110: U2) Zabezpečení členů JSDHO ochrannými prostředky požární ochrany pro zlepšení akceschopnosti jednotky | F110: 2 | G110: Vícevrstvý zásahový komplet - 2 ks, Zásahová obuv - 2 ks | H110: Vícevrstvý zásahový komplet - 2 ks, Zásahová obuv - 2 ks | I110: 51000 | J110: 30600 | K110: 60 | L110: 20400 | M110: 40 | N110: 51000 | O110: 30600 | P110: 60 | Q110: ANO | R110: 7 | S110: 2.1 | T110: 0 | U110: 0 | V110: 2.1 | W110: 15 | X110: 1.5 | Y110: 15 | Z110: 7.5 | AA110: 9 | AB110: 11.1 | AC110: OLP/02034/2025 | AE110: 211 | AF110: Mříčná | AG110: 51204 | AH110: =_xlfn.XLOOKUP(C110,#REF!,#REF!,"Nenalezeno!") ->  | AI110: starostka | AJ110: 00275930 | AK110: CZ00275930 | AL110: 94-53514451/0710 | AM110: 51 000 Kč | AN110: 30 600,00 Kč | AO110: =Slovy(O110) -> třicet tisíc šestset | AP110: 100% | AQ110: 60,00% | AR110: 40,00% | AV110: 56
A111: 102 | B111: Obec | C111: Nová Ves nad Popelkou | D111: 1.1 Podpora jednotek požární ochrany obcí Libereckého kraje | E111: Nákup ochrannách prostředků pro JSDHO Nová Ves nad Popelkou | F111: 2 | G111: Přilba MSA Gallet F1 XF Gold++, + integrovaná svítilna, + rozlišovací štítek - 1 ks, Zásahová obuv HAIX FIRE HERO 3.0 - 1 ks, Ochranné kukly pro hasiče ( Nomex - DEVA ) - 4 ks, Přilba MSA Gallet F2 XR - Lesní požáry, červená se žlutým polepem - 4 ks, Svítilna Adalit L.90 Power - 4 ks, Nabíječka k svítilnám Adalit - 4 ks | H111: Přilba MSA Gallet F1 XF Gold++, + integrovaná svítilna, + rozlišovací štítek - 1 ks, Zásahová obuv HAIX FIRE HERO 3.0 - 1 ks, Ochranné kukly pro hasiče ( Nomex - DEVA ) - 4 ks, Přilba MSA Gallet F2 XR - Lesní požáry, červená se žlutým polepem - 4 ks, Svítilna Adalit L.90 Power - 4 ks, Nabíječka k svítilnám Adalit - 4 ks | I111: 98760 | J111: 59256 | K111: 60 | L111: 39504 | M111: 40 | N111: 98760 | O111: 59256 | P111: 60 | Q111: ANO | R111: 15 | S111: 4.5 | T111: 0 | U111: 0 | V111: 4.5 | W111: 15 | X111: 1.5 | Y111: 15 | Z111: 7.5 | AA111: 9 | AB111: 13.5 | AC111: OLP/01967/2025 | AE111: 244 | AF111: Nová Ves nad Popelkou | AG111: 51271 | AH111: =_xlfn.XLOOKUP(C111,#REF!,#REF!,"Nenalezeno!") ->  | AI111: starosta | AJ111: 00275948 | AK111: CZ00275948 | AL111: 1263095309/0800 | AM111: 98 760 Kč | AN111: 59 256,00 Kč | AO111: =Slovy(O111) -> padesát devěttisíc dvěstě padesát šest | AP111: 100% | AQ111: 60,00% | AR111: 40,00% | AV111: 321
A112: 105 | B112: Obec | C112: Nová Ves nad Popelkou | D112: 1.1 Podpora jednotek požární ochrany obcí Libereckého kraje | E112: Pořízení věcných prostředků PO - JSDHO Nová Ves nad Popelkou | F112: 6c | G112: Páčidlo HOOLIGAN Highway 106,7 cm - 1 ks, Páčidlo HOOLIGAN Standard 106,7 cm - 1 ks, Tážné lano do navijáku na CAS 20, 6 pramenné FILLER 27,5 m - 1 ks, Kladka k navijáku na CAS 20 - 1 ks, Zásahová hadice Technolen B 75 - 20 m - 6ks, Pěnidlo Fomtec MB5 2 - 6 % ( -20°C ) - 6ks | H112: Páčidlo HOOLIGAN Highway 106,7 cm - 1 ks, Páčidlo HOOLIGAN Standard 106,7 cm - 1 ks, Tážné lano do navijáku na CAS 20, 6 pramenné FILLER 27,5 m - 1 ks, Kladka k navijáku na CAS 20 - 1 ks, Zásahová hadice Technolen B 75 - 20 m - 6ks, Pěnidlo Fomtec MB5 2 - 6 % ( -20°C ) - 6ks | I112: 72520 | J112: 43512 | K112: 60 | L112: 29008 | M112: 40 | N112: 72520 | O112: 43512 | P112: 60 | Q112: ANO | R112: 15 | S112: 4.5 | T112: 0 | U112: 0 | V112: 4.5 | W112: 15 | X112: 1.5 | Y112: 7 | Z112: 3.5 | AA112: 5 | AB112: 9.5 | AC112: OLP/01969/2025 | AE112: 244 | AF112: Nová Ves nad Popelkou | AG112: 51271 | AH112: =_xlfn.XLOOKUP(C112,#REF!,#REF!,"Nenalezeno!") ->  | AI112: starosta | AJ112: 00275948 | AK112: CZ00275948 | AL112: 1263095309/0800 | AM112: 72 520 Kč | AN112: 43 512,00 Kč | AO112: =Slovy(O112) -> čtyřicet třitisíce pětset dvanáct | AP112: 100% | AQ112: 60,00% | AR112: 40,00% | AV112: 275
A113: 106 | B113: Obec | C113: Nová Ves nad Popelkou | D113: 1.1 Podpora jednotek požární ochrany obcí Libereckého kraje | E113: Oprava CAS 20 - nákup pneumatik | F113: 6b | G113: Pneu NOKIAN 315/80 R 22,5 - 2 ks | H113: Pneu NOKIAN 315/80 R 22,5 - 2 ks | I113: 26985 | J113: 15010 | K113: 55.62 | L113: 11975 | M113: 44.38 | N113: 26985 | O113: 15010 | P113: 55.62 | Q113: ANO | R113: 15 | S113: 4.5 | T113: 0 | U113: 0 | V113: 4.5 | W113: 15 | X113: 1.5 | Y113: 7 | Z113: 3.5 | AA113: 5 | AB113: 9.5 | AC113: OLP/01970/2025 | AE113: 244 | AF113: Nová Ves nad Popelkou | AG113: 51271 | AH113: =_xlfn.XLOOKUP(C113,#REF!,#REF!,"Nenalezeno!") ->  | AI113: starosta | AJ113: 00275948 | AK113: CZ00275948 | AL113: 1263095309/0800 | AM113: 26 985 Kč | AN113: 15 010,00 Kč | AO113: =Slovy(O113) -> patnáct tisíc deset | AP113: 100% | AQ113: 55,62% | AR113: 44,38% | AV113: 32
A114: 262 | B114: Město | C114: Nové Město pod Smrkem | D114: Pořízení věcných prostředků požární ochrany | E114: Pořízení, obnova, doplnění a opravy věcných prostředků požární ochrany mimo prostředků uvedených v U5) a U6)a). | F114: 6c | G114: Dýchací technika - 2 ks, Páteřní deska - 1 ks | H114: Dýchací technika - 2 ks, Páteřní deska - 1 ks | I114: 99659 | J114: 59795 | K114: 60 | L114: 39864 | M114: 40 | N114: 99659 | O114: 59795 | P114: 60 | Q114: ANO | R114: 15 | S114: 4.5 | T114: 0 | U114: 0 | V114: 4.5 | W114: 15 | X114: 1.5 | Y114: 7 | Z114: 3.5 | AA114: 5 | AB114: 9.5 | AC114: OLP/02103/2025 | AE114: Palackého 280 | AF114: Nové Město pod Smrkem | AG114: 46365 | AH114: =_xlfn.XLOOKUP(C114,#REF!,#REF!,"Nenalezeno!") ->  | AI114: starosta | AJ114: 00263036 | AK114: CZ00263036 | AL114: 988446319/0800 | AM114: 99 659 Kč | AN114: 59 795,00 Kč | AO114: =Slovy(O114) -> padesát devěttisíc sedmset devadesát pět | AP114: 100% | AQ114: 60,00% | AR114: 40,00% | AV114: 45
A115: 263 | B115: Město | C115: Nové Město pod Smrkem | D115: Pořízení ochranných prostředků požární ochrany | E115: Pořízení, obnova, doplnění a opravy v závorce vyjmenovaných osobních ochranných prostředků požární ochrany (jednovrstvé a vícevrstvé zásahové obleky, zásahové boty,) | F115: 2 | G115: Zásahové boty - 5 ks, Zásahový oblek - 2 ks | H115: Zásahové boty - 5 ks, Zásahový oblek - 2 ks | I115: 74277 | J115: 44567 | K115: 60 | L115: 29710 | M115: 40 | N115: 74277 | O115: 44567 | P115: 60 | Q115: ANO | R115: 15 | S115: 4.5 | T115: 0 | U115: 0 | V115: 4.5 | W115: 15 | X115: 1.5 | Y115: 15 | Z115: 7.5 | AA115: 9 | AB115: 13.5 | AC115: OLP/02104/2025 | AE115: Palackého 280 | AF115: Nové Město pod Smrkem | AG115: 46365 | AH115: =_xlfn.XLOOKUP(C115,#REF!,#REF!,"Nenalezeno!") ->  | AI115: starosta | AJ115: 00263036 | AK115: CZ00263036 | AL115: 988446319/0800 | AM115: 74 277 Kč | AN115: 44 567,00 Kč | AO115: =Slovy(O115) -> čtyřicet čtyřitisíce pětset šedesát sedm | AP115: 100% | AQ115: 60,00% | AR115: 40,00% | AV115: 43
A116: 41 | B116: Obec | C116: Nový Bor | D116: Pořízení nové CAS | E116: Účel podpory U6) d) pořízení cisternové automobilové stříkačky vyrobené v roce 2025 | F116: 6d | G116: nová CAS - 1 ks | H116: nová CAS - 1 ks | I116: 11201454 | J116: 500000 | K116: 4.46 | L116: 10701454 | M116: 95.54 | N116: 11201454 | O116: 500000 | P116: 4.46 | Q116: ANO | R116: 15 | S116: 4.5 | T116: 15 | U116: 1.5 | V116: 6 | W116: 15 | X116: 1.5 | Y116: 7 | Z116: 3.5 | AA116: 5 | AB116: 11 | AC116: OLP/01914/2025 | AE116: nám. Míru 1 | AF116: Nový Bor | AG116: 47301 | AH116: =_xlfn.XLOOKUP(C116,#REF!,#REF!,"Nenalezeno!") ->  | AI116: starosta | AJ116: 00260771 | AK116: CZ00260771 | AL116: 94-58321421/0710 | AM116: 11 201 454 Kč | AN116: 500 000,00 Kč | AO116: =Slovy(O116) -> pětset tisíc | AP116: 90% | AQ116: 4,46% | AR116: 95,54% | AV116: 15
A117: 201 | B117: Město | C117: Nový Bor | D117: Pořízení věcných prostředků PO | E117: Účel podpory U6) c) pořízení věcných prostředků požární ochrany | F117: 6c | G117: přenosná radiostanice THP 900 - 2 KS, nabíječ pro radiostanici - 2 KS | H117: přenosná radiostanice THP 900 - 2 KS, nabíječ pro radiostanici - 2 KS | I117: 110788 | J117: 65000 | K117: 58.67 | L117: 45788 | M117: 41.33 | N117: 110788 | O117: 65000 | P117: 58.67 | Q117: ANO | R117: 15 | S117: 4.5 | T117: 0 | U117: 0 | V117: 4.5 | W117: 15 | X117: 1.5 | Y117: 7 | Z117: 3.5 | AA117: 5 | AB117: 9.5 | AC117: OLP/02053/2025 | AE117: nám. Míru 1 | AF117: Nový Bor | AG117: 47301 | AH117: =_xlfn.XLOOKUP(C117,#REF!,#REF!,"Nenalezeno!") ->  | AI117: starosta | AJ117: 00260771 | AK117: CZ00260771 | AL117: 94-58321421/0100 | AM117: 110 788 Kč | AN117: 65 000,00 Kč | AO117: =Slovy(O117) -> šedesát pěttisíc | AP117: 100% | AQ117: 58,67% | AR117: 41,33% | AV117: 69
A118: 59 | B118: Obec | C118: Nový Oldřichov | D118: Nákup nového plovoucího čerpadla | E118: Nákup nového plovoucího čerpadla pro rychlou pomoc při povodních | F118: 4 | G118: Přenosné plovoucí čerpadlo PH CYKLON 2/1500 - 1 ks | H118: Přenosné plovoucí čerpadlo PH CYKLON 2/1500 - 1 ks | I118: 54882 | J118: 32929 | K118: 60 | L118: 21953 | M118: 40 | N118: 54882 | O118: 32929 | P118: 60 | Q118: ANO | R118: 7 | S118: 2.1 | T118: 0 | U118: 0 | V118: 2.1 | W118: 15 | X118: 1.5 | Y118: 15 | Z118: 7.5 | AA118: 9 | AB118: 11.1 | AC118: OLP/01929/2025 | AE118: Mistrovice 51 | AF118: Nový Oldřichov | AG118: 47113 | AH118: =_xlfn.XLOOKUP(C118,#REF!,#REF!,"Nenalezeno!") ->  | AI118: starosta | AJ118: 00260789 | AL118: 94-3216421/0710 | AM118: 54 882 Kč | AN118: 32 929,00 Kč | AO118: =Slovy(O118) -> třicet dvatisíce devětset dvacet devět | AP118: 100% | AQ118: 60,00% | AR118: 40,00% | AV118: 50
A119: 62 | B119: Obec | C119: Nový Oldřichov | D119: Obměna ochranných prostředků členů JSDHO Nový Oldřichov | E119: Tímto projektem by jsme rádi obměnili již zastaralé a nevyhovující lehké komplety. Tyto komplety výrazně ulehčují práci u technických zásahů a lesních požárů v letních měsících, kdy není nutné používat těžké zásahové komplety | F119: 2 | G119: Zásahový oblek FIREGUARD BUSH - 4 ks, Přilba SICOR EOM - lehká zásahová přilba - 4 ks, Rukavice záchranářské BLAZE EVO - 4 ks, Stejnokroj PS II - 4 ks | H119: Zásahový oblek FIREGUARD BUSH - 4 ks, Přilba SICOR EOM - lehká zásahová přilba - 4 ks, Rukavice záchranářské BLAZE EVO - 4 ks, Stejnokroj PS II - 4 ks | I119: 70520 | J119: 42312 | K119: 60 | L119: 28208 | M119: 40 | N119: 70520 | O119: 42312 | P119: 60 | Q119: ANO | R119: 7 | S119: 2.1 | T119: 0 | U119: 0 | V119: 2.1 | W119: 15 | X119: 1.5 | Y119: 15 | Z119: 7.5 | AA119: 9 | AB119: 11.1 | AC119: OLP/01930/2025 | AE119: Mistrovice 51 | AF119: Nový Oldřichov | AG119: 47113 | AH119: =_xlfn.XLOOKUP(C119,#REF!,#REF!,"Nenalezeno!") ->  | AI119: starosta | AJ119: 00260789 | AL119: 94-3216421/0710 | AM119: 70 520 Kč | AN119: 42 312,00 Kč | AO119: =Slovy(O119) -> čtyřicet dvatisíce třista dvanáct | AP119: 100% | AQ119: 60,00% | AR119: 40,00% | AV119: 150
A120: 69 | B120: Obec | C120: Nový Oldřichov | D120: Nákup a montáž automatických podmetacích řetězů | E120: Nákup a montáž systému automatických sněhových řetězů SNOWWAY Master na vozidlo CAS20 Tatra 815 | F120: 6b | G120: Automatické sněhové řetězy SNOWWAY Master - 1 ks | H120: Automatické sněhové řetězy SNOWWAY Master - 1 ks | I120: 94767 | J120: 56860 | K120: 60 | L120: 37907 | M120: 40 | N120: 94767 | O120: 56860 | P120: 60 | Q120: ANO | R120: 7 | S120: 2.1 | T120: 0 | U120: 0 | V120: 2.1 | W120: 15 | X120: 1.5 | Y120: 7 | Z120: 3.5 | AA120: 5 | AB120: 7.1 | AC120: OLP/01937/2025 | AE120: Mistrovice 51 | AF120: Nový Oldřichov | AG120: 47113 | AH120: =_xlfn.XLOOKUP(C120,#REF!,#REF!,"Nenalezeno!") ->  | AI120: starosta | AJ120: 00260789 | AL120: 943216421/0710 | AM120: 94 767 Kč | AN120: 56 860,00 Kč | AO120: =Slovy(O120) -> padesát šesttisíc osmset šedesát | AP120: 100% | AQ120: 60,00% | AR120: 40,00% | AV120: 48
A121: 70 | B121: Obec | C121: Nový Oldřichov | D121: Rekonstrukce podlahy v garáži MPT, kde je zaparkovaná CAS20 T815. | E121: Rekonstrukce podlahy v garáži MPT, kde je zaparkovaná CAS20 T815 | F121: 6f | G121: Rekonstrukce podlahy - 1 ks | H121: Rekonstrukce podlahy - 1 ks | I121: 465380 | J121: 279228 | K121: 60 | L121: 186152 | M121: 40 | N121: 465380 | O121: 279228 | P121: 60 | Q121: ANO | R121: 7 | S121: 2.1 | T121: 0 | U121: 0 | V121: 2.1 | W121: 15 | X121: 1.5 | Y121: 0 | Z121: 0 | AA121: 1.5 | AB121: 3.6 | AC121: OLP/01939/2025 | AE121: Mistrovice 51 | AF121: Nový Oldřichov | AG121: 47113 | AH121: =_xlfn.XLOOKUP(C121,#REF!,#REF!,"Nenalezeno!") ->  | AI121: starosta | AJ121: 00260789 | AL121: 94-3216421/0710 | AM121: 465 380 Kč | AN121: 279 228,00 Kč | AO121: =Slovy(O121) -> dvěstě sedmdesát devěttisíc dvěstě dvacet osm | AP121: 100% | AQ121: 60,00% | AR121: 40,00% | AV121: 27
A122: 6 | B122: Obec | C122: Oldřichov v Hájích | D122: Obnova, doplnění osobních věcných a ochranných prostředků požární ochrany | E122: Obnova, doplnění věcných a ochranných prostředků požární ochrany k zajištění akceschopnosti jednotky | F122: 6c | G122: Motorová pila Stihl MS 462 RS - 1ks, prsačky Plavitex Fluo - 2ks | H122: Motorová pila Stihl MS 462 RS - 1ks, prsačky Plavitex Fluo - 2ks | I122: 34288 | J122: 17119 | K122: 49.93 | L122: 17169 | M122: 50.07 | N122: 34288 | O122: 17119 | P122: 49.93 | Q122: ANO | R122: 5 | S122: 1.5 | T122: 7 | U122: 0.7 | V122: 2.2 | W122: 15 | X122: 1.5 | Y122: 7 | Z122: 3.5 | AA122: 5 | AB122: 7.2 | AC122: OLP/01888/2025 | AE122: Oldřichov v Hájích 229 | AF122: Oldřichov v Hájích | AG122: 46331 | AH122: =_xlfn.XLOOKUP(C122,#REF!,#REF!,"Nenalezeno!") ->  | AI122: starostka | AJ122: 00481483 | AL122: 94-4111461/0710 | AM122: 34 288 Kč | AN122: 17 119,00 Kč | AO122: =Slovy(O122) -> sedmnáct tisíc jednosto devatenáct | AP122: 100% | AQ122: 49,93% | AR122: 50,07% | AV122: 64
A123: 18 | B123: Obec | C123: Oldřichov v Hájích | D123: Obnova, doplnění a oprava osobních ochranných prostředků požární ochrany | E123: Dovybavení JPO JSDH Oldřichov v Hájích ochrannými prostředky a věcnými, technickými prostředky. | F123: 2 | G123: zásahová přilba SICOR EOM - 2 ks, Svítilna na přilbu parat px1 - 4 ks, Držák svítilny px1- 4 ks, Vesta výstražná dle GŘ - 4 ks, Zásahová obuv Haix fire flash - 1 ks, Zásahová rukavice Diamond evo - 2 ks | H123: zásahová přilba SICOR EOM - 2 ks, Svítilna na přilbu parat px1 - 4 ks, Držák svítilny px1- 4 ks, Vesta výstražná dle GŘ - 4 ks, Zásahová obuv Haix fire flash - 1 ks, Zásahová rukavice Diamond evo - 2 ks | I123: 33107 | J123: 16222 | K123: 49 | L123: 16885 | M123: 51 | N123: 33107 | O123: 16222 | P123: 49 | Q123: ANO | R123: 7 | S123: 2.1 | T123: 7 | U123: 0.7 | V123: 2.8 | W123: 15 | X123: 1.5 | Y123: 15 | Z123: 7.5 | AA123: 9 | AB123: 11.8 | AC123: OLP/01897/2025 | AE123: Oldřichov v Hájích 229 | AF123: Oldřichov v Hájích | AG123: 46331 | AH123: =_xlfn.XLOOKUP(C123,#REF!,#REF!,"Nenalezeno!") ->  | AI123: starostka | AJ123: 00481483 | AL123: 94-4111461/0710 | AM123: 33 107 Kč | AN123: 16 222,00 Kč | AO123: =Slovy(O123) -> šestnáct tisíc dvěstě dvacet dva | AP123: 100% | AQ123: 49,00% | AR123: 51,00% | AV123: 202
A124: 210 | B124: Město | C124: Osečná | D124: Pořízení OOP PO | E124: U2) Pořízení osobních ochranných prostředků PO | F124: 2 | G124: Zásahový oblek třívrstvý - 1 ks, Zásahová přilba - 2 ks, Zásahová přilba lehká - 2 ks, Svítilna - 2 ks, Držák svítilny - 2 ks, Rukavice zásahové - 2 páry, Obuv zásahová - 1 ks, Jednovrstvý zásahový oblek - 3 ks, Ochranná kukla - 2 ks | H124: Zásahový oblek třívrstvý - 1 ks, Zásahová přilba - 2 ks, Zásahová přilba lehká - 2 ks, Svítilna - 2 ks, Držák svítilny - 2 ks, Rukavice zásahové - 2 páry, Obuv zásahová - 1 ks, Jednovrstvý zásahový oblek - 3 ks, Ochranná kukla - 2 ks | I124: 123400 | J124: 74040 | K124: 60 | L124: 49360 | M124: 40 | N124: 123400 | O124: 74040 | P124: 60 | Q124: ANO | R124: 15 | S124: 4.5 | T124: 0 | U124: 0 | V124: 4.5 | W124: 15 | X124: 1.5 | Y124: 15 | Z124: 7.5 | AA124: 9 | AB124: 13.5 | AC124: OLP/02060/2025 | AE124: Svatovítské náměstí 105 | AF124: Osečná | AG124: 46352 | AH124: =_xlfn.XLOOKUP(C124,#REF!,#REF!,"Nenalezeno!") ->  | AI124: starosta | AJ124: 00263061 | AK124: CZ00263061 | AL124: 94-8612511/0710 | AM124: 123 400 Kč | AN124: 74 040,00 Kč | AO124: =Slovy(O124) -> sedmdesát čtyřitisíce čtyřicet | AP124: 100% | AQ124: 60,00% | AR124: 40,00% | AV124: 233
A125: 212 | B125: Město | C125: Osečná | D125: Pořízení věcných prostředků požární ochrany pro zásahy v souvislosti s likvidací lesních požárů | E125: U5) Pořízení věcných prostředků požární ochrany pro zásahy v souvislosti s likvidací lesních požárů | F125: 5 | G125: Batoh na D program - 1 ks | H125: Batoh na D program - 1 ks | I125: 33000 | J125: 19800 | K125: 60 | L125: 13200 | M125: 40 | N125: 33000 | O125: 19800 | P125: 60 | Q125: ANO | R125: 15 | S125: 4.5 | T125: 0 | U125: 0 | V125: 4.5 | W125: 15 | X125: 1.5 | Y125: 15 | Z125: 7.5 | AA125: 9 | AB125: 13.5 | AC125: OLP/02062/2025 | AE125: Svatovítské náměstí 105 | AF125: Osečná | AG125: 46352 | AH125: =_xlfn.XLOOKUP(C125,#REF!,#REF!,"Nenalezeno!") ->  | AI125: starosta | AJ125: 00263061 | AK125: CZ00263061 | AL125: 94-8612511/0710 | AM125: 33 000 Kč | AN125: 19 800,00 Kč | AO125: =Slovy(O125) -> devatenáct tisíc osmset | AP125: 100% | AQ125: 60,00% | AR125: 40,00% | AV125: 25
A126: 214 | B126: Město | C126: Osečná | D126: Pořízení věcných prostředků | E126: U6e) Pořízení věcných prostředků | F126: 6c | G126: Motorová pila - 1 ks | H126: Motorová pila - 1 ks | I126: 28000 | J126: 16800 | K126: 60 | L126: 11200 | M126: 40 | N126: 28000 | O126: 16800 | P126: 60 | Q126: ANO | R126: 15 | S126: 4.5 | T126: 0 | U126: 0 | V126: 4.5 | W126: 15 | X126: 1.5 | Y126: 7 | Z126: 3.5 | AA126: 5 | AB126: 9.5 | AC126: OLP/02066/2025 | AE126: Svatovítské náměstí 105 | AF126: Osečná | AG126: 46352 | AH126: =_xlfn.XLOOKUP(C126,#REF!,#REF!,"Nenalezeno!") ->  | AI126: starosta | AJ126: 00263061 | AK126: CZ00263061 | AL126: 94-8612511/0710 | AM126: 28 000 Kč | AN126: 16 800,00 Kč | AO126: =Slovy(O126) -> šestnáct tisíc osmset | AP126: 100% | AQ126: 60,00% | AR126: 40,00% | AV126: 20
A127: 215 | B127: Město | C127: Osečná | D127: Pravidelná servisní roční prohlídka automobilového žebříku | E127: U6c) Oprava techniky OP | F127: 6a | G127: Servisní prohlídka automobilového žebříku - 1 ks | H127: Servisní prohlídka automobilového žebříku - 1 ks | I127: 166000 | J127: 99600 | K127: 60 | L127: 66400 | M127: 40 | N127: 166000 | O127: 99600 | P127: 60 | Q127: ANO | R127: 15 | S127: 4.5 | T127: 0 | U127: 0 | V127: 4.5 | W127: 15 | X127: 1.5 | Y127: 15 | Z127: 7.5 | AA127: 9 | AB127: 13.5 | AC127: OLP/02067/2025 | AE127: Svatovítské náměstí 105 | AF127: Osečná | AG127: 46352 | AH127: =_xlfn.XLOOKUP(C127,#REF!,#REF!,"Nenalezeno!") ->  | AI127: starosta | AJ127: 00263061 | AK127: CZ00263061 | AL127: 94-8612511/0710 | AM127: 166 000 Kč | AN127: 99 600,00 Kč | AO127: =Slovy(O127) -> devadesát devěttisíc šestset | AP127: 100% | AQ127: 60,00% | AR127: 40,00% | AV127: 48
A128: 247 | B128: Obec | C128: Paceřice | D128: Ochranné pomůcky PO - Paceřice | E128: Účel U2 Účelem podpory je doplnění osobních ochranných prostředků požární ochrany. Jedná se o kategorii JPO V - jednotka sboru dobrovolných hasičů obce se členy, kteří vykonávají službu v jednotce PO dobrovolně | F128: 2 | G128: Zásahový oblek - komplet - 4 ks, Reflexní nápisy na oblek - 4 ks, 3 Přilba, signální žlutá - 4 ks, Zásahová obuv - pár - 4 ks | H128: Zásahový oblek - komplet - 4 ks, Reflexní nápisy na oblek - 4 ks, 3 Přilba, signální žlutá - 4 ks, Zásahová obuv - pár - 4 ks | I128: 170636 | J128: 100000 | K128: 58.6 | L128: 70636 | M128: 41.4 | N128: 170636 | O128: 100000 | P128: 58.6 | Q128: ANO | R128: 15 | S128: 4.5 | T128: 0 | U128: 0 | V128: 4.5 | W128: 15 | X128: 1.5 | Y128: 15 | Z128: 7.5 | AA128: 9 | AB128: 13.5 | AC128: OLP/02094/2025 | AE128: 100 | AF128: Paceřice | AG128: 46344 | AH128: =_xlfn.XLOOKUP(C128,#REF!,#REF!,"Nenalezeno!") ->  | AI128: starosta | AJ128: 00671967 | AL128: 94-4314461/0710 | AM128: 170 636 Kč | AN128: 100 000,00 Kč | AO128: =Slovy(O128) -> jednosto tisíc | AP128: 100% | AQ128: 58,60% | AR128: 41,40% | AV128: 126
A129: 2 | B129: Obec | C129: Paseky nad Jizerou | D129: Pořízení osobních ochranných prostředků požární ochrany | E129: Účelem projektu je pořízení nových osobních ochranných prostředků požární ochrany pro výjezdní jednotku obce Paseky nad Jizerou, Pořízením prostředků dojde ke zvýšení akceschopnosti jednotky. | F129: 2 | G129: Zásahová přilba - 2 ks, zásahová obuv - 1 pár, výstražná vesta - 2 ks, zásahový oblek - 2 komplet, zásahové rukavice -- 2 páry, svítilny na přilby - 2 ks, polohovací pás - 2 ks | H129: Zásahová přilba - 2 ks, zásahová obuv - 1 pár, výstražná vesta - 2 ks, zásahový oblek - 2 komplet, zásahové rukavice -- 2 páry, svítilny na přilby - 2 ks, polohovací pás - 2 ks | I129: 73400 | J129: 36700 | K129: 50 | L129: 36700 | M129: 50 | N129: 73400 | O129: 36700 | P129: 50 | Q129: ANO | R129: 5 | S129: 1.5 | T129: 7 | U129: 0.7 | V129: 2.2 | W129: 15 | X129: 1.5 | Y129: 15 | Z129: 7.5 | AA129: 9 | AB129: 11.2 | AC129: OLP/01885/2025 | AE129: 242 | AF129: Paseky nad Jizerou | AG129: 51247 | AH129: =_xlfn.XLOOKUP(C129,#REF!,#REF!,"Nenalezeno!") ->  | AI129: starostka | AJ129: 00580791 | AK129: CZ00580791 | AL129: 20727581/0100 | AM129: 73 400 Kč | AN129: 36 700,00 Kč | AO129: =Slovy(O129) -> třicet šesttisíc sedmset | AP129: 100% | AQ129: 50,00% | AR129: 50,00% | AV129: 176
A130: 121 | B130: Obec | C130: Pěnčín | D130: Pořízení ochranných prostředků PO | E130: U2) Pořízení osobních ochranných prostředků PO | F130: 2 | G130: Lehké obleky pro technické zásahy - 4 ks, Lehké přilby pro technické zásahy - 8 ks, Zásahová obuv - 2 páry | H130: Lehké obleky pro technické zásahy - 4 ks, Lehké přilby pro technické zásahy - 8 ks, Zásahová obuv - 2 páry | I130: 133274 | J130: 66637 | K130: 50 | L130: 66637 | M130: 50 | N130: 133274 | O130: 66637 | P130: 50 | Q130: ANO | R130: 15 | S130: 4.5 | T130: 7 | U130: 0.7 | V130: 5.2 | W130: 15 | X130: 1.5 | Y130: 15 | Z130: 7.5 | AA130: 9 | AB130: 14.2 | AC130: OLP/01981/2025 | AE130: 57 | AF130: Pěnčín | AG130: 46821 | AH130: =_xlfn.XLOOKUP(C130,#REF!,#REF!,"Nenalezeno!") ->  | AI130: starosta | AJ130: 00262501 | AL130: 963242379/0800 | AM130: 133 274 Kč | AN130: 66 637,00 Kč | AO130: =Slovy(O130) -> šedesát šesttisíc šestset třicet sedm | AP130: 100% | AQ130: 50,00% | AR130: 50,00% | AV130: 106
A131: 160 | B131: Obec | C131: Pěnčín | D131: Pořízení věcných prostředků PO | E131: U6) c) Pořízení, obnova, doplnění a opravy věcných prostředků ochrany | F131: 6c | G131: Oblek proti hmyzu - 1 ks, Drtič a vysavač hmyzu - 1 ks, Motorová pila jednoruční - 1 ks, Světelné puky - 1 sada | H131: Oblek proti hmyzu - 1 ks, Drtič a vysavač hmyzu - 1 ks, Motorová pila jednoruční - 1 ks, Světelné puky - 1 sada | I131: 32800 | J131: 16400 | K131: 50 | L131: 16400 | M131: 50 | N131: 32800 | O131: 16400 | P131: 50 | Q131: ANO | R131: 7 | S131: 2.1 | T131: 7 | U131: 0.7 | V131: 2.8 | W131: 15 | X131: 1.5 | Y131: 7 | Z131: 3.5 | AA131: 5 | AB131: 7.8 | AC131: OLP/02014/2025 | AE131: 57 | AF131: Pěnčín | AG131: 46821 | AH131: =_xlfn.XLOOKUP(C131,#REF!,#REF!,"Nenalezeno!") ->  | AI131: starosta | AJ131: 00262501 | AL131: 963242379/0800 | AM131: 32 800 Kč | AN131: 16 400,00 Kč | AO131: =Slovy(O131) -> šestnáct tisíc čtyřista | AP131: 100% | AQ131: 50,00% | AR131: 50,00% | AV131: 111
A132: 30 | B132: Obec | C132: Pertoltice | D132: Nákup ochranných prostředků PO | E132: U2 - pořízení, obnova, doplnění osobních ochranných prostředků | F132: 2 | G132: Zásahová obuv - 2 ks, Zásahová přilba - 2 ks, Dvoudílný vícevrstvý zásahový oděv - 2 ks, Zásahové rukavice - 2 ks | H132: Zásahová obuv - 2 ks, Zásahová přilba - 2 ks, Dvoudílný vícevrstvý zásahový oděv - 2 ks, Zásahové rukavice - 2 ks | I132: 83718 | J132: 50230 | K132: 60 | L132: 33488 | M132: 40 | N132: 83718 | O132: 50230 | P132: 60 | Q132: ANO | R132: 15 | S132: 4.5 | T132: 0 | U132: 0 | V132: 4.5 | W132: 15 | X132: 1.5 | Y132: 15 | Z132: 7.5 | AA132: 9 | AB132: 13.5 | AC132: OLP/01906/2025 | AE132: 59 | AF132: Pertoltice | AG132: 46373 | AH132: =_xlfn.XLOOKUP(C132,#REF!,#REF!,"Nenalezeno!") ->  | AI132: starosta | AJ132: 00671959 | AK132: CZ00671959 | AL132: 18521461/0100 | AM132: 83 718 Kč | AN132: 50 230,00 Kč | AO132: =Slovy(O132) -> padesát tisíc dvěstě třicet | AP132: 100% | AQ132: 60,00% | AR132: 40,00% | AV132: 113
A133: 72 | B133: Obec | C133: Plavy | D133: Pořízení ochranných prostředků PO pro JPO V Plavy | E133: U2) Pořízení, obnova a doplnění osobních ochranných prostředků požární ochrany | F133: 2 | G133: Zásahová obuv - 4 ks, Světlo na helmu pro zásahy - 4 ks, Zásahové rukavice - 4 ks | H133: Zásahová obuv - 4 ks, Světlo na helmu pro zásahy - 4 ks, Zásahové rukavice - 4 ks | I133: 25824 | J133: 15494 | K133: 60 | L133: 10330 | M133: 40 | N133: 25824 | O133: 15494 | P133: 60 | Q133: ANO | R133: 7 | S133: 2.1 | T133: 0 | U133: 0 | V133: 2.1 | W133: 15 | X133: 1.5 | Y133: 15 | Z133: 7.5 | AA133: 9 | AB133: 11.1 | AC133: OLP/01941/2025 | AE133: 186 | AF133: Plavy | AG133: 46846 | AH133: =_xlfn.XLOOKUP(C133,#REF!,#REF!,"Nenalezeno!") ->  | AI133: starosta | AJ133: 00262510 | AK133: CZ00262510 | AL133: 4406669319/0800 | AM133: 25 824 Kč | AN133: 15 494,00 Kč | AO133: =Slovy(O133) -> patnáct tisíc čtyřista devadesát čtyři | AP133: 100% | AQ133: 60,00% | AR133: 40,00% | AV133: 82
A134: 73 | B134: Obec | C134: Plavy | D134: Pořízení věcných prostředků pro JPO V Plavy | E134: U6c) Pořízení věcných prostředků požární ochrany mimo prostředků uvedených v U5) a v U6a) | F134: 6c | G134: Nabíjecí zdroj se startérem - 1 ks, Autobaterie pro PS12 - 1 ks, Řezné kotouče na kov (sada 10 kusů) - 1 sada, Diamantový kotouč na železobeton - 1 ks, Nosítka / páteřní deska (kompletní set) - 1 set, Teleskopický žebřík opěrný 3,8m - 1 ks, Univerzální sekyra - 1 ks | H134: Nabíjecí zdroj se startérem - 1 ks, Autobaterie pro PS12 - 1 ks, Řezné kotouče na kov (sada 10 kusů) - 1 sada, Diamantový kotouč na železobeton - 1 ks, Nosítka / páteřní deska (kompletní set) - 1 set, Teleskopický žebřík opěrný 3,8m - 1 ks, Univerzální sekyra - 1 ks | I134: 27109 | J134: 16265 | K134: 60 | L134: 10844 | M134: 40 | N134: 27109 | O134: 16265 | P134: 60 | Q134: ANO | R134: 7 | S134: 2.1 | T134: 0 | U134: 0 | V134: 2.1 | W134: 15 | X134: 1.5 | Y134: 7 | Z134: 3.5 | AA134: 5 | AB134: 7.1 | AC134: OLP/01942/2025 | AE134: 186 | AF134: Plavy | AG134: 46846 | AH134: =_xlfn.XLOOKUP(C134,#REF!,#REF!,"Nenalezeno!") ->  | AI134: starosta | AJ134: 00262510 | AK134: CZ00262510 | AL134: 4406669319/0800 | AM134: 27 109 Kč | AN134: 16 265,00 Kč | AO134: =Slovy(O134) -> šestnáct tisíc dvěstě šedesát pět | AP134: 100% | AQ134: 60,00% | AR134: 40,00% | AV134: 266
A135: 67 | B135: Obec | C135: Poniklá | D135: Doplnění věcných prostředků požární ochrany | E135: U6c) pořízení, obnova, doplnění a opravy věcných prostředků požární ochrany. | F135: 6c | G135: Ruční svítilna - 2 ks, Radiostanice - 2 ks, Osvětlovací systém - 1 ks, Vesta plovací - 2 ks, Kukla evakuační - 2 ks, Vývod pro 2. plicní automatiku - 2 ks | H135: Ruční svítilna - 2 ks, Radiostanice - 2 ks, Osvětlovací systém - 1 ks, Vesta plovací - 2 ks, Kukla evakuační - 2 ks, Vývod pro 2. plicní automatiku - 2 ks | I135: 100838 | J135: 60502 | K135: 60 | L135: 40336 | M135: 40 | N135: 100838 | O135: 60502 | P135: 60 | Q135: ANO | R135: 15 | S135: 4.5 | T135: 0 | U135: 0 | V135: 4.5 | W135: 15 | X135: 1.5 | Y135: 7 | Z135: 3.5 | AA135: 5 | AB135: 9.5 | AC135: OLP/01935/2025 | AE135: 65 | AF135: Poniklá | AG135: 51242 | AH135: =_xlfn.XLOOKUP(C135,#REF!,#REF!,"Nenalezeno!") ->  | AI135: starosta | AJ135: 00276006 | AK135: CZ00276006 | AL135: 94-54218451/0710 | AM135: 100 838 Kč | AN135: 60 502,00 Kč | AO135: =Slovy(O135) -> šedesát tisíc pětset dva | AP135: 100% | AQ135: 60,00% | AR135: 40,00% | AV135: 154
A136: 68 | B136: Obec | C136: Poniklá | D136: Obnova a doplnění osobních ochranných prostředků | E136: U2) Pořízení, obnova, doplnění a opravy osobních ochranných prostředků požární ochrany | F136: 2 | G136: Přilba pro technické zásahy - 4 ks, Zásahový oblek jednovrstvý - 4 ks, Zásahový oblek třívrstvý - 1 ks, Obuv zásahová - 1 ks, Vesta výstražná - nápis HASIČI - 4 ks | H136: Přilba pro technické zásahy - 4 ks, Zásahový oblek jednovrstvý - 4 ks, Zásahový oblek třívrstvý - 1 ks, Obuv zásahová - 1 ks, Vesta výstražná - nápis HASIČI - 4 ks | I136: 116914 | J136: 70148 | K136: =ROUND(J136/I136*100,2) -> 60 | L136: =I136-J136 -> 46766 | M136: =ROUND(L136/I136*100,2) -> 40 | N136: 116914 | O136: 70148 | P136: =ROUND(O136/N136*100,2) -> 60 | Q136: ANO | R136: 15 | S136: =R136*0.3 -> 4.5 | T136: =IF(K136<=30,"15",IF(K136<=50,"7",IF(K136<=70,"0","!!!"))) -> 0 | U136: =T136*0.1 -> 0 | V136: =S136+U136 -> 4.5 | W136: 15 | X136: =W136*0.1 -> 1.5 | Y136: 15 | Z136: =Y136*0.5 -> 7.5 | AA136: =X136+Z136 -> 9 | AB136: =V136+AA136 -> 13.5 | AC136: OLP/01936/2025 | AE136: 65 | AF136: Poniklá | AG136: 51242 | AH136: =_xlfn.XLOOKUP(C136,#REF!,#REF!,"Nenalezeno!") ->  | AI136: starosta | AJ136: 00276006 | AK136: CZ00276006 | AL136: 94-54218451/0710 | AM136: =TEXT(N136,"# ##0 Kč") -> 116 914 Kč | AN136: =TEXT(O136,"# ##0,00 Kč") -> 70 148,00 Kč | AO136: =Slovy(O136) -> sedmdesát tisíc jednosto čtyřicet osm | AP136: =IF(O136<=300000,"100%","90%") -> 100% | AQ136: =TEXT(P136,"0,00")& "%" -> 60,00% | AR136: =TEXT(M136,"0,00")& "%" -> 40,00% | AV136: =LEN(H136) -> 163
A137: 172 | B137: Obec | C137: Příšovice | D137: Pořízení zásahových obleků a dalšího vybavení požární ochrany | E137: Pořízení, obnova, doplnění a opravy osobních ochranných prostředků požární ochrany | F137: 2 | G137: Zásahový oblek - 2 ks, Přilba Dräger - 2 ks, Svítilna LED integrální - 4 ks, Čelní štít svítilny - 4 ks, Svítilna PARAT - 2 ks, Držák svítilny PARAT - 2 ks | H137: Zásahový oblek - 2 ks, Přilba Dräger - 2 ks, Svítilna LED integrální - 4 ks, Čelní štít svítilny - 4 ks, Svítilna PARAT - 2 ks, Držák svítilny PARAT - 2 ks | I137: 112664 | J137: 56332 | K137: 50 | L137: 56332 | M137: 50 | N137: 112664 | O137: 56332 | P137: 50 | Q137: ANO | R137: 15 | S137: 4.5 | T137: 7 | U137: 0.7 | V137: 5.2 | W137: 15 | X137: 1.5 | Y137: 15 | Z137: 7.5 | AA137: 9 | AB137: 14.2 | AC137: OLP/02033/2025 | AE137: 60 | AF137: Příšovice | AG137: 46346 | AH137: =_xlfn.XLOOKUP(C137,#REF!,#REF!,"Nenalezeno!") ->  | AI137: starosta | AJ137: 00263125 | AK137: CZ00263125 | AL137: 94-416081/0710 | AM137: 112 664 Kč | AN137: 56 332,00 Kč | AO137: =Slovy(O137) -> padesát šesttisíc třista třicet dva | AP137: 100% | AQ137: 50,00% | AR137: 50,00% | AV137: 156
A138: 175 | B138: Obec | C138: Příšovice | D138: Pořízení a oprava věcných prostředků požární ochrany 2025 | E138: pořízení, obnova, doplnění a opravy věcných prostředků požární ochrany, ochranných prostředků | F138: 6c | G138: Tablet - 1 ks, Revize dýchacích přístrojů - 1 ks, Baterie do vysílaček - 9 ks | H138: Tablet - 1 ks, Revize dýchacích přístrojů - 1 ks, Baterie do vysílaček - 9 ks | I138: 80070 | J138: 40035 | K138: 50 | L138: 40035 | M138: 50 | N138: 80070 | O138: 40035 | P138: 50 | Q138: ANO | R138: 15 | S138: 4.5 | T138: 7 | U138: 0.7 | V138: 5.2 | W138: 15 | X138: 1.5 | Y138: 7 | Z138: 3.5 | AA138: 5 | AB138: 10.2 | AC138: OLP/02035/2025 | AE138: 60 | AF138: Příšovice | AG138: 46346 | AH138: =_xlfn.XLOOKUP(C138,#REF!,#REF!,"Nenalezeno!") ->  | AI138: starosta | AJ138: 00263125 | AK138: CZ00263125 | AL138: 94-416081/0710 | AM138: 80 070 Kč | AN138: 40 035,00 Kč | AO138: =Slovy(O138) -> čtyřicet tisíc třicet pět | AP138: 100% | AQ138: 50,00% | AR138: 50,00% | AV138: 77
A139: 187 | B139: Obec | C139: Příšovice | D139: Rekonstrukce sociálního zařízení v hasičské zbrojnici Příšovice včetně elektroinstalace a vodoinstalace | E139: opravy, úpravy a výstavba objektů sloužících k zabezpečení činnosti jednotky sboru dobrovolných hasičů obce | F139: 6f | G139: rekonstrukce sociálního zařízení - 1 ks | H139: rekonstrukce sociálního zařízení - 1 ks | I139: 580000 | J139: 290000 | K139: 50 | L139: 290000 | M139: 50 | N139: 580000 | O139: 290000 | P139: 50 | Q139: ANO | R139: 15 | S139: 4.5 | T139: 7 | U139: 0.7 | V139: 5.2 | W139: 15 | X139: 1.5 | Y139: 0 | Z139: 0 | AA139: 1.5 | AB139: 6.7 | AC139: OLP/02046/2025 | AE139: 60 | AF139: Příšovice | AG139: 46346 | AH139: =_xlfn.XLOOKUP(C139,#REF!,#REF!,"Nenalezeno!") ->  | AI139: starosta | AJ139: 00263125 | AK139: CZ00263125 | AL139: 94-416081/0710 | AM139: 580 000 Kč | AN139: 290 000,00 Kč | AO139: =Slovy(O139) -> dvěstě devadesát tisíc | AP139: 100% | AQ139: 50,00% | AR139: 50,00% | AV139: 39
A140: 248 | B140: Obec | C140: Rádlo | D140: Pořízení věcných prostředků požární ochrany pro čerpání vody zejména v souvislosti se záplavami a povodněmi | E140: V loňském roce naše jednotka zasahovala v souvislosti s povodněmi na Frýdlantsku a ukázala se potřeba zvýšit množství přečerpané vody | F140: 4 | G140: Plovoucí čerpadlo MAMUT 2400 - 1 ks, Hadice A110 20 m - 2 ks, Rozdělovač kulový A110 - B75 (A-BB) - 1 ks | H140: Plovoucí čerpadlo MAMUT 2400 - 1 ks, Hadice A110 20 m - 2 ks, Rozdělovač kulový A110 - B75 (A-BB) - 1 ks | I140: 86500 | J140: 43250 | K140: 50 | L140: 43250 | M140: 50 | N140: 86500 | O140: 43250 | P140: 50 | Q140: ANO | R140: 7 | S140: 2.1 | T140: 7 | U140: 0.7 | V140: 2.8 | W140: 15 | X140: 1.5 | Y140: 15 | Z140: 7.5 | AA140: 9 | AB140: 11.8 | AC140: OLP/02096/2025 | AE140: Rádlo 252 | AF140: Rádlo | AG140: 46803 | AH140: =_xlfn.XLOOKUP(C140,#REF!,#REF!,"Nenalezeno!") ->  | AI140: starosta | AJ140: 00262544 | AL140: 3824451/0100 | AM140: 86 500 Kč | AN140: 43 250,00 Kč | AO140: =Slovy(O140) -> čtyřicet třitisíce dvěstě padesát | AP140: 100% | AQ140: 50,00% | AR140: 50,00% | AV140: 104
A141: 249 | B141: Obec | C141: Rádlo | D141: Doplnění a obměna osobních ochranných prostředků PO | E141: Jednotka požární ochrany na Rádle se rozrostla o nové členy, které je potřeba vybavit potřebnou ochranou a obměnit nevyhovující | F141: 2 | G141: Zásahový oblek třívrstvý GoodPro - komplet (kabát a kalhoty) - 3 ks, Svítilna ADALIT L-5 LED Ex - 4 ks, Zásahové rukavice Holík - 4 ks, Ochranná kukla - 4 ks, Zásahová přilba SICOR - 4 ks, Obuv zásahová DEMON FIRE - 3 ks | H141: Zásahový oblek třívrstvý GoodPro - komplet (kabát a kalhoty) - 3 ks, Svítilna ADALIT L-5 LED Ex - 4 ks, Zásahové rukavice Holík - 4 ks, Ochranná kukla - 4 ks, Zásahová přilba SICOR - 4 ks, Obuv zásahová DEMON FIRE - 3 ks | I141: 121200 | J141: 60600 | K141: 50 | L141: 60600 | M141: 50 | N141: 121200 | O141: 60600 | P141: 50 | Q141: ANO | R141: 7 | S141: 2.1 | T141: 7 | U141: 0.7 | V141: 2.8 | W141: 15 | X141: 1.5 | Y141: 15 | Z141: 7.5 | AA141: 9 | AB141: 11.8 | AC141: OLP/02097/2025 | AE141: Rádlo 252 | AF141: Rádlo | AG141: 46803 | AH141: =_xlfn.XLOOKUP(C141,#REF!,#REF!,"Nenalezeno!") ->  | AI141: starosta | AJ141: 00262544 | AL141: 3824451/0100 | AM141: 121 200 Kč | AN141: 60 600,00 Kč | AO141: =Slovy(O141) -> šedesát tisíc šestset | AP141: 100% | AQ141: 50,00% | AR141: 50,00% | AV141: 221
A142: 252 | B142: Obec | C142: Rádlo | D142: Pořízení a obnova věcných prostředků požární ochrany | E142: Jednotka požární ochrany Rádlo potřebuje nahradit morálně zastaralé a netěsné proudnice. Další prostředky PO jako je sací koš, savice, ventilové lako, přejezdové můstky a vazáky na hadice nahradí staré a velmi opotřebované prostředky | F142: 6c | G142: Proudnice kombinovaná C52 - 2 ks, Sací koš A110 - 1 ks, Přechod DIN A110 - 1 ks, Savice A110 2,5 m - 2 ks, Ventilové lanko s karabinou a vidlicí - 2 ks, Přejezdový můstek gumový - 4 ks, Vazák na hadice - 4 ks | H142: Proudnice kombinovaná C52 - 2 ks, Sací koš A110 - 1 ks, Přechod DIN A110 - 1 ks, Savice A110 2,5 m - 2 ks, Ventilové lanko s karabinou a vidlicí - 2 ks, Přejezdový můstek gumový - 4 ks, Vazák na hadice - 4 ks | I142: 49600 | J142: 24800 | K142: 50 | L142: 24800 | M142: 50 | N142: 49600 | O142: 24800 | P142: 50 | Q142: ANO | R142: 7 | S142: 2.1 | T142: 7 | U142: 0.7 | V142: 2.8 | W142: 15 | X142: 1.5 | Y142: 7 | Z142: 3.5 | AA142: 5 | AB142: 7.8 | AC142: OLP/02099/2025 | AE142: Rádlo 252 | AF142: Rádlo | AG142: 46803 | AH142: =_xlfn.XLOOKUP(C142,#REF!,#REF!,"Nenalezeno!") ->  | AI142: starosta | AJ142: 00262544 | AL142: 3824451/0100 | AM142: 49 600 Kč | AN142: 24 800,00 Kč | AO142: =Slovy(O142) -> dvacet čtyřitisíce osmset | AP142: 100% | AQ142: 50,00% | AR142: 50,00% | AV142: 208
A143: 28 | B143: Město | C143: Raspenava | D143: U2) Pořízení, obnova, doplnění osobních ochranných prostředků | E143: Pořízení, obnova, doplnění osobních ochranných prostředků pro hasiče v souladu s výzvou. | F143: 2 | G143: vícevrstvý zásahový oblek - 4 ks, zásahové rukavice- 4 ks, ochranná kukla - 4 ks, zásahové boty - 4 páry | H143: vícevrstvý zásahový oblek - 4 ks, zásahové rukavice- 4 ks, ochranná kukla - 4 ks, zásahové boty - 4 páry | I143: 130800 | J143: 65400 | K143: 50 | L143: 65400 | M143: 50 | N143: 130800 | O143: 65400 | P143: 50 | Q143: ANO | R143: 15 | S143: 4.5 | T143: 7 | U143: 0.7 | V143: 5.2 | W143: 15 | X143: 1.5 | Y143: 15 | Z143: 7.5 | AA143: 9 | AB143: 14.2 | AC143: OLP/01904/2025 | AE143: Fučíkova 421 | AF143: Raspenava | AG143: 46401 | AH143: =_xlfn.XLOOKUP(C143,#REF!,#REF!,"Nenalezeno!") ->  | AI143: starosta | AJ143: 00263141 | AK143: CZ00263141 | AL143: 94-5018461/0710 | AM143: 130 800 Kč | AN143: 65 400,00 Kč | AO143: =Slovy(O143) -> šedesát pěttisíc čtyřista | AP143: 100% | AQ143: 50,00% | AR143: 50,00% | AV143: 104
A144: 29 | B144: Město | C144: Raspenava | D144: U5) Pořízení věcných prostředků požární ochrany pro zásahy v souvislosti s likvidací lesních požárů | E144: Pořízení, obnova, doplnění věcných prostředků požární ochrany pro zásahy v souvislosti s likvidací lesních požárů dle výzvy. | F144: 5 | G144: jednovrstvý zásahový oblek - 4 ks, rukavic pro hasiče - 4 páry | H144: jednovrstvý zásahový oblek - 4 ks, rukavic pro hasiče - 4 páry | I144: 52600 | J144: 26300 | K144: 50 | L144: 26300 | M144: 50 | N144: 52600 | O144: 26300 | P144: 50 | Q144: ANO | R144: 15 | S144: 4.5 | T144: 7 | U144: 0.7 | V144: 5.2 | W144: 15 | X144: 1.5 | Y144: 15 | Z144: 7.5 | AA144: 9 | AB144: 14.2 | AC144: OLP/01905/2025 | AE144: Fučíkova 421 | AF144: Raspenava | AG144: 46401 | AH144: =_xlfn.XLOOKUP(C144,#REF!,#REF!,"Nenalezeno!") ->  | AI144: starosta | AJ144: 00263141 | AK144: CZ00263141 | AL144: 94-5018461/0710 | AM144: 52 600 Kč | AN144: 26 300,00 Kč | AO144: =Slovy(O144) -> dvacet šesttisíc třista | AP144: 100% | AQ144: 50,00% | AR144: 50,00% | AV144: 62
A145: 14 | B145: Město | C145: Rokytnice nad Jizerou | D145: Obnova osobních ochranných prostředků 2025 | E145: Účel U2 - Obnova a doplnění osobních ochranných prostředků | F145: 2 | G145: Zásahový oblek - 2 ks, Zásahová obuv - 2 páry, Přilba zásahová - 2 ks, Kukla zásahová - 2 ks, Svítilny včetně příslušenství - 4 ks | H145: Zásahový oblek - 2 ks, Zásahová obuv - 2 páry, Přilba zásahová - 2 ks, Kukla zásahová - 2 ks, Svítilny včetně příslušenství - 4 ks | I145: 112630 | J145: 56250 | K145: 49.94 | L145: 56380 | M145: 50.06 | N145: 112630 | O145: 56250 | P145: 49.94 | Q145: ANO | R145: 15 | S145: 4.5 | T145: 7 | U145: 0.7 | V145: 5.2 | W145: 15 | X145: 1.5 | Y145: 15 | Z145: 7.5 | AA145: 9 | AB145: 14.2 | AC145: OLP/01893/2025 | AE145: 197 | AF145: Rokytnice nad Jizerou | AG145: 51244 | AH145: =_xlfn.XLOOKUP(C145,#REF!,#REF!,"Nenalezeno!") ->  | AI145: starosta | AJ145: 00276057 | AK145: CZ00276057 | AL145: 94-54816451/0710 | AM145: 112 630 Kč | AN145: 56 250,00 Kč | AO145: =Slovy(O145) -> padesát šesttisíc dvěstě padesát | AP145: 100% | AQ145: 49,94% | AR145: 50,06% | AV145: 130
A146: 15 | B146: Město | C146: Rokytnice nad Jizerou | D146: Pořízení plovoucího čerpadla | E146: Účel U4 - Jedná se o pořízení plovoucího čerpadla pro čerpání vody v souvislosti se záplavami a povodněmi | F146: 4 | G146: Přenosné plovoucí čerpadlo - 1 ks | H146: Přenosné plovoucí čerpadlo - 1 ks | I146: 49390 | J146: 24640 | K146: 49.89 | L146: 24750 | M146: 50.11 | N146: 49390 | O146: 24640 | P146: 49.89 | Q146: ANO | R146: 15 | S146: 4.5 | T146: 7 | U146: 0.7 | V146: 5.2 | W146: 15 | X146: 1.5 | Y146: 15 | Z146: 7.5 | AA146: 9 | AB146: 14.2 | AC146: OLP/01894/2025 | AE146: 197 | AF146: Rokytnice nad Jizerou | AG146: 51244 | AH146: =_xlfn.XLOOKUP(C146,#REF!,#REF!,"Nenalezeno!") ->  | AI146: starosta | AJ146: 00276057 | AK146: CZ00276057 | AL146: 94-54816451/0710 | AM146: 49 390 Kč | AN146: 24 640,00 Kč | AO146: =Slovy(O146) -> dvacet čtyřitisíce šestset čtyřicet | AP146: 100% | AQ146: 49,89% | AR146: 50,11% | AV146: 34
A147: 16 | B147: Město | C147: Rokytnice nad Jizerou | D147: Pořízení MŘP | E147: Účel U6a - Jedná se o pořízení nové motorové řetězové pily včetně příslušenství (příslušenství, ochranné prostředky, osvětlení). | F147: 6a | G147: Motorová pila - 1 ks, Ochranná přilba - 1 ks, Neprůřezné návleky - 1 ks, Lopatka - 1 ks, Umělohmotný klín - 2 ks, Kanystr kombinovaný - 1 ks, Reflektor Galaxy + příslušenství - 2 ks, Stativ pro reflektor - 1 ks | H147: Motorová pila - 1 ks, Ochranná přilba - 1 ks, Neprůřezné návleky - 1 ks, Lopatka - 1 ks, Umělohmotný klín - 2 ks, Kanystr kombinovaný - 1 ks, Reflektor Galaxy + příslušenství - 2 ks, Stativ pro reflektor - 1 ks | I147: 48570 | J147: 24250 | K147: 49.93 | L147: 24320 | M147: 50.07 | N147: 48570 | O147: 24250 | P147: 49.93 | Q147: ANO | R147: 15 | S147: 4.5 | T147: 7 | U147: 0.7 | V147: 5.2 | W147: 15 | X147: 1.5 | Y147: 15 | Z147: 7.5 | AA147: 9 | AB147: 14.2 | AC147: OLP/01895/2025 | AE147: 197 | AF147: Rokytnice nad Jizerou | AG147: 51244 | AH147: =_xlfn.XLOOKUP(C147,#REF!,#REF!,"Nenalezeno!") ->  | AI147: starosta | AJ147: 00276057 | AK147: CZ00276057 | AL147: 94-54816451/0710 | AM147: 48 570 Kč | AN147: 24 250,00 Kč | AO147: =Slovy(O147) -> dvacet čtyřitisíce dvěstě padesát | AP147: 100% | AQ147: 49,93% | AR147: 50,07% | AV147: 211
A148: 17 | B148: Město | C148: Rokytnice nad Jizerou | D148: Oprava CAS 20 Scania | E148: U6b - Jedná se o výměnu (opravu) původního systému připojení vozidla CAS 20 Scania na zdroj dobíjení a tlakového vzduchu a dále o výměnu podkladní fólie na stávajícím oplechování na zádi vozidla (bude použito výstražné značení Chevron). | F148: 6b | G148: Domontáž dobíjení Rettbox-Air vč. úprav - 1 ks, Montáž výstražného značení CHEVRON -1 ks | H148: Domontáž dobíjení Rettbox-Air vč. úprav - 1 ks, Montáž výstražného značení CHEVRON -1 ks | I148: 123300 | J148: 61600 | K148: 49.96 | L148: 61700 | M148: 50.04 | N148: 123300 | O148: 61600 | P148: 49.96 | Q148: ANO | R148: 15 | S148: 4.5 | T148: 7 | U148: 0.7 | V148: 5.2 | W148: 15 | X148: 1.5 | Y148: 7 | Z148: 3.5 | AA148: 5 | AB148: 10.2 | AC148: OLP/01896/2025 | AE148: 197 | AF148: Rokytnice nad Jizerou | AG148: 51244 | AH148: =_xlfn.XLOOKUP(C148,#REF!,#REF!,"Nenalezeno!") ->  | AI148: starosta | AJ148: 00276057 | AK148: CZ00276057 | AL148: 94-54816451/0710 | AM148: 123 300 Kč | AN148: 61 600,00 Kč | AO148: =Slovy(O148) -> šedesát jedentisíc šestset | AP148: 100% | AQ148: 49,96% | AR148: 50,04% | AV148: 88
A149: 188 | B149: Město | C149: Rychnov u Jablonce nad Nisou | D149: Nákup ochranných prostředků PO | E149: U2) Doplnění a prostředků, které odpovídají vyhlášce č. 247/2001 Sb., o organizaci a činnosti jednotek požární ochrany, v platném znění. | F149: 2 | G149: Jednovrstvý zásahový oblek FireSnake FR2 - 4 ks, Zásahová přilba pro technické zásahy MSA Gallet F2XR - 4 ks, Rukavice záchranářské BLAZE NEO - 4 ks, Obuv zásahová Red Fighter Michelin - 4 ks, Svítilna XP LED - 4 ks | H149: Jednovrstvý zásahový oblek FireSnake FR2 - 4 ks, Zásahová přilba pro technické zásahy MSA Gallet F2XR - 4 ks, Rukavice záchranářské BLAZE NEO - 4 ks, Obuv zásahová Red Fighter Michelin - 4 ks, Svítilna XP LED - 4 ks | I149: 103820 | J149: 31146 | K149: 30 | L149: 72674 | M149: 70 | N149: 103820 | O149: 31146 | P149: 30 | Q149: ANO | R149: 15 | S149: 4.5 | T149: 15 | U149: 1.5 | V149: 6 | W149: 15 | X149: 1.5 | Y149: 15 | Z149: 7.5 | AA149: 9 | AB149: 15 | AC149: OLP/02047/2025 | AE149: nám. Míru 720 | AF149: Rychnov u Jablonce nad Nisou | AG149: 46802 | AH149: =_xlfn.XLOOKUP(C149,#REF!,#REF!,"Nenalezeno!") ->  | AI149: starosta | AJ149: 00252662 | AL149: 963232349/0800 | AM149: 103 820 Kč | AN149: 31 146,00 Kč | AO149: =Slovy(O149) -> třicet jedentisíc jednosto čtyřicet šest | AP149: 100% | AQ149: 30,00% | AR149: 70,00% | AV149: 215
A150: 231 | B150: Obec | C150: Rynoltice | D150: Pořízení vysoušecí skříně pro JSDHO Rynoltice 2025 | E150: pořízení, obnova, doplnění a opravy věcných prostředků požární ochrany a technického vybavení hasičských zbrojnic | F150: 6e | G150: vysoušecí skříň - 1 ks | H150: vysoušecí skříň - 1 ks | I150: 72540 | J150: 43524 | K150: 60 | L150: 29016 | M150: 40 | N150: 72540 | O150: 43524 | P150: 60 | Q150: ANO | R150: 15 | S150: 4.5 | T150: 0 | U150: 0 | V150: 4.5 | W150: 15 | X150: 1.5 | Y150: 0 | Z150: 0 | AA150: 1.5 | AB150: 6 | AC150: OLP/02080/2025 | AE150: Rynoltice 199 | AF150: Rynoltice | AG150: 46353 | AH150: =_xlfn.XLOOKUP(C150,#REF!,#REF!,"Nenalezeno!") ->  | AI150: starosta | AJ150: 00263168 | AK150: CZ00263168 | AL150: 94-5114461/0710 | AM150: 72 540 Kč | AN150: 43 524,00 Kč | AO150: =Slovy(O150) -> čtyřicet třitisíce pětset dvacet čtyři | AP150: 100% | AQ150: 60,00% | AR150: 40,00% | AV150: 22
A151: 234 | B151: Obec | C151: Rynoltice | D151: Doplnění a obnova věcných prostředků pro JSDHO Rynoltice 2025 | E151: Pořízení, obnova, doplnění a opravy věcných prostředků požární ochrany | F151: 6c | G151: vozidlová radiostanice - 1 ks | H151: vozidlová radiostanice - 1 ks | I151: 31000 | J151: 15500 | K151: 50 | L151: 15500 | M151: 50 | N151: 31000 | O151: 15500 | P151: 50 | Q151: ANO | R151: 15 | S151: 4.5 | T151: 7 | U151: 0.7 | V151: 5.2 | W151: 15 | X151: 1.5 | Y151: 7 | Z151: 3.5 | AA151: 5 | AB151: 10.2 | AC151: OLP/02083/2025 | AE151: Rynoltice 199 | AF151: Rynoltice | AG151: 46353 | AH151: =_xlfn.XLOOKUP(C151,#REF!,#REF!,"Nenalezeno!") ->  | AI151: starosta | AJ151: 00263168 | AK151: CZ00263168 | AL151: 94-5114461/0710 | AM151: 31 000 Kč | AN151: 15 500,00 Kč | AO151: =Slovy(O151) -> patnáct tisíc pětset | AP151: 100% | AQ151: 50,00% | AR151: 50,00% | AV151: 29
A152: 235 | B152: Obec | C152: Rynoltice | D152: Pořízení zásahových obleků pro JSDHO Rynoltice 2025 | E152: Pořízení, obnova, doplnění a opravy vyjmenovaných osobních ochranných prostředků požární ochrany | F152: 2 | G152: zásahový oblek třívrstvý - 2 ks, zásahový oblek jednovrstvý - 2 ks, zásahová obuv - 4 ks, zásahové rukavice - 4 ks, technické rukavice - 4 ks, zásahová přilba - 4 ks, zásahová kukla dvouvrstvá - 4 ks, zásahová svítilna - 2 ks, opasek polohovací - 4 ks | H152: zásahový oblek třívrstvý - 2 ks, zásahový oblek jednovrstvý - 2 ks, zásahová obuv - 4 ks, zásahové rukavice - 4 ks, technické rukavice - 4 ks, zásahová přilba - 4 ks, zásahová kukla dvouvrstvá - 4 ks, zásahová svítilna - 2 ks, opasek polohovací - 4 ks | I152: 215626 | J152: 100000 | K152: 46.38 | L152: 115626 | M152: 53.62 | N152: 215626 | O152: 100000 | P152: 46.38 | Q152: ANO | R152: 15 | S152: 4.5 | T152: 7 | U152: 0.7 | V152: 5.2 | W152: 15 | X152: 1.5 | Y152: 15 | Z152: 7.5 | AA152: 9 | AB152: 14.2 | AC152: OLP/02084/2025 | AE152: Rynoltice 199 | AF152: Rynoltice | AG152: 46353 | AH152: =_xlfn.XLOOKUP(C152,#REF!,#REF!,"Nenalezeno!") ->  | AI152: starosta | AJ152: 00263168 | AK152: CZ00263168 | AL152: 94-5114461/0710 | AM152: 215 626 Kč | AN152: 100 000,00 Kč | AO152: =Slovy(O152) -> jednosto tisíc | AP152: 100% | AQ152: 46,38% | AR152: 53,62% | AV152: 251
A153: 74 | B153: Město | C153: Semily | D153: Pořízení osobních ochranných prostředků | E153: U2) Pořízení, obnova, doplnění a opravy v závorce vyjmenovaných osobních ochranných prostředků požární ochrany | F153: 2 | G153: zásahový oblek - kabát - 2 ks, zásahový oblek - kalhoty - 2 ks, zásahové rukavice - 4 ks, technické rukavice - 4 ks, zásahová obuv - 4 ks | H153: zásahový oblek - kabát - 2 ks, zásahový oblek - kalhoty - 2 ks, zásahové rukavice - 4 ks, technické rukavice - 4 ks, zásahová obuv - 4 ks | I153: 100000 | J153: 60000 | K153: 60 | L153: 40000 | M153: 40 | N153: 100000 | O153: 60000 | P153: 60 | Q153: ANO | R153: 15 | S153: 4.5 | T153: 0 | U153: 0 | V153: 4.5 | W153: 15 | X153: 1.5 | Y153: 15 | Z153: 7.5 | AA153: 9 | AB153: 13.5 | AC153: OLP/01943/2025 | AE153: Husova 82 | AF153: Semily | AG153: 51301 | AH153: =_xlfn.XLOOKUP(C153,#REF!,#REF!,"Nenalezeno!") ->  | AI153: sstarostka | AJ153: 00276111 | AK153: CZ00276111 | AL153: 1263108309/0800 | AM153: 100 000 Kč | AN153: 60 000,00 Kč | AO153: =Slovy(O153) -> šedesát tisíc | AP153: 100% | AQ153: 60,00% | AR153: 40,00% | AV153: 137
A154: 77 | B154: Město | C154: Semily | D154: Pořízení prostředků požární ochrany | E154: U6c) pořízení, obnova, doplnění a opravy věcných prostředků požární ochrany mimo prostředků uvedených v U5) a U6)a). | F154: 6c | G154: hadice typ B - 2 ks, hadice typ C - 2 ks, proudnice kombinovaná se spojkou - 1 ks, vysokotlaká proudnice - 1 ks, vak na lano - 3 ks | H154: hadice typ B - 2 ks, hadice typ C - 2 ks, proudnice kombinovaná se spojkou - 1 ks, vysokotlaká proudnice - 1 ks, vak na lano - 3 ks | I154: 47000 | J154: 28200 | K154: 60 | L154: 18800 | M154: 40 | N154: 47000 | O154: 28200 | P154: 60 | Q154: ANO | R154: 15 | S154: 4.5 | T154: 0 | U154: 0 | V154: 4.5 | W154: 15 | X154: 1.5 | Y154: 7 | Z154: 3.5 | AA154: 5 | AB154: 9.5 | AC154: OLP/01945/2025 | AE154: Husova 82 | AF154: Semily | AG154: 51301 | AH154: =_xlfn.XLOOKUP(C154,#REF!,#REF!,"Nenalezeno!") ->  | AI154: starostka | AJ154: 00276111 | AK154: CZ00276111 | AL154: 1263108309/0800 | AM154: 47 000 Kč | AN154: 28 200,00 Kč | AO154: =Slovy(O154) -> dvacet osmtisíc dvěstě | AP154: 100% | AQ154: 60,00% | AR154: 40,00% | AV154: 132
A155: 78 | B155: Město | C155: Semily | D155: Pořízení vybavení k provádění speciálních činností | E155: U6a) pořízení, obnova, doplnění a opravy věcných prostředků požární ochrany, ochranných prostředků a úprava úložných prostor mobilní požární techniky k provádění speciálních činností při zásazích v souvislosti s mimořádnými událostmi | F155: 6a | G155: přilby lehké - 4 ks, brýle k přilbě - 4 ks, svítilny k přilbě - 2 ks, Hooligans standart čelist - 1 ks, kalibrace detektoru - 2 ks, rescue kotouč - 1 ks | H155: přilby lehké - 4 ks, brýle k přilbě - 4 ks, svítilny k přilbě - 2 ks, Hooligans standart čelist - 1 ks, kalibrace detektoru - 2 ks, rescue kotouč - 1 ks | I155: 60400 | J155: 42280 | K155: 70 | L155: 18120 | M155: 30 | N155: 60400 | O155: 42280 | P155: 70 | Q155: ANO | R155: 15 | S155: 4.5 | T155: 0 | U155: 0 | V155: 4.5 | W155: 15 | X155: 1.5 | Y155: 15 | Z155: 7.5 | AA155: 9 | AB155: 13.5 | AC155: OLP/01946/2025 | AE155: Husova 82 | AF155: Semily | AG155: 51301 | AH155: =_xlfn.XLOOKUP(C155,#REF!,#REF!,"Nenalezeno!") ->  | AI155: starostka | AJ155: 00276111 | AK155: CZ00276111 | AL155: 1263108309/0800 | AM155: 60 400 Kč | AN155: 42 280,00 Kč | AO155: =Slovy(O155) -> čtyřicet dvatisíce dvěstě osmdesát | AP155: 100% | AQ155: 70,00% | AR155: 30,00% | AV155: 152
A156: 170 | B156: Obec | C156: Slaná | D156: Doplnění ochranných pomůcek a materiálu pro JSDH / PARAMETRY CHYBNĚ | E156: Doplnění ochranných pomůcek a materiálu pro jednotku požární ochrany | F156: 6c | G156: Obuv zásahová - 1 ks, Smáčedlo – kartuše - 10 ks, Hák požární AL PH - 1 ks, Brodící kalhoty Fluo (prsačky) - 1 ks, Kužel teleskopický scítící - 3 ks, Svítilna M-Fire 02 CREE - 1 ks, Přilba Kalisz Vulkan – včetně svítilny - 4 ks | H156: Obuv zásahová - 1 ks, Smáčedlo – kartuše - 10 ks, Hák požární AL PH - 1 ks, Brodící kalhoty Fluo (prsačky) - 1 ks, Kužel teleskopický scítící - 3 ks, Svítilna M-Fire 02 CREE - 1 ks, Přilba Kalisz Vulkan – včetně svítilny - 4 ks | I156: 54132 | J156: 27066 | K156: 50 | L156: 27066 | M156: 50 | N156: 54132 | O156: 27066 | P156: 50 | Q156: ANO | R156: 7 | S156: 2.1 | T156: 7 | U156: 0.7 | V156: 2.8 | W156: 15 | X156: 1.5 | Y156: 7 | Z156: 3.5 | AA156: 5 | AB156: 7.8 | AC156: OLP/02031/2025 | AE156: 94 | AF156: Slaná | AG156: 51201 | AH156: =_xlfn.XLOOKUP(C156,#REF!,#REF!,"Nenalezeno!") ->  | AI156: starostka | AJ156: 00276138 | AL156: 6327581/0100 | AM156: 54 132 Kč | AN156: 27 066,00 Kč | AO156: =Slovy(O156) -> dvacet sedmtisíc šedesát šest | AP156: 100% | AQ156: 50,00% | AR156: 50,00% | AV156: 227
A157: 85 | B157: Město | C157: Smržovka | D157: Obnova a pořízení ochranných prostředků. | E157: U2 - pořízení, obnova, doplnění a opravy osobních ochranných prostředků požární ochrany | F157: 2 | G157: Oblek zásahový - 4 ks, Přilba Gallet - 4 ks, Obuv zásahová - 4 páry, Rukavice zásahové - 4 páry, Polohovací opasek - 4 ks, Osobní svítilna - 4 ks, Kukla zásahová - 4 ks, Vesta-nápis Hasiči - 4 ks | H157: Oblek zásahový - 4 ks, Přilba Gallet - 4 ks, Obuv zásahová - 4 páry, Rukavice zásahové - 4 páry, Polohovací opasek - 4 ks, Osobní svítilna - 4 ks, Kukla zásahová - 4 ks, Vesta-nápis Hasiči - 4 ks | I157: 197848 | J157: 98924 | K157: 50 | L157: 98924 | M157: 50 | N157: 197848 | O157: 98924 | P157: 50 | Q157: ANO | R157: 15 | S157: 4.5 | T157: 7 | U157: 0.7 | V157: 5.2 | W157: 15 | X157: 1.5 | Y157: 15 | Z157: 7.5 | AA157: 9 | AB157: 14.2 | AC157: OLP/01954/2025 | AE157: náměstí T. G. Masaryka 600 | AF157: Smržovka | AG157: 46851 | AH157: =_xlfn.XLOOKUP(C157,#REF!,#REF!,"Nenalezeno!") ->  | AI157: starosta | AJ157: 00262579 | AK157: CZ00262579 | AL157: 94-3015451/0710 | AM157: 197 848 Kč | AN157: 98 924,00 Kč | AO157: =Slovy(O157) -> devadesát osmtisíc devětset dvacet čtyři | AP157: 100% | AQ157: 50,00% | AR157: 50,00% | AV157: 196
A158: 86 | B158: Město | C158: Smržovka | D158: Pořízení a obnova věcných prostředků. | E158: U5 Pořízení, obnova, doplnění a opravy věcných prostředků požární ochrany pro zásahy v souvislosti s likvidací lesních požárů | F158: 5 | G158: Batoh D program - 1 ks, Oblek pro hašení lesních požárů - 4 ks, Obuv pro hašení lesních požárů - 4 páry, Přilba pro hašení lesních požárů - 4 ks, Rukavice pro hašení lesních požárů - 4 páry, Motykohrábě - 1 ks, Hasící zádový vak - 1 ks, Tlumice - 1 ks | H158: Batoh D program - 1 ks, Oblek pro hašení lesních požárů - 4 ks, Obuv pro hašení lesních požárů - 4 páry, Přilba pro hašení lesních požárů - 4 ks, Rukavice pro hašení lesních požárů - 4 páry, Motykohrábě - 1 ks, Hasící zádový vak - 1 ks, Tlumice - 1 ks | I158: 156130 | J158: 78065 | K158: 50 | L158: 78065 | M158: 50 | N158: 156130 | O158: 78065 | P158: 50 | Q158: ANO | R158: 15 | S158: 4.5 | T158: 7 | U158: 0.7 | V158: 5.2 | W158: 15 | X158: 1.5 | Y158: 15 | Z158: 7.5 | AA158: 9 | AB158: 14.2 | AC158: OLP/01955/2025 | AE158: náměstí T. G. Masaryka 600 | AF158: Smržovka | AG158: 46851 | AH158: =_xlfn.XLOOKUP(C158,#REF!,#REF!,"Nenalezeno!") ->  | AI158: starosta | AJ158: 00262579 | AK158: CZ00262579 | AL158: 94-3015451/0710 | AM158: 156 130 Kč | AN158: 78 065,00 Kč | AO158: =Slovy(O158) -> sedmdesát osmtisíc šedesát pět | AP158: 100% | AQ158: 50,00% | AR158: 50,00% | AV158: 252
A159: 53 | B159: Obec | C159: Stráž nad Nisou | D159: Nákup zásahových obleků a ochranných dvouvrstvých kukel | E159: Pořízení, obnova, doplnění a opravy v závorce vyjmenovaných osobních ochranných prostředků požární ochrany (jednovrstvé a vícevrstvé zásahové obleky, ochranné kukly, vesty s nápisem k označení hasičů a osobní svítilny) | F159: 2 | G159: Zásahový oblek Bushfire 2023 Lime Green s vlastním nápisem - 4 ks, Kukla dvouvrstvá NANO FLEX - 4 ks | H159: Zásahový oblek Bushfire 2023 Lime Green s vlastním nápisem - 4 ks, Kukla dvouvrstvá NANO FLEX - 4 ks | I159: 61252 | J159: 36751 | K159: 60 | L159: 24501 | M159: 40 | N159: 61252 | O159: 36751 | P159: 60 | Q159: ANO | R159: 15 | S159: 4.5 | T159: 0 | U159: 0 | V159: 4.5 | W159: 15 | X159: 1.5 | Y159: 15 | Z159: 7.5 | AA159: 9 | AB159: 13.5 | AC159: OLP/01925/2025 | AE159: Schwarzova 262 | AF159: Stráž nad Nisou | AG159: 46303 | AH159: =_xlfn.XLOOKUP(C159,#REF!,#REF!,"Nenalezeno!") ->  | AI159: starosta | AJ159: 00671916 | AK159: CZ00671916 | AL159: 984860379/0800 | AM159: 61 252 Kč | AN159: 36 751,00 Kč | AO159: =Slovy(O159) -> třicet šesttisíc sedmset padesát jedna | AP159: 100% | AQ159: 60,00% | AR159: 40,00% | AV159: 100
A160: 54 | B160: Obec | C160: Stráž nad Nisou | D160: Nákup suchých obleků, termokamery a příslušenství | E160: Pořízení, obnova, doplnění a opravy věcných prostředků požární ochrany mimo prostředků uvedených v U5) a U6)a) | F160: 6c | G160: Suchý oblek Agama Rescue – kompletní set BASIC - 2 ks, Termokamera Reveal FirePRO X - 1 ks, Lanko navíjecí k termokameře Reveal FirePRO - 1 ks | H160: Suchý oblek Agama Rescue – kompletní set BASIC - 2 ks, Termokamera Reveal FirePRO X - 1 ks, Lanko navíjecí k termokameře Reveal FirePRO - 1 ks | I160: 73531 | J160: 44119 | K160: 60 | L160: 29412 | M160: 40 | N160: 73531 | O160: 44119 | P160: 60 | Q160: ANO | R160: 15 | S160: 4.5 | T160: 0 | U160: 0 | V160: 4.5 | W160: 15 | X160: 1.5 | Y160: 7 | Z160: 3.5 | AA160: 5 | AB160: 9.5 | AC160: OLP/01926/2025 | AE160: Schwarzova 262 | AF160: Stráž nad Nisou | AG160: 46303 | AH160: =_xlfn.XLOOKUP(C160,#REF!,#REF!,"Nenalezeno!") ->  | AI160: starosta | AJ160: 00671916 | AK160: CZ00671916 | AL160: 984860379/0800 | AM160: 73 531 Kč | AN160: 44 119,00 Kč | AO160: =Slovy(O160) -> čtyřicet čtyřitisíce jednosto devatenáct | AP160: 100% | AQ160: 60,00% | AR160: 40,00% | AV160: 142
A161: 194 | B161: Město | C161: Stráž pod Ralskem | D161: Nákup ochranných prostředků PO | E161: Zvýšení akceschopnosti jednotek sborů dobrovolných hasičů obcí Libereckého kraje | F161: 2 | G161: lehký zásahový oblek - 4 ks, přilba se svítilnou - 2 ks, zásahové boty - 2 ks, zásahový kabát - 2 ks, technické rukavice - 4 ks, lehká zásahová přilba - 4 ks, zásahové rukavice - 2 ks, polohovací opasek - 4 ks, zásahový komplet - 1 ks | H161: lehký zásahový oblek - 4 ks, přilba se svítilnou - 2 ks, zásahové boty - 2 ks, zásahový kabát - 2 ks, technické rukavice - 4 ks, lehká zásahová přilba - 4 ks, zásahové rukavice - 2 ks, polohovací opasek - 4 ks, zásahový komplet - 1 ks | I161: 185000 | J161: 92000 | K161: 49.73 | L161: 93000 | M161: 50.27 | N161: 185000 | O161: 92000 | P161: 49.73 | Q161: ANO | R161: 15 | S161: 4.5 | T161: 7 | U161: 0.7 | V161: 5.2 | W161: 15 | X161: 1.5 | Y161: 15 | Z161: 7.5 | AA161: 9 | AB161: 14.2 | AC161: OLP/02049/2025 | AE161: Revoluční 164 | AF161: Stráž pod Ralskem | AG161: 47127 | AH161: =_xlfn.XLOOKUP(C161,#REF!,#REF!,"Nenalezeno!") ->  | AI161: starosta | AJ161: 00260967 | AK161: CZ00260967 | AL161: 94-4614421/0710 | AM161: 185 000 Kč | AN161: 92 000,00 Kč | AO161: =Slovy(O161) -> devadesát dvatisíce | AP161: 100% | AQ161: 49,73% | AR161: 50,27% | AV161: 234
A162: 200 | B162: Město | C162: Stráž pod Ralskem | D162: Věcné prostředky | E162: Zvýšení akceschopnosti jednotek sborů dobrovolných hasičů obcí Libereckého kraje | F162: 6c | G162: hadice C 42 - 5 ks, hadice B 75 - 3 ks, nástavec na pěnu ventilátoru - 1 ks, kalové čerpadlo, elektrické - 1 ks, vakuová matrace s batohem - 1 ks, ruční vysílačka - 2 ks, klíč na hadice B/C - 6 ks, Odvlhčovač - 1 ks | H162: hadice C 42 - 5 ks, hadice B 75 - 3 ks, nástavec na pěnu ventilátoru - 1 ks, kalové čerpadlo, elektrické - 1 ks, vakuová matrace s batohem - 1 ks, ruční vysílačka - 2 ks, klíč na hadice B/C - 6 ks, Odvlhčovač - 1 ks | I162: 219800 | J162: 100000 | K162: 45.5 | L162: 119800 | M162: 54.5 | N162: 219800 | O162: 100000 | P162: 45.5 | Q162: ANO | R162: 15 | S162: 4.5 | T162: 7 | U162: 0.7 | V162: 5.2 | W162: 15 | X162: 1.5 | Y162: 7 | Z162: 3.5 | AA162: 5 | AB162: 10.2 | AC162: OLP/02052/2025 | AE162: Revoluční 164 | AF162: Stráž pod Ralskem | AG162: 47127 | AH162: =_xlfn.XLOOKUP(C162,#REF!,#REF!,"Nenalezeno!") ->  | AI162: starosta | AJ162: 00260967 | AK162: CZ00260967 | AL162: 94-4614421/0710 | AM162: 219 800 Kč | AN162: 100 000,00 Kč | AO162: =Slovy(O162) -> jednosto tisíc | AP162: 100% | AQ162: 45,50% | AR162: 54,50% | AV162: 215
A163: 205 | B163: Město | C163: Stráž pod Ralskem | D163: Oprava hasičské zbrojnice | E163: Zvýšení akceschopnosti jednotek sborů dobrovolných hasičů obcí Libereckého kraje | F163: 6f | G163: oprava motorů - 2ks, oprava stěn garáží, výmalba - 500 m2, oprava podlah garáží, výmalba - 300 m2, výměna okapů - 90 m, výměna osvětlení - 50 ks, výměna lina, oprava podlah spol. místnost chodba - 50 m2 | H163: oprava motorů - 2ks, oprava stěn garáží, výmalba - 500 m2, oprava podlah garáží, výmalba - 300 m2, výměna okapů - 90 m, výměna osvětlení - 50 ks, výměna lina, oprava podlah spol. místnost chodba - 50 m3 | I163: 416000 | J163: 207000 | K163: 49.76 | L163: 209000 | M163: 50.24 | N163: 416000 | O163: 207000 | P163: 49.76 | Q163: ANO | R163: 15 | S163: 4.5 | T163: 7 | U163: 0.7 | V163: 5.2 | W163: 15 | X163: 1.5 | Y163: 0 | Z163: 0 | AA163: 1.5 | AB163: 6.7 | AC163: OLP/02056/2025 | AE163: Revoluční 164 | AF163: Stráž pod Ralskem | AG163: 47127 | AH163: =_xlfn.XLOOKUP(C163,#REF!,#REF!,"Nenalezeno!") ->  | AI163: starosta | AJ163: 00260967 | AK163: CZ00260967 | AL163: 94-4614421/0710 | AM163: 416 000 Kč | AN163: 207 000,00 Kč | AO163: =Slovy(O163) -> dvěstě sedmtisíc | AP163: 100% | AQ163: 49,76% | AR163: 50,24% | AV163: 202
A164: 177 | B164: Obec | C164: Stružnice | D164: Nákup ochranných prostředků pro JSDH Stružnice | E164: U2) Pořízení, obnova, doplnění a opravy ochranných prostředků požární ochrany | F164: 2 | G164: Zásahový komplet jednovrstvý - 4 ks, Zásahová přilba DRAEGER HPS - 4 ks, Opasek polohovací AP1/1 bez karabinky - 4 ks | H164: Zásahový komplet jednovrstvý - 4 ks, Zásahová přilba DRAEGER HPS - 4 ks, Opasek polohovací AP1/1 bez karabinky - 4 ks | I164: 73164 | J164: 43898 | K164: 60 | L164: 29266 | M164: 40 | N164: 73164 | O164: 43898 | P164: 60 | Q164: ANO | R164: 15 | S164: 4.5 | T164: 0 | U164: 0 | V164: 4.5 | W164: 15 | X164: 1.5 | Y164: 15 | Z164: 7.5 | AA164: 9 | AB164: 13.5 | AC164: OLP/02037/2025 | AE164: 188 | AF164: Stružnice | AG164: 47002 | AH164: =_xlfn.XLOOKUP(C164,#REF!,#REF!,"Nenalezeno!") ->  | AI164: starostka | AJ164: 00260975 | AK164: CZ00260975 | AL164: 94-4710421/0710 | AM164: 73 164 Kč | AN164: 43 898,00 Kč | AO164: =Slovy(O164) -> čtyřicet třitisíce osmset devadesát osm | AP164: 100% | AQ164: 60,00% | AR164: 40,00% | AV164: 117
A165: 178 | B165: Obec | C165: Stružnice | D165: Oprava CAS TATRA | E165: U6e) Pořízení, obnova, doplnění a opravy věcných prostředků požární ochrany | F165: 6b | G165: Oprava spojky CAS TATRA - 1 ks | H165: Oprava spojky CAS TATRA - 1 ks | I165: 45000 | J165: 27000 | K165: 60 | L165: 18000 | M165: 40 | N165: 45000 | O165: 27000 | P165: 60 | Q165: ANO | R165: 15 | S165: 4.5 | T165: 0 | U165: 0 | V165: 4.5 | W165: 15 | X165: 1.5 | Y165: 7 | Z165: 3.5 | AA165: 5 | AB165: 9.5 | AC165: OLP/02039/2025 | AE165: 188 | AF165: Stružnice | AG165: 47002 | AH165: =_xlfn.XLOOKUP(C165,#REF!,#REF!,"Nenalezeno!") ->  | AI165: starostka | AJ165: 00260975 | AK165: CZ00260975 | AL165: 94-4710421/0710 | AM165: 45 000 Kč | AN165: 27 000,00 Kč | AO165: =Slovy(O165) -> dvacet sedmtisíc | AP165: 100% | AQ165: 60,00% | AR165: 40,00% | AV165: 30
A166: 162 | B166: Obec | C166: Studenec | D166: Pořízení OOP pro JSDHO Studenec | E166: Pořízení a obnova osobních ochranných prostředků jednotky požární ochrany | F166: 2 | G166: Zásahová obuv HAIX Fire Flash2.0 - 3 ks, Rukavice zásahové CRYSTAL Flexi - 4 ks | H166: Zásahová obuv HAIX Fire Flash2.0 - 3 ks, Rukavice zásahové CRYSTAL Flexi - 4 ks | I166: 33081 | J166: 16540 | K166: 50 | L166: 16541 | M166: 50 | N166: 33081 | O166: 16540 | P166: 50 | Q166: ANO | R166: 15 | S166: 4.5 | T166: 7 | U166: 0.7 | V166: 5.2 | W166: 15 | X166: 1.5 | Y166: 15 | Z166: 7.5 | AA166: 9 | AB166: 14.2 | AC166: OLP/02016/2025 | AE166: 364 | AF166: Studenec | AG166: 51233 | AH166: =_xlfn.XLOOKUP(C166,#REF!,#REF!,"Nenalezeno!") ->  | AI166: starosta | AJ166: 00276162 | AK166: CZ00276162 | AL166: 261128774/0600 | AM166: 33 081 Kč | AN166: 16 540,00 Kč | AO166: =Slovy(O166) -> šestnáct tisíc pětset čtyřicet | AP166: 100% | AQ166: 50,00% | AR166: 50,00% | AV166: 79
A167: 250 | B167: Obec | C167: Studenec | D167: Nákup sušící skříně na OOP | E167: U6 e) Snížení opotřebení a ochrana zásahových OOP a tím dosažení snížení celkových nákladů na OOP | F167: 6e | G167: Skříň ROS 05 turbo - 1 ks | H167: Skříň ROS 05 turbo - 1 ks | I167: 79799 | J167: 39899 | K167: 50 | L167: 39900 | M167: 50 | N167: 79799 | O167: 39899 | P167: 50 | Q167: ANO | R167: 15 | S167: 4.5 | T167: 7 | U167: 0.7 | V167: 5.2 | W167: 15 | X167: 1.5 | Y167: 0 | Z167: 0 | AA167: 1.5 | AB167: 6.7 | AC167: OLP/02098/2025 | AE167: 364 | AF167: Studenec | AG167: 51233 | AH167: =_xlfn.XLOOKUP(C167,#REF!,#REF!,"Nenalezeno!") ->  | AI167: starosta | AJ167: 00276162 | AK167: CZ00276162 | AL167: 261128774/0600 | AM167: 79 799 Kč | AN167: 39 899,00 Kč | AO167: =Slovy(O167) -> třicet devěttisíc osmset devadesát devět | AP167: 100% | AQ167: 50,00% | AR167: 50,00% | AV167: 25
A168: 236 | B168: Obec | C168: Světlá pod Ještědem | D168: Obnova osobních ochranných prostředků | E168: U2 - Ochrana hasičů při zásahu u mimořádné události. | F168: 2 | G168: Zásahový oděv - 4 ks, Zásahová obuv - 4 páry, Zásahová přilba - 4 ks, Zásahové rukavice - 4 páry | H168: Zásahový oděv - 4 ks, Zásahová obuv - 4 páry, Zásahová přilba - 4 ks, Zásahové rukavice - 4 páry | I168: 199828 | J168: 99914 | K168: =ROUND(J168/I168*100,2) -> 50 | L168: =I168-J168 -> 99914 | M168: =ROUND(L168/I168*100,2) -> 50 | N168: 199828 | O168: 99914 | P168: =ROUND(O168/N168*100,2) -> 50 | Q168: ANO | R168: 15 | S168: =R168*0.3 -> 4.5 | T168: =IF(K168<=30,"15",IF(K168<=50,"7",IF(K168<=70,"0","!!!"))) -> 7 | U168: =T168*0.1 -> 0.7 | V168: =S168+U168 -> 5.2 | W168: 15 | X168: =W168*0.1 -> 1.5 | Y168: 15 | Z168: =Y168*0.5 -> 7.5 | AA168: =X168+Z168 -> 9 | AB168: =V168+AA168 -> 14.2 | AC168: OLP/02085/2025 | AE168: Hodky 48 | AF168: Světlá pod Ještědem | AG168: 46343 | AH168: =_xlfn.XLOOKUP(C168,#REF!,#REF!,"Nenalezeno!") ->  | AI168: starosta | AJ168: 00263192 | AK168: CZ00263192 | AL168: 94-5413461/0710 | AM168: =TEXT(N168,"# ##0 Kč") -> 199 828 Kč | AN168: =TEXT(O168,"# ##0,00 Kč") -> 99 914,00 Kč | AO168: =Slovy(O168) -> devadesát devěttisíc devětset čtrnáct | AP168: =IF(O168<=300000,"100%","90%") -> 100% | AQ168: =TEXT(P168,"0,00")& "%" -> 50,00% | AR168: =TEXT(M168,"0,00")& "%" -> 50,00% | AV168: =LEN(H168) -> 96
A169: 238 | B169: Obec | C169: Světlá pod Ještědem | D169: Pořízení věcných prostředků PO | E169: U4 - Pořízení věcných prostředků požární ochrany pro čerpání vody v souvislosti se záplavami a povodněmi | F169: 4 | G169: čerpadlo přenosné plovoucí - 1 ks | H169: čerpadlo přenosné plovoucí - 1 ks | I169: 54882 | J169: 27441 | K169: 50 | L169: 27441 | M169: 50 | N169: 54882 | O169: 27441 | P169: 50 | Q169: ANO | R169: 15 | S169: 4.5 | T169: 7 | U169: 0.7 | V169: 5.2 | W169: 15 | X169: 1.5 | Y169: 15 | Z169: 7.5 | AA169: 9 | AB169: 14.2 | AC169: OLP/02087/2025 | AE169: Hodky 48 | AF169: Světlá pod Ještědem | AG169: 46343 | AH169: =_xlfn.XLOOKUP(C169,#REF!,#REF!,"Nenalezeno!") ->  | AI169: starosta | AJ169: 00263192 | AK169: CZ00263192 | AL169: 94-5413461/0710 | AM169: 54 882 Kč | AN169: 27 441,00 Kč | AO169: =Slovy(O169) -> dvacet sedmtisíc čtyřista čtyřicet jedna | AP169: 100% | AQ169: 50,00% | AR169: 50,00% | AV169: 33
A170: 240 | B170: Obec | C170: Světlá pod Ještědem | D170: Pořízení věcných prostředků PO. | E170: U5 - Pořízení věcných prostředků požární ochrany pro zásahy v souvislosti s likvidací lesních požárů | F170: 5 | G170: zádový vak hasicí - 1 ks, zásahová přilba - 4 ks, zásahový oděv - 4 ks | H170: zádový vak hasicí - 1 ks, zásahová přilba - 4 ks, zásahový oděv - 4 ks | I170: 78118 | J170: 39059 | K170: 50 | L170: 39059 | M170: 50 | N170: 78118 | O170: 39059 | P170: 50 | Q170: ANO | R170: 15 | S170: 4.5 | T170: 7 | U170: 0.7 | V170: 5.2 | W170: 15 | X170: 1.5 | Y170: 15 | Z170: 7.5 | AA170: 9 | AB170: 14.2 | AC170: OLP/02089/2025 | AE170: Hodky 48 | AF170: Světlá pod Ještědem | AG170: 46343 | AH170: =_xlfn.XLOOKUP(C170,#REF!,#REF!,"Nenalezeno!") ->  | AI170: starosta | AJ170: 00263192 | AK170: CZ00263192 | AL170: 94-5413461/0710 | AM170: 78 118 Kč | AN170: 39 059,00 Kč | AO170: =Slovy(O170) -> třicet devěttisíc padesát devět | AP170: 100% | AQ170: 50,00% | AR170: 50,00% | AV170: 70
A171: 241 | B171: Obec | C171: Světlá pod Ještědem | D171: Doplnění osobních ochranných prostředků. | E171: U6a - Doplnění osobních ochranných prostředků v souvislosti s předurčeností JSDHO pro ochranu obyvatel | F171: 6a | G171: Zásahový oděv - 4 ks, Zásahová přilba - 4 ks | H171: Zásahový oděv - 4 ks, Zásahová přilba - 4 ks | I171: 71032 | J171: 35516 | K171: 50 | L171: 35516 | M171: 50 | N171: 71032 | O171: 35516 | P171: 50 | Q171: ANO | R171: 15 | S171: 4.5 | T171: 7 | U171: 0.7 | V171: 5.2 | W171: 15 | X171: 1.5 | Y171: 15 | Z171: 7.5 | AA171: 9 | AB171: 14.2 | AC171: OLP/02090/2025 | AE171: Hodky 48 | AF171: Světlá pod Ještědem | AG171: 46343 | AH171: =_xlfn.XLOOKUP(C171,#REF!,#REF!,"Nenalezeno!") ->  | AI171: starosta | AJ171: 00263192 | AK171: CZ00263192 | AL171: 94-5413461/0710 | AM171: 71 032 Kč | AN171: 35 516,00 Kč | AO171: =Slovy(O171) -> třicet pěttisíc pětset šestnáct | AP171: 100% | AQ171: 50,00% | AR171: 50,00% | AV171: 44
A172: 244 | B172: Obec | C172: Světlá pod Ještědem | D172: Pořízení technického vybavení | E172: U6e - Pořízení technického vybavení hasičské zbrojnice pro praní, sušení a impregnaci osobních ochranných prostředků členů JSDHO | F172: 6e | G172: Sestava pračky a sušiče s příslušenstvím - 1 ks | H172: Sestava pračky a sušiče s příslušenstvím - 1 ks | I172: 185734 | J172: 92867 | K172: 50 | L172: 92867 | M172: 50 | N172: 185734 | O172: 92867 | P172: 50 | Q172: ANO | R172: 15 | S172: 4.5 | T172: 7 | U172: 0.7 | V172: 5.2 | W172: 15 | X172: 1.5 | Y172: 0 | Z172: 0 | AA172: 1.5 | AB172: 6.7 | AC172: OLP/02091/2025 | AE172: Hodky 48 | AF172: Světlá pod Ještědem | AG172: 46343 | AH172: =_xlfn.XLOOKUP(C172,#REF!,#REF!,"Nenalezeno!") ->  | AI172: starosta | AJ172: 00263192 | AK172: CZ00263192 | AL172: 94-5413461/0710 | AM172: 185 734 Kč | AN172: 92 867,00 Kč | AO172: =Slovy(O172) -> devadesát dvatisíce osmset šedesát sedm | AP172: 100% | AQ172: 50,00% | AR172: 50,00% | AV172: 47
A173: 123 | B173: Obec | C173: Svojkov | D173: Pořízení, obnova, doplnění a opravy věcných prostředků PO mimo prostředků uvedených v U5) a U6)a) - Účel podpory U6)c) | E173: Zajištění dostatečné bezpečnosti členů JSDHO při provádění hasebních, záchranných a vyprošťovacích prací s nasazením dýchací techniky. Možnost provedení předepsané revize DT. | F173: 6c | G173: Dýchací přístroj PLUTO 300 - 2 ks, Maska s náhlavním křížem - 2 ks, Tlaková lahev - 2 ks | H173: Dýchací přístroj PLUTO 300 - 2 ks, Maska s náhlavním křížem - 2 ks, Tlaková lahev - 2 ks | I173: 100000 | J173: 60000 | K173: 60 | L173: 40000 | M173: 40 | N173: 100000 | O173: 60000 | P173: 60 | Q173: ANO | R173: 7 | S173: 2.1 | T173: 0 | U173: 0 | V173: 2.1 | W173: 15 | X173: 1.5 | Y173: 7 | Z173: 3.5 | AA173: 5 | AB173: 7.1 | AC173: OLP/01983/2025 | AE173: 12 | AF173: Svojkov | AG173: 47153 | AH173: =_xlfn.XLOOKUP(C173,#REF!,#REF!,"Nenalezeno!") ->  | AI173: starosta | AJ173: 00831689 | AL173: 24324421/0100 | AM173: 100 000 Kč | AN173: 60 000,00 Kč | AO173: =Slovy(O173) -> šedesát tisíc | AP173: 100% | AQ173: 60,00% | AR173: 40,00% | AV173: 88
A174: 124 | B174: Obec | C174: Svojkov | D174: Pořízení, obnova, doplnění a opravy osobních ochranných prostředků PO - Účel podpory - U2 | E174: Zajištění dostatečné bezpečnosti členů JSDHO při provádění hasebních, záchranných a vyprošťovacích prací, nákupem třívrstvých zásahových kompletů, obuvi, přileb a ostatních předepsaných ochranných prostředků | F174: 2 | G174: Komplet zásahový, třívrstvý - 1 sada, Přilba zásahová - 4 ks, Kukla - 4 ks, Obuv zásahová - 3 ks, Svítilna - 4 ks, Držák na svítilnu - 4 ks | H174: Komplet zásahový, třívrstvý - 1 sada, Přilba zásahová - 4 ks, Kukla - 4 ks, Obuv zásahová - 3 ks, Svítilna - 4 ks, Držák na svítilnu - 4 ks | I174: 100000 | J174: 60000 | K174: 60 | L174: 40000 | M174: 40 | N174: 100000 | O174: 60000 | P174: 60 | Q174: ANO | R174: 7 | S174: 2.1 | T174: 0 | U174: 0 | V174: 2.1 | W174: 15 | X174: 1.5 | Y174: 15 | Z174: 7.5 | AA174: 9 | AB174: 11.1 | AC174: OLP/01984/2025 | AE174: 12 | AF174: Svojkov | AG174: 47153 | AH174: =_xlfn.XLOOKUP(C174,#REF!,#REF!,"Nenalezeno!") ->  | AI174: starosta | AJ174: 00831689 | AL174: 24324421/0100 | AM174: 100 000 Kč | AN174: 60 000,00 Kč | AO174: =Slovy(O174) -> šedesát tisíc | AP174: 100% | AQ174: 60,00% | AR174: 40,00% | AV174: 139
A175: 126 | B175: Obec | C175: Svojkov | D175: Pořízení , obnova, doplnění a opravy věcných prostředků PO pro zásahy v souvislosti s likvidací lesních požárů - Účel podpory - U5 | E175: Doplnění výbavy nutné pro efektivní zdolávání lesních požárů v zalesněných, skalnatých, velmi členitých a těžko přístupných částech katastru obce | F175: 5 | G175: Batoh s předepsanou výbavou pro lesní požáry - 1 ks, Vak hasící 25l - 1 ks, Motykohrábě - 1 ks, Tlumice - 1 ks, Rukavice určené pro lesní požáry - 4 páry, Přechod C52/B75 - 1 ks, Vazák na hadice - 1 ks | H175: Batoh s předepsanou výbavou pro lesní požáry - 1 ks, Vak hasící 25l - 1 ks, Motykohrábě - 1 ks, Tlumice - 1 ks, Rukavice určené pro lesní požáry - 4 páry, Přechod C52/B75 - 1 ks, Vazák na hadice - 1 ks | I175: 57001 | J175: 34200 | K175: 60 | L175: 22801 | M175: 40 | N175: 57001 | O175: 34200 | P175: 60 | Q175: ANO | R175: 7 | S175: 2.1 | T175: 0 | U175: 0 | V175: 2.1 | W175: 15 | X175: 1.5 | Y175: 15 | Z175: 7.5 | AA175: 9 | AB175: 11.1 | AC175: OLP/01986/2025 | AE175: 12 | AF175: Svojkov | AG175: 47153 | AH175: =_xlfn.XLOOKUP(C175,#REF!,#REF!,"Nenalezeno!") ->  | AI175: starosta | AJ175: 00831689 | AL175: 24324421/0100 | AM175: 57 001 Kč | AN175: 34 200,00 Kč | AO175: =Slovy(O175) -> třicet čtyřitisíce dvěstě | AP175: 100% | AQ175: 60,00% | AR175: 40,00% | AV175: 201
A176: 149 | B176: Obec | C176: Syřenov | D176: Nákup ochranných prostředků PO | E176: U2 - pro JSDH Syřenov budou pořízeny 4 soupravy osobních ochranných prostředků požární ochrany, které tvoří vícevrstvý ochranný oblek (kalhoty a kabát), zásahové boty, zásahové rukavice, zásahová přilba včetně svítilny a kukly. | F176: 2 | G176: Vícevrstvý zásahový oblek - kalhoty - 4 ks,Vícevrstvý zásahový oblek - kabát - 4 ks, Zásahová obuv - 4 páry, Zásahové rukavice - 4 páry, Zásahová přilba - 4 ks, Svítilna k přilbě - 4 ks, Kukla otvor - obličej - 4 ks | H176: Vícevrstvý zásahový oblek - kalhoty - 4 ks,Vícevrstvý zásahový oblek - kabát - 4 ks, Zásahová obuv - 4 páry, Zásahové rukavice - 4 páry, Zásahová přilba - 4 ks, Svítilna k přilbě - 4 ks, Kukla otvor - obličej - 4 ks | I176: 192000 | J176: 96000 | K176: 50 | L176: 96000 | M176: 50 | N176: 192000 | O176: 96000 | P176: 50 | Q176: ANO | R176: 7 | S176: 2.1 | T176: 7 | U176: 0.7 | V176: 2.8 | W176: 15 | X176: 1.5 | Y176: 15 | Z176: 7.5 | AA176: 9 | AB176: 11.8 | AC176: OLP/02006/2025 | AE176: 68 | AF176: Syřenov | AG176: 51251 | AH176: =_xlfn.XLOOKUP(C176,#REF!,#REF!,"Nenalezeno!") ->  | AI176: starosta | AJ176: 00276189 | AL176: 8322581/0100 | AM176: 192 000 Kč | AN176: 96 000,00 Kč | AO176: =Slovy(O176) -> devadesát šesttisíc | AP176: 100% | AQ176: 50,00% | AR176: 50,00% | AV176: 216
A177: 232 | B177: Město | C177: Tanvald | D177: Obnova a doplnění OOP PO pro jednotky požární ochrany města Tanvald | E177: U2) Pořízení, obnova, doplnění osobních ochranných prostředků požární ochrany | F177: 2 | G177: Zásahová přilba - 8 ks, Zásahový oblek třívrstvý - 8 ks, Svítilna - 8 ks, Zásahová obuv - 8 ks, Vesta s nápisem - 8 ks, Zásahové rukavice - 8 počet, Kukla - 8 ks | H177: Zásahová přilba - 8 ks, Zásahový oblek třívrstvý - 8 ks, Svítilna - 8 ks, Zásahová obuv - 8 ks, Vesta s nápisem - 8 ks, Zásahové rukavice - 8 počet, Kukla - 8 ks | I177: 341820 | J177: 200000 | K177: 58.51 | L177: 141820 | M177: 41.49 | N177: 341820 | O177: 200000 | P177: 58.51 | Q177: ANO | R177: 15 | S177: 4.5 | T177: 0 | U177: 0 | V177: 4.5 | W177: 15 | X177: 1.5 | Y177: 15 | Z177: 7.5 | AA177: 9 | AB177: 13.5 | AC177: OLP/02081/2025 | AE177: Palackého 359 | AF177: Tanvald | AG177: 46841 | AH177: =_xlfn.XLOOKUP(C177,#REF!,#REF!,"Nenalezeno!") ->  | AI177: starosta | AJ177: 00262587 | AK177: CZ00262587 | AL177: 9005-1626451/0100 | AM177: 341 820 Kč | AN177: 200 000,00 Kč | AO177: =Slovy(O177) -> dvěstě tisíc | AP177: 100% | AQ177: 58,51% | AR177: 41,49% | AV177: 161
A178: 233 | B178: Město | C178: Tanvald | D178: Pořízení OOP PO pro zásahy v souvislosti s likvidací lesních požárů pro jednotky požární ochrany města Tanvald | E178: U5) Pořízení, obnova, doplnění a opravy věcných prostředků požární ochrany pro zásahy v souvislosti s likvidací lesních požárů | F178: 5 | G178: Přilba pro hasiče určena k použití při lesních požárech - 8 ks | H178: Přilba pro hasiče určena k použití při lesních požárech - 8 ks | I178: 42784 | J178: 15000 | K178: 35.06 | L178: 27784 | M178: 64.94 | N178: 42784 | O178: 15000 | P178: 35.06 | Q178: ANO | R178: 15 | S178: 4.5 | T178: 7 | U178: 0.7 | V178: 5.2 | W178: 15 | X178: 1.5 | Y178: 15 | Z178: 7.5 | AA178: 9 | AB178: 14.2 | AC178: OLP/02082/2025 | AE178: Palackého 359 | AF178: Tanvald | AG178: 46841 | AH178: =_xlfn.XLOOKUP(C178,#REF!,#REF!,"Nenalezeno!") ->  | AI178: starosta | AJ178: 00262587 | AK178: CZ00262587 | AL178: 9005-1626451/0100 | AM178: 42 784 Kč | AN178: 15 000,00 Kč | AO178: =Slovy(O178) -> patnáct tisíc | AP178: 100% | AQ178: 35,06% | AR178: 64,94% | AV178: 62
A179: 219 | B179: Obec | C179: Tuhaň | D179: GO Tatry 815 | E179: U6b GO Tatry 815 | F179: 6b | G179: GO Tatry 815 - 1 ks | H179: GO Tatry 815 - 1 ks | I179: 500000 | J179: 300000 | K179: 60 | L179: 200000 | M179: 40 | N179: 500000 | O179: 300000 | P179: 60 | Q179: ANO | R179: 15 | S179: 4.5 | T179: 0 | U179: 0 | V179: 4.5 | W179: 15 | X179: 1.5 | Y179: 7 | Z179: 3.5 | AA179: 5 | AB179: 9.5 | AC179: OLP/02071/2025 | AE179: 32 | AF179: Tuhaň | AG179: 47201 | AH179: =_xlfn.XLOOKUP(C179,#REF!,#REF!,"Nenalezeno!") ->  | AI179: starostka | AJ179: 00831727 | AK179: CZ00831727 | AL179: 24228421/0100 | AM179: 500 000 Kč | AN179: 300 000,00 Kč | AO179: =Slovy(O179) -> třista tisíc | AP179: 100% | AQ179: 60,00% | AR179: 40,00% | AV179: 19
A180: 222 | B180: Obec | C180: Tuhaň | D180: Dýchací technika | E180: U6c doplnění přetlakové dýchací techniky | F180: 6c | G180: Dýchací přístroj (sada) - 2 ks, Lahev tlaková - 2 ks | H180: Dýchací přístroj (sada) - 2 ks, Lahev tlaková - 2 ks | I180: 107120 | J180: 64272 | K180: 60 | L180: 42848 | M180: 40 | N180: 107120 | O180: 64272 | P180: 60 | Q180: ANO | R180: 15 | S180: 4.5 | T180: 0 | U180: 0 | V180: 4.5 | W180: 15 | X180: 1.5 | Y180: 7 | Z180: 3.5 | AA180: 5 | AB180: 9.5 | AC180: OLP/02073/2025 | AE180: 32 | AF180: Tuhaň | AG180: 47201 | AH180: =_xlfn.XLOOKUP(C180,#REF!,#REF!,"Nenalezeno!") ->  | AI180: starostka | AJ180: 00831727 | AK180: CZ00831727 | AL180: 24228421/0100 | AM180: 107 120 Kč | AN180: 64 272,00 Kč | AO180: =Slovy(O180) -> šedesát čtyřitisíce dvěstě sedmdesát dva | AP180: 100% | AQ180: 60,00% | AR180: 40,00% | AV180: 52
A181: 224 | B181: Obec | C181: Tuhaň | D181: Doplnění OOP PO JSDH Tuhaň | E181: U2 Doplnění OOP PO JSDH Tuhaň | F181: 2 | G181: Helma - 4 ks, Zásahové obleky jednovrstvé - 4 ks, Zásahové obleky třívrstvé - 2 ks, Zásahové rukavice - 4 ks, Baterka nabíjecí - 4 ks, Nabíječka k baterce nabíjecí - 4 ks, Opasek polohovací - 4 ks | H181: Helma - 4 ks, Zásahové obleky jednovrstvé - 4 ks, Zásahové obleky třívrstvé - 2 ks, Zásahové rukavice - 4 ks, Baterka nabíjecí - 4 ks, Nabíječka k baterce nabíjecí - 4 ks, Opasek polohovací - 4 ks | I181: 161846 | J181: 97108 | K181: 60 | L181: 64738 | M181: 40 | N181: 161846 | O181: 97108 | P181: 60 | Q181: ANO | R181: 15 | S181: 4.5 | T181: 0 | U181: 0 | V181: 4.5 | W181: 15 | X181: 1.5 | Y181: 15 | Z181: 7.5 | AA181: 9 | AB181: 13.5 | AC181: OLP/02074/2025 | AE181: 32 | AF181: Tuhaň | AG181: 47201 | AH181: =_xlfn.XLOOKUP(C181,#REF!,#REF!,"Nenalezeno!") ->  | AI181: starostka | AJ181: 00831727 | AK181: CZ00831727 | AL181: 24228421/0100 | AM181: 161 846 Kč | AN181: 97 108,00 Kč | AO181: =Slovy(O181) -> devadesát sedmtisíc jednosto osm | AP181: 100% | AQ181: 60,00% | AR181: 40,00% | AV181: 196
A182: 71 | B182: Město | C182: Turnov | D182: U2 - Pořízení, doplnění, obnova osobních ochranných prostředků požární ochrany | E182: U2 - Pořízení, doplnění, obnova osobních ochranných prostředků požární ochrany | F182: 2 | G182: Třívrstvý zásahový oblek - 4 ks, zásahové rukavice - 4 páry, zásahová obuv - 3 páry, zásahová přilba - 3 ks | H182: Třívrstvý zásahový oblek - 4 ks, zásahové rukavice - 4 páry, zásahová obuv - 3 páry, zásahová přilba - 3 ks | I182: 172803 | J182: 99900 | K182: 57.81 | L182: 72903 | M182: 42.19 | N182: 172803 | O182: 99900 | P182: 57.81 | Q182: ANO | R182: 15 | S182: 4.5 | T182: 0 | U182: 0 | V182: 4.5 | W182: 15 | X182: 1.5 | Y182: 15 | Z182: 7.5 | AA182: 9 | AB182: 13.5 | AC182: OLP/01940/2025 | AE182: Antonína Dvořáka 335 | AF182: Turnov | AG182: 51101 | AH182: =_xlfn.XLOOKUP(C182,#REF!,#REF!,"Nenalezeno!") ->  | AI182: starosta | AJ182: 00276227 | AK182: CZ00276227 | AL182: 1263075359/0800 | AM182: 172 803 Kč | AN182: 99 900,00 Kč | AO182: =Slovy(O182) -> devadesát devěttisíc devětset | AP182: 100% | AQ182: 57,81% | AR182: 42,19% | AV182: 107
A183: 111 | B183: Město | C183: Velké Hamry | D183: Pořízení věcných prostředků v souvislosti se záplavami a povodněmi | E183: U4) Pořízení, obnova, doplnění a opravy věcných prostředků požární ochrany pro čerpání vody zejména v souvislosti se záplavami a povodněmi | F183: 4 | G183: Vysavač hasičský s příslušenstvím - 1 ks, Elektrocentrála 7 kW - 1 ks | H183: Vysavač hasičský s příslušenstvím - 1 ks, Elektrocentrála 7 kW - 1 ks | I183: 113000 | J183: 63000 | K183: 55.75 | L183: 50000 | M183: 44.25 | N183: 113000 | O183: 63000 | P183: 55.75 | Q183: ANO | R183: 15 | S183: 4.5 | T183: 0 | U183: 0 | V183: 4.5 | W183: 15 | X183: 1.5 | Y183: 15 | Z183: 7.5 | AA183: 9 | AB183: 13.5 | AC183: OLP/01974/2025 | AE183: 362 | AF183: Velké Hamry | AG183: 46845 | AH183: =_xlfn.XLOOKUP(C183,#REF!,#REF!,"Nenalezeno!") ->  | AI183: starosta | AJ183: 00262595 | AK183: CZ00262595 | AL183: 94-3218451/0710 | AM183: 113 000 Kč | AN183: 63 000,00 Kč | AO183: =Slovy(O183) -> šedesát třitisíce | AP183: 100% | AQ183: 55,75% | AR183: 44,25% | AV183: 69
A184: 127 | B184: Město | C184: Velké Hamry | D184: Doplnění věcných prostředků PO | E184: U6 c) c)pořízení, obnova, doplnění a opravy věcných prostředků požární ochrany | F184: 6c | G184: Motor lodní - 1 ks, Hadice C - 4 ks | H184: Motor lodní - 1 ks, Hadice C - 4 ks | I184: 55000 | J184: 32000 | K184: 58.18 | L184: 23000 | M184: 41.82 | N184: 55000 | O184: 32000 | P184: 58.18 | Q184: ANO | R184: 15 | S184: 4.5 | T184: 0 | U184: 0 | V184: 4.5 | W184: 15 | X184: 1.5 | Y184: 7 | Z184: 3.5 | AA184: 5 | AB184: 9.5 | AC184: OLP/01987/2025 | AE184: 362 | AF184: Velké Hamry | AG184: 46845 | AH184: =_xlfn.XLOOKUP(C184,#REF!,#REF!,"Nenalezeno!") ->  | AI184: starosta | AJ184: 00262595 | AK184: CZ00262595 | AL184: 94-3218451/0710 | AM184: 55 000 Kč | AN184: 32 000,00 Kč | AO184: =Slovy(O184) -> třicet dvatisíce | AP184: 100% | AQ184: 58,18% | AR184: 41,82% | AV184: 35
A185: 128 | B185: Město | C185: Velké Hamry | D185: Pořízení osobních ochranných prostředků | E185: U2) Pořízení, obnova, doplnění a opravy osobních ochranných prostředků požární ochrany (jednovrstvé a vícevrstvé zásahové obleky a osobní svítilny) | F185: 2 | G185: Třívrstvý zásahový oblek - 1 ks, Osobní svítilna - 1 ks | H185: Třívrstvý zásahový oblek - 1 ks, Osobní svítilna - 1 ks | I185: 25700 | J185: 15000 | K185: 58.37 | L185: 10700 | M185: 41.63 | N185: 25700 | O185: 15000 | P185: 58.37 | Q185: ANO | R185: 15 | S185: 4.5 | T185: 0 | U185: 0 | V185: 4.5 | W185: 15 | X185: 1.5 | Y185: 15 | Z185: 7.5 | AA185: 9 | AB185: 13.5 | AC185: OLP/01988/2025 | AE185: 362 | AF185: Velké Hamry | AG185: 46845 | AH185: =_xlfn.XLOOKUP(C185,#REF!,#REF!,"Nenalezeno!") ->  | AI185: starosta | AJ185: 00262595 | AK185: CZ00262595 | AL185: 94-3218451/0710 | AM185: 25 700 Kč | AN185: 15 000,00 Kč | AO185: =Slovy(O185) -> patnáct tisíc | AP185: 100% | AQ185: 58,37% | AR185: 41,63% | AV185: 55
A186: 129 | B186: Město | C186: Velké Hamry | D186: Pořízení věcných prostředků na likvidaci lesních požárů | E186: U5) Pořízení, obnova, doplnění a opravy věcných prostředků požární ochrany pro zásahy v souvislosti s likvidací lesních požárů | F186: 5 | G186: Batoh na D program vybavený - 1 ks, Přilba k použití při lesních požárech - 8 ks, Rukavice k použití při lesních požárech - 8 párů, Oblek určený pro likvidaci lesních požárů - 8 ks | H186: Batoh na D program vybavený - 1 ks, Přilba k použití při lesních požárech - 8 ks, Rukavice k použití při lesních požárech - 8 párů, Oblek určený pro likvidaci lesních požárů - 8 ks | I186: 170500 | J186: 100000 | K186: 58.65 | L186: 70500 | M186: 41.35 | N186: 170500 | O186: 100000 | P186: 58.65 | Q186: ANO | R186: 15 | S186: 4.5 | T186: 0 | U186: 0 | V186: 4.5 | W186: 15 | X186: 1.5 | Y186: 15 | Z186: 7.5 | AA186: 9 | AB186: 13.5 | AC186: OLP/01989/2025 | AE186: 362 | AF186: Velké Hamry | AG186: 46845 | AH186: =_xlfn.XLOOKUP(C186,#REF!,#REF!,"Nenalezeno!") ->  | AI186: starosta | AJ186: 00262595 | AK186: CZ00262595 | AL186: 94-3218451/0710 | AM186: 170 500 Kč | AN186: 100 000,00 Kč | AO186: =Slovy(O186) -> jednosto tisíc | AP186: 100% | AQ186: 58,65% | AR186: 41,35% | AV186: 180
A187: 146 | B187: Město | C187: Velké Hamry | D187: Výměna vstupních dveří u hasičárny | E187: Výměna vstupních dveří u hasičárny | F187: 6f | G187: Vstupní dveře - 1 ks | H187: Vstupní dveře - 1 ks | I187: 116000 | J187: 65000 | K187: 56.03 | L187: 51000 | M187: 43.97 | N187: 116000 | O187: 65000 | P187: 56.03 | Q187: ANO | R187: 15 | S187: 4.5 | T187: 0 | U187: 0 | V187: 4.5 | W187: 15 | X187: 1.5 | Y187: 0 | Z187: 0 | AA187: 1.5 | AB187: 6 | AC187: OLP/02001/2025 | AE187: 362 | AF187: Velké Hamry | AG187: 46845 | AH187: =_xlfn.XLOOKUP(C187,#REF!,#REF!,"Nenalezeno!") ->  | AI187: starosta | AJ187: 00262595 | AK187: CZ00262595 | AL187: 94-3218451/0710 | AM187: 116 000 Kč | AN187: 65 000,00 Kč | AO187: =Slovy(O187) -> šedesát pěttisíc | AP187: 100% | AQ187: 56,03% | AR187: 43,97% | AV187: 20
A188: 246 | B188: Obec | C188: Vítkovice | D188: Nákup ochranných prostředků / CHYBÍ PP | E188: Dovybavení a obnova ochranných prostředků pro JSDHO - JPO III. Účel podpory U2). | F188: 2 | G188: Zásahový kabát - 4 ks, Zásahové kalhoty - 4 ks, Zásahová obuv - 4 ks | H188: Zásahový kabát - 4 ks, Zásahové kalhoty - 4 ks, Zásahová obuv - 4 ks | I188: 99556 | J188: 59400 | K188: 59.66 | L188: 40156 | M188: 40.34 | N188: 99556 | O188: 59400 | P188: 59.66 | Q188: ANO | R188: 15 | S188: 4.5 | T188: 0 | U188: 0 | V188: 4.5 | W188: 15 | X188: 1.5 | Y188: 15 | Z188: 7.5 | AA188: 9 | AB188: 13.5 | AC188: OLP/02093/2025 | AE188: 243 | AF188: Vítkovice | AG188: 51238 | AH188: =_xlfn.XLOOKUP(C188,#REF!,#REF!,"Nenalezeno!") ->  | AI188: starosta | AJ188: 00276260 | AK188: CZ00276260 | AL188: 94-56512451/0710 | AM188: 99 556 Kč | AN188: 59 400,00 Kč | AO188: =Slovy(O188) -> padesát devěttisíc čtyřista | AP188: 100% | AQ188: 59,66% | AR188: 40,34% | AV188: 68
A189: 5 | B189: Obec | C189: Volfartice | D189: Pořízení věcných prostředků PO | E189: U6 c) Pořízení věcných prostředků PO | F189: 6c | G189: dýchací přístroj s maskou a lahví - 4 ks, vývod pro 2. plicní automatiky k vyváděcí masce - 4 ks, lahev tlaková - 4 ks, obal na tlakovou lahev - 8 ks, kukla - maska vyváděcí 4 ks | H189: dýchací přístroj s maskou a lahví - 4 ks, vývod pro 2. plicní automatiky k vyváděcí masce - 4 ks, lahev tlaková - 4 ks, obal na tlakovou lahev - 8 ks, kukla - maska vyváděcí 4 ks | I189: 325946 | J189: 97500 | K189: 29.91 | L189: 228446 | M189: 70.09 | N189: 325946 | O189: 97500 | P189: 29.91 | Q189: ANO | R189: 15 | S189: 4.5 | T189: 15 | U189: 1.5 | V189: 6 | W189: 15 | X189: 1.5 | Y189: 7 | Z189: 3.5 | AA189: 5 | AB189: 11 | AC189: OLP/01887/2025 | AE189: 59 | AF189: Volfartice | AG189: 47112 | AH189: =_xlfn.XLOOKUP(C189,#REF!,#REF!,"Nenalezeno!") ->  | AI189: starostka | AJ189: 00261076 | AL189: 94-5510421/0710 | AM189: 325 946 Kč | AN189: 97 500,00 Kč | AO189: =Slovy(O189) -> devadesát sedmtisíc pětset | AP189: 100% | AQ189: 29,91% | AR189: 70,09% | AV189: 178
A190: 225 | B190: Obec | C190: Všelibice | D190: Nákup ochranných prostředků požární ochrany | E190: U2 -pořízení osobních ochranných prostředků požární ochrany | F190: 2 | G190: zásahový oblek komplet - 4 ks, zásahová přilba - 4 ks, zásahové rukavice - 4 ks | H190: zásahový oblek komplet - 4 ks, zásahová přilba - 4 ks, zásahové rukavice - 4 ks | I190: 132800 | J190: 79680 | K190: 60 | L190: 53120 | M190: 40 | N190: 132800 | O190: 79680 | P190: 60 | Q190: ANO | R190: 15 | S190: 4.5 | T190: 0 | U190: 0 | V190: 4.5 | W190: 15 | X190: 1.5 | Y190: 15 | Z190: 7.5 | AA190: 9 | AB190: 13.5 | AC190: OLP/02075/2025 | AE190: 65 | AF190: Všelibice | AG190: 46348 | AH190: =_xlfn.XLOOKUP(C190,#REF!,#REF!,"Nenalezeno!") ->  | AI190: starostka | AJ190: 00263303 | AK190: CZ00263303 | AL190: 984933339/0800 | AM190: 132 800 Kč | AN190: 79 680,00 Kč | AO190: =Slovy(O190) -> sedmdesát devěttisíc šestset osmdesát | AP190: 100% | AQ190: 60,00% | AR190: 40,00% | AV190: 79
A191: 269 | B191: Obec | C191: Všelibice | D191: Úprava hasičské zbrojnice | E191: U6 f | F191: 6f | G191: úprava hasičské zbrojnice - 1 ks | H191: úprava hasičské zbrojnice - 1 ks | I191: 375000 | J191: 187000 | K191: 49.87 | L191: 188000 | M191: 50.13 | N191: 375000 | O191: 187000 | P191: 49.87 | Q191: ANO | R191: 15 | S191: 4.5 | T191: 7 | U191: 0.7 | V191: 5.2 | W191: 15 | X191: 1.5 | Y191: 0 | Z191: 0 | AA191: 1.5 | AB191: 6.7 | AC191: OLP/02105/2025 | AE191: 65 | AF191: Všelibice | AG191: 46348 | AH191: =_xlfn.XLOOKUP(C191,#REF!,#REF!,"Nenalezeno!") ->  | AI191: starostka | AJ191: 00263303 | AK191: CZ00263303 | AL191: 984933339/0800 | AM191: 375 000 Kč | AN191: 187 000,00 Kč | AO191: =Slovy(O191) -> jednosto osmdesát sedmtisíc | AP191: 100% | AQ191: 49,87% | AR191: 50,13% | AV191: 32
A192: 176 | B192: Město | C192: Vysoké nad Jizerou | D192: Nákup dýchací techniky Dräger PSS 4000 | E192: U6c) účelem je pořízení věcných prostředků požární ochrany pro JSDHO Vysoké nad Jizerou | F192: 6c | G192: Komplet dýchací techniky Dräger - 4 ks | H192: Komplet dýchací techniky Dräger - 4 ks | I192: 193572 | J192: 96786 | K192: 50 | L192: 96786 | M192: 50 | N192: 193572 | O192: 96786 | P192: 50 | Q192: ANO | R192: 15 | S192: 4.5 | T192: 7 | U192: 0.7 | V192: 5.2 | W192: 15 | X192: 1.5 | Y192: 7 | Z192: 3.5 | AA192: 5 | AB192: 10.2 | AC192: OLP/02036/2025 | AE192: Náměstí Dr. Karla Kramáře 227 | AF192: Vysoké nad Jizerou | AG192: 51211 | AH192: =_xlfn.XLOOKUP(C192,#REF!,#REF!,"Nenalezeno!") ->  | AI192: starostka | AJ192: 00276294 | AK192: CZ00276294 | AL192: 1263116309/0800 | AM192: 193 572 Kč | AN192: 96 786,00 Kč | AO192: =Slovy(O192) -> devadesát šesttisíc sedmset osmdesát šest | AP192: 100% | AQ192: 50,00% | AR192: 50,00% | AV192: 38
A193: 92 | B193: Město | C193: Zákupy | D193: Obnova osobních ochranných prostředků požární ochrany | E193: U2-pořízení osobních ochranných prostředků požární ochrany | F193: 2 | G193: Kukla Nomex Deva - 4 ks, Přilba DRÄEGER HPS 7000 - 4 ks, Rukavice zásahové Angel Flexi - 3 páry, Nápis - nášivka - 4 ks, Svítilna Adalit L-10 LED - 4 ks, Obuv HAIX Fire Eagle PRO - 4 pár, Komplet třívrstvý DEVA RED FOX FIT - 2 ks | H193: Kukla Nomex Deva - 4 ks, Přilba DRÄEGER HPS 7000 - 4 ks, Rukavice zásahové Angel Flexi - 3 páry, Nápis - nášivka - 4 ks, Svítilna Adalit L-10 LED - 4 ks, Obuv HAIX Fire Eagle PRO - 4 pár, Komplet třívrstvý DEVA RED FOX FIT - 2 ks | I193: 162036 | J193: 97222 | K193: 60 | L193: 64814 | M193: 40 | N193: 162036 | O193: 97222 | P193: 60 | Q193: ANO | R193: 15 | S193: 4.5 | T193: 0 | U193: 0 | V193: 4.5 | W193: 15 | X193: 1.5 | Y193: 15 | Z193: 7.5 | AA193: 9 | AB193: 13.5 | AC193: OLP/01958/2025 | AE193: Borská 5 | AF193: Zákupy | AG193: 47123 | AH193: =_xlfn.XLOOKUP(C193,#REF!,#REF!,"Nenalezeno!") ->  | AI193: starosta | AJ193: 00261114 | AK193: CZ00261114 | AL193: 19-5721421/0100 | AM193: 162 036 Kč | AN193: 97 222,00 Kč | AO193: =Slovy(O193) -> devadesát sedmtisíc dvěstě dvacet dva | AP193: 100% | AQ193: 60,00% | AR193: 40,00% | AV193: 229
A194: 93 | B194: Město | C194: Zákupy | D194: Pořízení obleků do vody | E194: U3 - pořízení věcných prostředků požární ochrany | F194: 6a | G194: Suchý oblek Agama Rescue kompletní Basic - 3 ks | H194: Suchý oblek Agama Rescue kompletní Basic - 3 ks | I194: 74967 | J194: 44980 | K194: 60 | L194: 29987 | M194: 40 | N194: 74967 | O194: 44980 | P194: 60 | Q194: ANO | R194: 15 | S194: 4.5 | T194: 0 | U194: 0 | V194: 4.5 | W194: 15 | X194: 1.5 | Y194: 15 | Z194: 7.5 | AA194: 9 | AB194: 13.5 | AC194: OLP/01960/2025 | AE194: Borská 5 | AF194: Zákupy | AG194: 47123 | AH194: =_xlfn.XLOOKUP(C194,#REF!,#REF!,"Nenalezeno!") ->  | AI194: starosta | AJ194: 00261114 | AK194: CZ00261114 | AL194: 19-5721421/0100 | AM194: 74 967 Kč | AN194: 44 980,00 Kč | AO194: =Slovy(O194) -> čtyřicet čtyřitisíce devětset osmdesát | AP194: 100% | AQ194: 60,00% | AR194: 40,00% | AV194: 47
A195: 94 | B195: Město | C195: Zákupy | D195: Pořízení hasičského vysavače | E195: U4 - pořízení věcných prostředků požární ochrany | F195: 4 | G195: Vysavač hasičský Rössle HYDRA - 1 ks, Centrála třífázová Heron 17HR/8,2kW - 1 ks | H195: Vysavač hasičský Rössle HYDRA - 1 ks, Centrála třífázová Heron 17HR/8,2kW - 1 ks | I195: 120448 | J195: 72269 | K195: 60 | L195: 48179 | M195: 40 | N195: 120448 | O195: 72269 | P195: 60 | Q195: ANO | R195: 15 | S195: 4.5 | T195: 0 | U195: 0 | V195: 4.5 | W195: 15 | X195: 1.5 | Y195: 15 | Z195: 7.5 | AA195: 9 | AB195: 13.5 | AC195: OLP/01961/2025 | AE195: Borská 5 | AF195: Zákupy | AG195: 47123 | AH195: =_xlfn.XLOOKUP(C195,#REF!,#REF!,"Nenalezeno!") ->  | AI195: starosta | AJ195: 00261114 | AK195: CZ00261114 | AL195: 19-5721421/0100 | AM195: 120 448 Kč | AN195: 72 269,00 Kč | AO195: =Slovy(O195) -> sedmdesát dvatisíce dvěstě šedesát devět | AP195: 100% | AQ195: 60,00% | AR195: 40,00% | AV195: 80
A196: 95 | B196: Město | C196: Zákupy | D196: Doplnění ochranných prostředků pro likvidaci lesních požárů | E196: U5 - doplnění věcných prostředků požární ochrany | F196: 5 | G196: Přilba DRÄEGER HPS 3500 - 4 ks, Rukavice Rescue FORESTA - 4 páry, Nápis - nášivka - 4 ks, Komplet zásahový ochranný jednovrstvý FR2 FireFalcon CLASSIC - 4 ks | H196: Přilba DRÄEGER HPS 3500 - 4 ks, Rukavice Rescue FORESTA - 4 páry, Nápis - nášivka - 4 ks, Komplet zásahový ochranný jednovrstvý FR2 FireFalcon CLASSIC - 4 ks | I196: 71100 | J196: 42660 | K196: 60 | L196: 28440 | M196: 40 | N196: 71100 | O196: 42660 | P196: 60 | Q196: ANO | R196: 15 | S196: 4.5 | T196: 0 | U196: 0 | V196: 4.5 | W196: 15 | X196: 1.5 | Y196: 15 | Z196: 7.5 | AA196: 9 | AB196: 13.5 | AC196: OLP/01963/2025 | AE196: Borská 5 | AF196: Zákupy | AG196: 47123 | AH196: =_xlfn.XLOOKUP(C196,#REF!,#REF!,"Nenalezeno!") ->  | AI196: starosta | AJ196: 00261114 | AK196: CZ00261114 | AL196: 19-5721421/0100 | AM196: 71 100 Kč | AN196: 42 660,00 Kč | AO196: =Slovy(O196) -> čtyřicet dvatisíce šestset šedesát | AP196: 100% | AQ196: 60,00% | AR196: 40,00% | AV196: 157
A197: 101 | B197: Městys | C197: Zdislava | D197: Vybavení JSDH Zdislava ochrannými prostředky | E197: Dovybavení JSDH Zdislava chybějícími ochrannými prostředky | F197: 2 | G197: Přilba MSA Gallet F2XR+ reflexní polep - 4 ks, Rukavice zásahové Angel Easy - 4 ks, Zásahový kompletní oblek BUSHFIRE 2023,s nápisem HASIČI - 4ks | H197: Přilba MSA Gallet F2XR+ reflexní polep - 4 ks, Rukavice zásahové Angel Easy - 4 ks, Zásahový kompletní oblek BUSHFIRE 2023,s nápisem HASIČI - 4ks | I197: 90511 | J197: 54306 | K197: 60 | L197: 36205 | M197: 40 | N197: 90511 | O197: 54306 | P197: 60 | Q197: ANO | R197: 7 | S197: 2.1 | T197: 0 | U197: 0 | V197: 2.1 | W197: 15 | X197: 1.5 | Y197: 15 | Z197: 7.5 | AA197: 9 | AB197: 11.1 | AC197: OLP/01966/2025 | AE197: 3 | AF197: Zdislava | AG197: 46353 | AH197: =_xlfn.XLOOKUP(C197,#REF!,#REF!,"Nenalezeno!") ->  | AI197: starosta | AJ197: 00481491 | AL197: 17529461/0100 | AM197: 90 511 Kč | AN197: 54 306,00 Kč | AO197: =Slovy(O197) -> padesát čtyřitisíce třista šest | AP197: 100% | AQ197: 60,00% | AR197: 40,00% | AV197: 145
A198: 40 | B198: Obec | C198: Zlatá Olešnice | D198: Pořízení ochranných prostředků pro JPOIII/1 Zlatá Olešnice | E198: U2) Pořízení, obnova, doplnění a opravy v závorce vyjmenovaných osobních ochranných prostředků požární ochrany | F198: 2 | G198: Zásahové rukavice pro technické zásahy - 4 ks, Zásahové rukavice pro hašení požárů - 4 ks, Světlo na přilbu na technické zásahy - 4 ks, Zásahová obuv s ochranou proti prořezu - 2 ks | H198: Zásahové rukavice pro technické zásahy - 4 ks, Zásahové rukavice pro hašení požárů - 4 ks, Světlo na přilbu na technické zásahy - 4 ks, Zásahová obuv s ochranou proti prořezu - 2 ks | I198: 37644 | J198: 22586 | K198: 60 | L198: 15058 | M198: 40 | N198: 37644 | O198: 22586 | P198: 60 | Q198: ANO | R198: 15 | S198: 4.5 | T198: 0 | U198: 0 | V198: 4.5 | W198: 15 | X198: 1.5 | Y198: 15 | Z198: 7.5 | AA198: 9 | AB198: 13.5 | AC198: OLP/01913/2025 | AE198: 172 | AF198: Zlatá Olešnice | AG198: 46847 | AH198: =_xlfn.XLOOKUP(C198,#REF!,#REF!,"Nenalezeno!") ->  | AI198: starosta | AJ198: 00262625 | AK198: CZ00262625 | AL198: 213838704/0300 | AM198: 37 644 Kč | AN198: 22 586,00 Kč | AO198: =Slovy(O198) -> dvacet dvatisíce pětset osmdesát šest | AP198: 100% | AQ198: 60,00% | AR198: 40,00% | AV198: 181
A199: 97 | B199: Obec | C199: Zlatá Olešnice | D199: Pořízení věcných prostředků pro JPOIII/1 Zlatá Olešnice | E199: U6c) Pořízení věcných prostředků požární ochrany mimo prostředků uvedených v U5) a U6). | F199: 6c | G199: Odolný tablet 128 GB pro GINA software - 1 kus, Napájecí adaptér s rychlonabíjením - 1 kus, Software GINA Tablet - 1 kus | H199: Odolný tablet 128 GB pro GINA software - 1 kus, Napájecí adaptér s rychlonabíjením - 1 kus, Software GINA Tablet - 1 kus | I199: 41715 | J199: 25029 | K199: 60 | L199: 16686 | M199: 40 | N199: 41715 | O199: 25029 | P199: 60 | Q199: ANO | R199: 15 | S199: 4.5 | T199: 0 | U199: 0 | V199: 4.5 | W199: 15 | X199: 1.5 | Y199: 7 | Z199: 3.5 | AA199: 5 | AB199: 9.5 | AC199: OLP/01964/2025 | AE199: 172 | AF199: Zlatá Olešnice | AG199: 46847 | AH199: =_xlfn.XLOOKUP(C199,#REF!,#REF!,"Nenalezeno!") ->  | AI199: starosta | AJ199: 00262625 | AK199: CZ00262625 | AL199: 213838704/0300 | AM199: 41 715 Kč | AN199: 25 029,00 Kč | AO199: =Slovy(O199) -> dvacet pěttisíc dvacet devět | AP199: 100% | AQ199: 60,00% | AR199: 40,00% | AV199: 120
A200: 99 | B200: Obec | C200: Zlatá Olešnice | D200: Nákup motorového kalového čerpadla | E200: Pořízení věcných prostředků PO pro čerpání vody zejména v souvislosti se záplavami a povodněmi | F200: 4 | G200: motorové kalové čerpadlo s příslušenstvím - 1 sada, savice B75 s koncovkami 2,5m - 1 ks, zátka k čerpadlu - 1 kus | H200: motorové kalové čerpadlo s příslušenstvím - 1 sada, savice B75 s koncovkami 2,5m - 1 ks, zátka k čerpadlu - 1 kus | I200: 26701 | J200: 18691 | K200: =ROUND(J200/I200*100,2) -> 70 | L200: 8010 | M200: =ROUND(L200/I200*100,2) -> 30 | N200: 26701 | O200: 18691 | P200: =ROUND(O200/N200*100,2) -> 70 | Q200: ANO | R200: 15 | S200: =R200*0.3 -> 4.5 | T200: 0 | U200: =T200*0.1 -> 0 | V200: =S200+U200 -> 4.5 | W200: 15 | X200: =W200*0.1 -> 1.5 | Y200: 15 | Z200: =Y200*0.5 -> 7.5 | AA200: =X200+Z200 -> 9 | AB200: =V200+AA200 -> 13.5 | AC200: OLP/01965/2025 | AE200: 172 | AF200: Zlatá Olešnice | AG200: 46847 | AH200: =_xlfn.XLOOKUP(C200,#REF!,#REF!,"Nenalezeno!") ->  | AI200: starosta | AJ200: 00262625 | AK200: CZ00262625 | AL200: 213838704/0300 | AM200: 26 701 Kč | AN200: 18 691,00 Kč | AO200: =Slovy(O200) -> osmnáct tisíc šestset devadesát jedna | AP200: 100% | AQ200: 70,00% | AR200: 30,00% | AV200: 113
A201: 202 | B201: Město | C201: ŽANDOV | D201: U2 - Nákup ochranných prostředků požární ochrany | E201: Z největší části se jedná o pořízení (doplnění) poškozených ochranných prostředků PO A vybavení pro nové členy naší jednotky | F201: 2 | G201: přilba DRAEGER HPS 7000 luminiscenční, zlatý štít, vč. zátylníku NOMEX, bez polepu -1 ks , přilba DRAEGER HPS 7000 H2 signální žlutá, zlatý štít, vč. zátylníku NOMEX 1 ks, kabát zásahový ochranný jednovrstvý FIRESNAKE FR2 - 1 ks, komplet zásahový FIREREX Plus FR3 2 ks, chránič kolen vyjímatelný -pár 130×200 1 ks, nášivka s vlastním motivem na zásahové kabáty GoodPRO - 2 ks, samolepky reflexní na přilbu DRAEGER HPS 7000 s potiskem 2 ks, držák svítilny PELI™ XP a ADALIT L-5 pro přilbu DRAEGER HPS 7000 - 2 ks | H201: přilba DRAEGER HPS 7000 luminiscenční, zlatý štít, vč. zátylníku NOMEX, bez polepu -1 ks , přilba DRAEGER HPS 7000 H2 signální žlutá, zlatý štít, vč. zátylníku NOMEX 1 ks, kabát zásahový ochranný jednovrstvý FIRESNAKE FR2 - 1 ks, komplet zásahový FIREREX Plus FR3 2 ks, chránič kolen vyjímatelný -pár 130×200 1 ks, nášivka s vlastním motivem na zásahové kabáty GoodPRO - 2 ks, samolepky reflexní na přilbu DRAEGER HPS 7000 s potiskem 2 ks, držák svítilny PELI™ XP a ADALIT L-5 pro přilbu DRAEGER HPS 7000 - 2 ks | I201: 78984 | J201: 47390 | K201: 60 | L201: 31594 | M201: 40 | N201: 78984 | O201: 47390 | P201: 60 | Q201: ANO | R201: 15 | S201: 4.5 | T201: 0 | U201: 0 | V201: 4.5 | W201: 15 | X201: 1.5 | Y201: 15 | Z201: 7.5 | AA201: 9 | AB201: 13.5 | AC201: OLP/02054/2025 | AE201: Náměstí 82 | AF201: Žandov | AG201: 47107 | AH201: =_xlfn.XLOOKUP(C201,#REF!,#REF!,"Nenalezeno!") ->  | AI201: starosta | AJ201: 00261131 | AK201: CZ00261131 | AL201: 94-6011421/0710 | AM201: 78 984 Kč | AN201: 47 390,00 Kč | AO201: =Slovy(O201) -> čtyřicet sedmtisíc třista devadesát | AP201: 100% | AQ201: 60,00% | AR201: 40,00% | AV201: 513
... 4 more rows

Sheet nepodpořené
A1: Projekty navržené k vyřazení z důvodu nesplnění podmínek programu
A2: P. č. | B2: Obec/město | C2: Žadatel | D2: Název projektu | E2: Popis projektu (účel projektu) | F2: č. účelu | G2: Výstupy projektu | H2: Admin. soulad (projekt je v souladu s účelem a podmínkami programu, je způsobilý pro další hodnocení) ANO/NE | I2: Celk. výdaje projektu Kč | J2: Požadovaná výše dotace | L2: Vlastní zdroje příjemce | N2: IČ | O2: DIČ | P2: Ulice | Q2: Město | R2: PSČ | S2: HK_Celkové_výdaje_projektu_LK_text | T2: HK_LK_Dotace_ slovy | U2: HK_Procento LK dotace | V2: IČ | W2: Kontrola délky textu | X2: Kontrola délky parametrů
J3: Kč | K3: % | L3: Kč | M3: %
A4: 257 | B4: Město | C4: Cvikov | D4: Město Cvikov pro JSDH Cvikov 2 ks nových norných stěn ptro zachycení nebezpečných látek na vodní hladině a tekoucí vodě. | E4: U3) Město Cvikov pro JSDH Cvikov 2 ks nových norných stěn RV 5m pro zachycení nebezpečných látek na vodní hladině a tekoucí vodě. Jedná se o výměnu zařízení, které již dosloužilo. | F4: 3 | G4: norná stěna RV 5m - 2 KS | H4: NE bez časového razítka, chybí povinná příloha (podrobný popis projektu) | I4: 33568 | J4: 23496 | K4: =ROUND(J4/I4*100,2) -> 70 | L4: =I4-J4 -> 10072 | M4: =ROUND(L4/I4*100,2) -> 30 | N4: 00260410 | O4: CZ00260410 | P4: Náměstí Osvobození 63 | Q4: Cvikov | R4: 47154 | S4: =TEXT(I4,"# ##0,00 Kč") -> 33 568,00 Kč | T4: =TEXT(J4,"# ##0 Kč") -> 23 496 Kč | U4: =TEXT(M4,"0,00")& "%" -> 30,00% | V4: 00260410 | W4: =LEN(E4) -> 179 | X4: =LEN(G4) -> 24
A5: 255 | B5: Město | C5: Cvikov | D5: Město Cvikov pořizuje pro JSDH Cvikov řetězovou pilu Husqvarna 372XP. | E5: Město Cvikov pořižuje pro JSDH Cvikov řetězovou pilu Husqvarna 372XP | F5: 6c | G5: Řetězová pila Husqvarna 372XP - 1 ks | H5: NE bez časového razítka, chybí povinná příloha (podrobný popis projektu) | I5: 27499 | J5: 16499 | K5: 60 | L5: 11000 | M5: 40 | N5: 00260410 | O5: CZ00260410 | P5: Náměstí Osvobození 63 | Q5: Cvikov | R5: 47154 | S5: 27 499,00 Kč | T5: 16 499 Kč | U5: 40,00% | V5: 00260410 | W5: =LEN(E5) -> 68 | X5: =LEN(G5) -> 36
A6: 256 | B6: Město | C6: Cvikov | D6: Nákup 8ks zásahových ochranných jednovrstvých kompletů FR2 FireSnake-classic a 8 ks nášivek s vlastním motivem na zásahové kabáty GoodPRO | E6: U2) Město Cvikov požizuje pro členy JSDH Cvikov zásahové komplety s nášivkami v rámci obměny vybavení jednotky. NENÍ ČASOVÉ RAZÍTKO A PODROBNÝ POSIS | F6: 2 | G6: zásahový ochranný jednovrstvý komplet FR2 FireSnake-classic - 8 KS, reflexní nášivka s vlastním motivem na zásahové kabáty GoodPRO - 8 KS | H6: NE bez časového razítka, chybí povinná příloha (podrobný popis projektu) | I6: 79280 | J6: 47568 | K6: 60 | L6: 31712 | M6: 40 | N6: 00260410 | O6: CZ00260410 | P6: Náměstí Osvobození 63 | Q6: Cvikov | R6: 47154 | S6: 79 280,00 Kč | T6: 47 568 Kč | U6: 40,00% | V6: 00260410 | W6: 148 | X6: 137
A7: 258 | B7: Město | C7: Cvikov | D7: Město Cvikov v rámci vybavení JSDH Cvikov pořizuje 4 ks přenosných digitálních radiostanic Motorola DP2400E VHF s externím mikrofonem/reproduktorem pro RDST | E7: U6c) Město Cvikov v rámci vybavení JSDH Cvikov pořizuje 4 ks přenosných digitálních radiostanic Motorola DP2400E VHF s externím mikrofonem/reproduktorem pro RDST | F7: 6c | G7: přenosná dig. radiostanice Motorola DP2400E VHF - 4 ks, mikrofon/reproduktor pro radiostanice DP2400E - 4 ks | H7: NE bez časového razítka, chybí povinná příloha (podrobný popis projektu) | I7: 69504 | J7: 41702 | K7: 60 | L7: 27802 | M7: 40 | N7: 00260410 | O7: CZ00260410 | P7: Náměstí Osvobození 63 | Q7: Cvikov | R7: 47154 | S7: 69 504,00 Kč | T7: 41 702 Kč | U7: 40,00% | V7: 00260410 | W7: 161 | X7: 108
A8: 88 | B8: Město | C8: Česká Lípa | D8: "Nákup věcných prostředků PO - JSDHO Stará Lípa" | E8: Projekt bude využit na nákup a doplnění ochranných prostředků požární ochrany, který je nezbytně nutný pořídit z důvodu předurčenosti jednotky v zařazení JPO II/I, dle poplachových plánů LK | F8: 6c | G8: Rescue hood PSS - záchranná vyváděcí kukla - 2 ks, Maska FPS 7730 M2-P-PC-EPDM, kandahár S-fix uni - 4 ks, Láhev kompozit 6,8/300bar, ventil Dräger EFV+potah na láhev L65B - 2 ks, Plicní automatika PSS-P (přetlak, krátká hadice) - 1 ks, Držák plicní automatiky pro AirBoss s fix upínáním - 1 ks | H8: NE Vyřazeno na žádost žadatele (více žádostí v účelu U6 (max 2 žádosti) | I8: 102676 | J8: 51000 | K8: 49.67 | L8: 51676 | M8: 50.33 | N8: 00260428 | O8: CZ00260428 | P8: náměstí T. G. Masaryka 1/1 | Q8: Česká Lípa | R8: 47001 | S8: 102 676,00 Kč | T8: 51 000 Kč | U8: 50,33% | V8: 260428 | W8: 189 | X8: 294
A9: 91 | B9: Město | C9: Česká Lípa | D9: "Pořízení, obnova věcných prostředků PO pro JSDHO Stará Lípa" | E9: Projekt bude využit na doplnění věcných prostředků požární ochrany, ochranných prostředků z důvodu předurčenosti jednotky v zařazení JPO II/I, dle poplachových plánů LK. | F9: 6c | G9: SUNIT IV FK - lehký protichemický oblek - 2 ks, Hlásič - detektor plynů GasAlert MicroClip X3 - 4 plyny - 1 ks, Ruční radiostanice MOTOROLA DP 2600e s externím mikrofonem a vozidlovou nabíječkou MOTOROLA pro DP 2000e (12-24V) - 4 ks | H9: NE Vyřazeno na žádost žadatele (více žádostí v účelu U6 (max 2 žádosti) | I9: 141290 | J9: 70000 | K9: 49.54 | L9: 71290 | M9: 50.46 | N9: 00260428 | O9: CZ00260428 | P9: náměstí T. G. Masaryka 1/1 | Q9: Česká Lípa | R9: 47001 | S9: 141 290,00 Kč | T9: 70 000 Kč | U9: 50,46% | V9: 260428 | W9: 169 | X9: 232
A10: 173 | B10: Obec | C10: Dalešice | D10: Obnova osobních ochranných prostředků | E10: U2) Pořízení, obnova, doplnění a opravy v závorce vyjmenovaných osobních ochranných prostředků požární ochrany (jednovrstvé a vícevrstvé zásahové obleky, zásahové boty, zásahové rukavice, zásahové přilby, polohovací opasky pro hasiče ......) | F10: 2 | G10: jednovrstvé zásahové obleky - 4 ks, zásahové boty - 4 ks, zásahové přilby - 4 ks | H10: NE Neplatný podpis | I10: 98400 | J10: 49100 | K10: 49.9 | L10: 49300 | M10: 50.1 | N10: 43256201 | P10: 67 | Q10: Dalešice | R10: 46802 | S10: 98 400,00 Kč | T10: 49 100 Kč | U10: 50,10% | V10: 43256201 | W10: 241 | X10: 80
A11: 228 | B11: Město | C11: Doksy | D11: 1.1 Podpora jednotek požární ochrany obcí Libereckého kraje | E11: U5 Pořízení, obnova, doplnění a opravy věcných prostředků požární ochrany pro zásahy v souvislosti s likvidací lesních požárů | F11: 5 | G11: přilba pro hasiče F2XR pro lesní požáry - 8 ks | H11: NE na 1 organizovaný výjezd lze pořídit pouze 4 ks příleb; po úpravě výše dotace není minimálně 15000 Kč | I11: 46848 | J11: 23450 | K11: 50.06 | L11: 23398 | M11: 49.94 | N11: 00260444 | O11: CZ00260444 | P11: náměstí Republiky 193 | Q11: Doksy | R11: 47201 | S11: 46 848,00 Kč | T11: 23 450 Kč | U11: 49,94% | V11: 00260444 | W11: 125 | X11: 46
A12: 254 | B12: Město | C12: Hejnice | D12: Oprava povrchu podlah garážových stání hasičské zbrojnice Hejnice | E12: Účelem projektu je rekonstrukce povrchu podlah garážových stání pro výjezdovou techniku JSDH Hejnice v objektu čp. 593, jenž bude realizována jako Protiskluzová epoxid-křemičitá podlahová konstrukce (třívrstvá), vč. obvodového soklu | F12: 6f | G12: rekonstruovaná podlaha hasičárny - 153 m2 | H12: NE max výše dotace 60% | I12: 160000 | J12: 112000 | K12: 70 | L12: 48000 | M12: 30 | N12: 00262803 | O12: CZ00262803 | P12: Nádražní 521 | Q12: Hejnice | R12: 46362 | S12: 160 000,00 Kč | T12: 112 000 Kč | U12: 30,00% | V12: 00262803 | W12: 232 | X12: 43
A13: 181 | B13: Město | C13: Hodkovice nad Mohelkou | D13: Věcné prostředky požární ochrany | E13: Zvýšení akceschopnosti jednotky sboru dobrovolných hasičů | F13: 6c | G13: detektor pohybu hasiče - 2 ks, vysavač na vodu Rosle - 1 ks, Led modul X - Flare - 1 ks | H13: NE vysavač nesplňuje minimálníprůtok 22000 lúhod pro účel U5), pro účel U6c) nelze použít výši dotace 70 % | I13: 48668 | J13: 34067 | K13: 70 | L13: 14601 | M13: 30 | N13: 00262820 | O13: CZ00262820 | P13: nám. T. G. Masaryka 1 | Q13: Hodkovice nad Mohelkou | R13: 46342 | S13: 48 668,00 Kč | T13: 34 067 Kč | U13: 30,00% | V13: 00262820 | W13: 58 | X13: 87
A14: 264 | B14: Město | C14: Jilemnice | D14: Doplnění věcných prostředků - lahve | E14: U3 - Doplnění věcných prostředků - lahve | F14: 3 | G14: láhev tlaková kompozitní carbon 6,8 l/30 Mpa DRAEGER - 4 ks | H14: NE bez časového razítka, chybí povinná příloha (podrobný popis projektu) | I14: 72504 | J14: 43000 | K14: 59.31 | L14: 29504 | M14: 40.69 | N14: 00275808 | O14: CZ00275808 | P14: Masarykovo náměstí 82 | Q14: Jilemnice | R14: 51401 | S14: 72 504,00 Kč | T14: 43 000 Kč | U14: 40,69% | V14: 00275808 | W14: 41 | X14: 59
A15: 265 | B15: Město | C15: Jilemnice | D15: Doplnění a obnova věcných prostředků - lesní požáry | E15: U5-Doplnění a obnova věcných prostředků - lesní požáry | F15: 5 | G15: Program D25 PROLINE a sbatohem BAG 4H - 1 ks, Vazák hadice 1,6 m - 6 ks, Obuv HAIX Fire flash 2,0 - 4 ks | H15: NE bez časového razítka, chybí povinná příloha (podrobný popis projektu) | I15: 67526 | J15: 40000 | K15: 59.24 | L15: 27526 | M15: 40.76 | N15: 00275808 | O15: CZ00275808 | P15: Masarykovo náměstí 82 | Q15: Jilemnice | R15: 51401 | S15: 67 526,00 Kč | T15: 40 000 Kč | U15: 40,76% | V15: 00275808 | W15: 54 | X15: 104
A16: 266 | B16: Město | C16: Jilemnice | D16: Obnova ochranných prostředků | E16: U2 - Obnova ochranných prostředků | F16: 2 | G16: Zásahový oblek - 4 ks, Zásahová přilba - 4 ks, Svítilna integrovaná - 4 ks | H16: NE bez časového razítka, chybí povinná příloha (podrobný popis projektu) | I16: 189736 | J16: 94860 | K16: 50 | L16: 94876 | M16: 50 | N16: 00275808 | O16: CZ00275808 | P16: Masarykovo náměstí 82 | Q16: Jilemnice | R16: 51401 | S16: 189 736,00 Kč | T16: 94 860 Kč | U16: 50,00% | V16: 00275808 | W16: 34 | X16: 74
A17: 267 | B17: Město | C17: Jilemnice | D17: Pořízení cisternové automobilové stříkačky | E17: U6 - Pořízení cisternové automobilové stříkačky | F17: 6d | G17: Pořízení cisternové automobilové stříkačky - 1 ks | H17: NE bez časového razítka, chybí povinná příloha (podrobný popis projektu) | I17: 12402500 | J17: 500000 | K17: 4.03 | L17: 11902500 | M17: 95.97 | N17: 00275808 | O17: CZ00275808 | P17: Masarykovo náměstí 82 | Q17: Jilemnice | R17: 51401 | S17: 12 402 500,00 Kč | T17: 500 000 Kč | U17: 95,97% | V17: 00275808 | W17: 47 | X17: 49
A18: 110 | B18: Obec | C18: Koberovy | D18: U6c) Doplnění a obnova věcných prostředků PO | E18: Nové požární hadice poslouží k výměně a nahrazení hadic, které vykazují opotřebení a hrozí jejich destrukce při zásahu. Nová pěnotvorná proudnice nahradí poškozenou proudnici. Kombinovaná proudnice nahradí poškozenou proudnici při zásahu. | F18: 6c | G18: Zásahová hadice B - 7 ks, Zásahová hadice C - 4 ks, Proudnice pěnotvorná M4 TKW bez uzávěru - 1 ks, Proudnice kombinovaná Select Flow RB 101 EN - 1 ks | H18: NE Neplatný podpis | I18: 59125 | J18: 35425 | K18: 59.92 | L18: 23700 | M18: 40.08 | N18: 00262404 | P18: 102 | Q18: Koberovy | R18: 46822 | S18: 59 125,00 Kč | T18: 35 425 Kč | U18: 40,08% | V18: 00262404 | W18: 238 | X18: 150
A19: 117 | B19: Obec | C19: Koberovy | D19: U2) pořízení, obnova a doplnění ochranných prostředků PO | E19: Nová zásahová obuv nahradí poškozené. Zásahové přilby včetně osvětlení nahradí přilby, kterým končí doba použitelnosti. Záchranářské přilby doplní výstroj jednotky při technických zásazích | F19: 2 | G19: Zásahová obuv FIRE HERO 3 - 1 ks, Přilba MSA Gallet F1XF Gold+ - 3 ks, Svítilna XP LED k přilbě Gallet - 3 ks, Přilba MSA Gallet F2XR pro technické zásahy - 2 ks | H19: NE Neplatný podpis | I19: 64498 | J19: 38569 | K19: 59.8 | L19: 25929 | M19: 40.2 | N19: 00262404 | P19: 102 | Q19: Koberovy | R19: 46822 | S19: 64 498,00 Kč | T19: 38 569 Kč | U19: 40,20% | V19: 00262404 | W19: 188 | X19: 161
A20: 35 | B20: Obec | C20: Kravaře | D20: U3 - Doplnění vybavení s ohledem na předurčenost | E20: Účelem projektu je pořízení minimálního vybavení pro detekci a zahrazení nebezpečných látek v souvislosti se zásahy u dopravních nehod. | F20: 6c | G20: Multidetektor - explozimetr - 1 ks, Kanálová rychloucpávka - 1 ks, Průtokový kartáč - 1 ks | H20: NE více žádostí v účelu U6 (max 2 žádosti) vyřazeno na žádost žadatele | I20: 41600 | J20: 24960 | K20: 60 | L20: 16640 | M20: 40 | N20: 260657 | P20: náměstí 166 | Q20: Kravaře | S20: 41 600,00 Kč | T20: 24 960 Kč | U20: 40,00% | V20: 00260657 | W20: 135 | X20: 90
A21: 185 | B21: Obec | C21: Líšný | D21: Dopravní automobil pro JSDHO Líšný | E21: Obec je úspěšným žadatelem v integrovaném regionálním operačním programu na pořízení dopravního automobilu pro JSDHO Líšný. Účelem je posílení odolnosti, vybavenosti a připravenosti JSDHO Líšný pro výkon služby | F21: 6d | G21: Dopravní automobil - 1 ks | H21: NE neplatný podpis | I21: 181258 | J21: 90629 | K21: 50 | L21: 90629 | M21: 50 | N21: 00673226 | P21: 60 | Q21: Líšný | R21: 46822 | S21: 181 258,00 Kč | T21: 90 629 Kč | U21: 50,00% | V21: 00673226 | W21: 210 | X21: 25
A22: 161 | B22: Obec | C22: Maršovice | D22: U 2) - Nákup OOP pro JSDHo Maršovice | E22: Nákup přispěje k větší bezpečnosti a ochraně zasahujících členů JPO. Jedná se o základní ochranné prostředky s výraznou potřebou časté obnovy z důvodů poměrně krátké doby životnosti | F22: 2 | G22: vícevrstvý zásahový oblek GoodPro - 1 ks, ochraná kukla dvouvrstvá -- 4 ks | H22: NE Neplatný podpis | I22: 35154 | J22: 17577 | K22: 50 | L22: 17577 | M22: 50 | N22: 00262471 | P22: 52 | Q22: Maršovice | R22: 46801 | S22: 35 154,00 Kč | T22: 17 577 Kč | U22: 50,00% | V22: 00262471 | W22: 181 | X22: 75
A23: 190 | B23: Obec | C23: Maršovice | D23: U 6f) Úprava interiéru a oprava elektroinstalace pro JSDHo Maršovice | E23: Rekonstrukci interiéru hasičské zbrojnice, především pak elektrických rozvodů pro zlepšení zázemí a práce členů jednotky sboru dobrovolných hasičů obce Maršovice. | F23: 6e | G23: Rekonstrukce elektrorozvodů v hasičské zbrojnici - 1 ks, Staveb materiál - sádrokarton - 1 ks | H23: NE neplatný podpis | I23: 178700 | J23: 89350 | K23: 50 | L23: 89350 | M23: 50 | N23: 00262471 | P23: 52 | Q23: Maršovice | R23: 46801 | S23: 178 700,00 Kč | T23: 89 350 Kč | U23: 50,00% | V23: 00262471 | W23: 162 | X23: 93
A24: 193 | B24: Město | C24: Mimoň | D24: Podpora JSDH Mimoň | E24: Zvýšení akceschopnosti a bezpečnosti jednotky, pořízení, obnova, doplnění a opravy věcných prostředků požární ochrany U6c | F24: 6c | G24: dýchací přístroj DRAEGER PSS 4000 - 2 ks, obal na láhev - 4 ks, brašna na masku - 2 ks,tlaková láhev kompozitní carbon 6,8L/300 Mpa - 2 ks | H24: NE Bez časového razítka | I24: 146644 | J24: 73322 | K24: 50 | L24: 73322 | M24: 50 | N24: 00260746 | O24: CZ00260746 | P24: Mírová 120 | Q24: Mimoň | R24: 47124 | S24: 146 644,00 Kč | T24: 73 322 Kč | U24: 50,00% | V24: 00260746 | W24: 121 | X24: 140
A25: 9 | B25: Obec | C25: Mníšek | D25: U5 - hasiči Mníšek - přilby | E25: Velkou část katastru obce Mníšek tvoří lesy,často v nepřístup. a skalnatém terénu. Lehká zásahová přilba při událostech v lesním prostředí je výhodou. Přilby budou využity i při technických zásazích, které tvoří většinu výjezdů jednotky SDH Mníšek | F25: 5 | G25: přilba - 5 ks | H25: NE pořídit lze pouze 4 ks příleb; po úpravě výše dotace není minimálně 15000 Kč | I25: 25404 | J25: 15000 | K25: 59.05 | L25: 10404 | M25: 40.95 | N25: 00263001 | O25: CZ00263001 | P25: Oldřichovská 185 | Q25: Mníšek | R25: 46331 | S25: 25 404,00 Kč | T25: 15 000 Kč | U25: 40,95% | V25: 00263001 | W25: 247 | X25: 13
A26: 221 | B26: Obec | C26: Olešnice | D26: W6a | E26: Vybavení jednotky PO technickými prostředky | F26: 6a | G26: TP-Výstrojní a ochranné pomůcky - 15 ks, TP - pro ohřev a výdej stravy - 1 ks, TP - ženijní - 14 ks, TP - elektro - 6ks, TP - pro stavbu a provoz naf. Stanu - 14 ks | H26: NE žádost nebyla odeslána "DS" | I26: 82270 | J26: 57589 | K26: 70 | L26: 24681 | M26: 30 | N26: 00275964 | P26: 63 | Q26: Olešnice | R26: 51101 | S26: 82 270,00 Kč | T26: 57 589 Kč | U26: 30,00% | V26: 00275964 | W26: 43 | X26: 165
A27: 223 | B27: Obec | C27: Olešnice | D27: W6f | E27: Dovybavení prostor objektu hasičské zbrojnice | F27: 6f | G27: vybavení kanceláře velitele - 1 soubor, vybavení šatny - 1 soubor, vysoušecí skříň - 1 ks, pračka 1 ks. | H27: NE žádost nebyla odeslána "DS" | I27: 453629 | J27: 272177 | K27: 60 | L27: 181452 | M27: 40 | N27: 00275964 | P27: 63 | Q27: Olešnice | R27: 51101 | S27: 453 629,00 Kč | T27: 272 177 Kč | U27: 40,00% | V27: 00275964 | W27: 45 | X27: 103
A28: 1 | B28: Obec | C28: Paseky nad Jizerou | D28: Pořízení věcných prostředků požární ochrany | E28: Účelem projektu je pořízení nových věcných prostředků požární ochrany pro výjezdní jednotku obce Paseky nad Jizerou, která působí především v místních horských terénech. Pořízením prostředků dojde ke zvýšení akceschopnosti jednotky | F28: 6c | G28: Hliníkový žebřík 3x14 - 1 ks, košová nosítka - 1 ks, kapesní nože - 5 ks | H28: NE hliníkový žebřík 3x14 není certifikovaný VPPO; po úpravě výše dotace není minimálně 15000 Kč | I28: 43600 | J28: 21800 | K28: 50 | L28: 21800 | M28: 50 | N28: 00580791 | O28: CZ00580791 | P28: 242 | Q28: Paseky nad Jizerou | R28: 51247 | S28: 43 600,00 Kč | T28: 21 800 Kč | U28: 50,00% | V28: 00580791 | W28: 231 | X28: 72
A29: 268 | B29: Obec | C29: Příkrý | D29: Oprava hasičské zbrojnice v Příkrém | E29: V rámci projektu bude kompletně opravena hasičská zbrojnice v Příkrém. Provedena bude výměna oken, dveří, elektroinstalace, střešní krytina, okapy, podlahy | F29: 6f | G29: hasičská zbrojnice -- 1 ks | H29: NE bez časového razítka, chybí povinná příloha (podrobný popis projektu) | I29: 1000000 | J29: 500000 | K29: 50 | L29: 500000 | M29: 50 | N29: 00276022 | P29: 70 | Q29: Příkrý | R29: 51301 | S29: 1 000 000,00 Kč | T29: 500 000 Kč | U29: 50,00% | V29: 00276022 | W29: 155 | X29: 26
A30: 242 | B30: Obec | C30: Sloup v Čechách | D30: Digitální radiostanice | E30: Digitální radiostanice | F30: 6a | G30: Digitální radiostanice - 1 ks | H30: NE chybí povinná příloha (podrobný popis projektu) | I30: 45217 | J30: 31653 | K30: 70 | L30: 13564 | M30: 30 | N30: 00525677 | O30: CZ00525677 | P30: Benešova 280 | Q30: Sloup v Čechách | R30: 47152 | S30: 45 217,00 Kč | T30: 31 653 Kč | U30: 30,00% | V30: 00525677 | W30: 23 | X30: 29
A31: 203 | B31: Obec | C31: Tatobity | D31: Pořízení dýchací techniky | E31: U6a - pořízení dýchací techniky pro jednotku JPO V Tatobity, pro čtyři členy jednotky, kteří mají již lékařskou prohlídku. Jednotka je předurčena pro práci CO. | F31: 6a | G31: Nosič PP 4000 - 4 ks, Držák plicní automatiky - 4 ks, Plicní automatika PSS-P(přetlak,krátká hadice) - 4 ks, Lahev ocel 6L/300Extra 5/Drager EFV M18x1,5 - 6 ks, Maska FPS 7730 M2-P-PC-WPDM, kandahar S-fix, uni - 4 ks | H31: NE neplatný podpis | I31: 184590 | J31: 129213 | K31: 70 | L31: 55377 | M31: 30 | N31: 00276197 | O31: CZ00276197 | P31: 85 | Q31: Tatobity | R31: 51253 | S31: 184 590,00 Kč | T31: 129 213 Kč | U31: 30,00% | V31: 00276197 | W31: 159 | X31: 216
A32: 208 | B32: Obec | C32: Tatobity | D32: Obnova ochranných prostředků | E32: U2 - jednotka potřebuje obnovu a dovybavení osobních ochranných prostředků | F32: 2 | G32: Přilba HPS 3500 sign. žlutá + brýle - 4 ks, Přilba MSA Gallet F 1 XF Basic + fluor. - 2 ks, Brýle ochranné k přilbě - 2 ks, Svítilna k přilbě - 2 ks, Deska páteřní s popruhem - 1ks, Reflektor na stativu led - 2 ks | H32: NE neplatný podpis | I32: 58469 | J32: 35081 | K32: 60 | L32: 23388 | M32: 40 | N32: 00276197 | O32: CZ00276197 | P32: 85 | Q32: Tatobity | R32: 51253 | S32: 58 469,00 Kč | T32: 35 081 Kč | U32: 40,00% | V32: 00276197 | W32: 74 | X32: 213
A33: 192 | B33: Obec | C33: Velký Valtinov | D33: Dovybavení JPO V 2025 | E33: V roce 2025 za finanční podpory Libereckého kraje došlo k částečné modernizaci vybavení JPO. S ohledem na bezpečnost dobrovolných hasičů je potřeba dovybavit moderními bezpečnostními prvky a oděvy i zbylé členy | F33: 2 | G33: Kalhoty zásahové třívrstvé DEVA PATRIOT ELITE CZ - 2 ks, Obuv HAIX Fire Flash 2.0 - 2 ks, Rukavice zásahové KNIT NCG 935 - 6 ks, Přilba GALLET F1 XF FIRE+ - 2 ks, Kabát zásahový DEVA PATRIOT - 2 ks, Pláštěnka FIREMAN - 3 ks | H33: Žádost nebyla odeslána přes "DS" | I33: 82078 | J33: 41039 | K33: 50 | L33: 41039 | M33: 50 | N33: 00672891 | O33: CZ00672891 | P33: Velký Valtinov 46 | Q33: Velký Valtinov | R33: 47125 | S33: 82 078,00 Kč | T33: 41 039 Kč | U33: 50,00% | V33: 00672891 | W33: 211 | X33: 223
A34: 191 | B34: Obec | C34: Višňová | D34: U2 Nákup osobních ochranných prostředků PO | E34: Pořízení osobních ochranných prostředků PO - zásahová obuv, zásahový oblek, zásahová přilba se svítilnou | F34: 2 | G34: Zásahová obuv - 4 ks, Zásahový oblek - 2 ks, Zásahová přilba se svítilnou - 2 ks | H34: NE chybí povinná příloha (podrobný popis projektu) | I34: 112000 | J34: 67200 | K34: 60 | L34: 44800 | M34: 40 | N34: 00263265 | O34: CZ00263265 | P34: 184 | Q34: Višňová | R34: 46401 | S34: 112 000,00 Kč | T34: 67 200 Kč | U34: 40,00% | V34: 00263265 | W34: 104 | X34: 80
A35: 197 | B35: Obec | C35: Višňová | D35: U4 Pořízení věcných prostředků PO | E35: Pořízení, obnova, doplnění a opravy věcných prostředků požární ochrany pro čerpání vody zejména v souvislosti se záplavami a povodněmi | F35: 4 | G35: Kalové čerpadlo s příslušenstvím - 1 ks | H35: NE chybí povinná příloha (podrobný popis projektu) | I35: 116000 | J35: 81200 | K35: 70 | L35: 34800 | M35: 30 | N35: 00263265 | O35: CZ00263265 | P35: 184 | Q35: Višňová | R35: 46401 | S35: 116 000,00 Kč | T35: 81 200 Kč | U35: 30,00% | V35: 00263265 | W35: 134 | X35: 39
A36: 198 | B36: Obec | C36: Višňová | D36: U6c Pořízení věcných prostředků PO | E36: Pořízení věcných prostředků PO - dobíječ na radiostanice, kufry na materiál do CAS, zásahová trika pro jednotku PO Višňová | F36: 6c | G36: Zásahové triko - 30 ks, Kufr na materiál do CAS - 5 ks, Dobíječ na radiostanice - 1 ks | H36: NE chybí povinná příloha (podrobný popis projektu) | I36: 51500 | J36: 30900 | K36: 60 | L36: 20600 | M36: 40 | N36: 00263265 | O36: CZ00263265 | P36: 184 | Q36: Višňová | R36: 46401 | S36: 51 500,00 Kč | T36: 30 900 Kč | U36: 40,00% | V36: 00263265 | W36: 122 | X36: 86
A37: 199 | B37: Obec | C37: Višňová | D37: U6b Oprava vozidla CAS | E37: Oprava CAS jednotky PO Višňová - oprava has.zařízení Cobra, oprava dveří, potažení sedadel, podmítací řetězy, výstražné světelné zařízení, poplepy | F37: 6b | G37: Oprava CAS - 1 ks | H37: NE chybí povinná příloha (podrobný popis projektu) | I37: 300000 | J37: 180000 | K37: 60 | L37: 120000 | M37: 40 | N37: 00263265 | O37: CZ00263265 | P37: 184 | Q37: Višňová | R37: 46401 | S37: 300 000,00 Kč | T37: 180 000 Kč | U37: 40,00% | V37: 00263265 | W37: 146 | X37: 17
A38: 251 | B38: Obec | C38: Vítkovice | D38: Nákup věcných prostředků. | E38: Dovybavení jednotky JSDHO věcnými prostředky. Pláštěnkami pro všechny členy výjezdové jednotky a podmetacími řetězy pro zásahové vozidlo. Účel U6)písm.c). | F38: 6c | G38: Pláštěnka - 18 ks, Podmetací řetězy včetně dopravy a montáže - 1 sada | H38: NE chybí povinná příloha (podrobný popis projektu) | I38: 126020 | J38: 75600 | K38: 59.99 | L38: 50420 | M38: 40.01 | N38: 00276260 | O38: CZ00276260 | P38: 243 | Q38: Vítkovice | R38: 51238 | S38: 126 020,00 Kč | T38: 75 600 Kč | U38: 40,01% | V38: 00276278 | W38: 154 | X38: 69
A39: 259 | B39: Obec | C39: Všeň | D39: Oprava hasičárny | E39: U 6f Závěrečná etapa oprav hasičárny | F39: 6f | G39: Oprava střechy - 1 soubor, Garážová vrata - 1 ks, Elektroinstalace - 1 soubor, Zednické práce - 1 soubor, Venkovní úpravy - 1 soubor | H39: NE žádost není podepsaná, max výše dotace 500 000 Kč | I39: 1799979 | J39: 1079979 | K39: 60 | L39: 720000 | M39: 40 | N39: 00276278 | O39: CZ00276278 | P39: Všeň 10 | Q39: Všeň | R39: 51265 | S39: 1 799 979,00 Kč | T39: 1 079 979 Kč | U39: 40,00% | V39: 00276278 | W39: 36 | X39: 132
A40: 243 | B40: Obec | C40: Všeň | D40: Věcné prostředky JSDHO Všeň | E40: Pořízení nových věcných prostředků - náhrada za dosluhující | F40: 6c | G40: Kapesní vysílačka HP 505 včetně baterie, antény nabíjecí stanice - 2 ks, svítilna na zásahovou přilbu - 5 ks, vysoušeč obuvi - 1 ks, zásahová obuv - 1 ks | H40: NE neplatný podpis | I40: 84000 | J40: 50400 | K40: 60 | L40: 33600 | M40: 40 | N40: 00276278 | O40: CZ00276278 | P40: Všeň 10 | Q40: Všeň | R40: 51265 | S40: 84 000,00 Kč | T40: 50 400 Kč | U40: 40,00% | V40: 00276278 | W40: 59 | X40: 153
A41: 104 | B41: Městys | C41: Zdislava | D41: Vybavení JSDH Zdislava věcnými prostředky | E41: Dovybavení JSDH věcnými prostředky | F41: 4 | G41: vysavač Hydra Boy - 1 ks, | H41: NE tento typ vysavače nemá požadovaný průtok 20000 lúhod. | I41: 27293 | J41: 16375 | K41: 60 | L41: 10918 | M41: 40 | N41: 00481491 | P41: 3 | Q41: Zdislava | R41: 46353 | S41: 27 293,00 Kč | T41: 16 375 Kč | U41: 40,00% | V41: 00481491 | W41: 34 | X41: 26
J44: =SUM(J10:J41) -> 3951515
